Workbook

Sheet 手動入力 (hidden)
B1: 手動入力用 | F1: =最低制限価格算出結果!G45&"手動入力" -> 点在設計H284処分費入力手動入力 | P1: =最低制限価格算出結果!R3 -> verH291001
B2: 工事個所名 | D2: =IF(OR(最低制限価格算出結果!L4=E2,最低制限価格算出結果!L4="",E2=""),"","工事個所 を確認") ->  | Q2: =IFERROR( VLOOKUP(H47,一覧工事検索,6,0),"") -> 
E3: 1
E4: 水道
B5: 工区名 | D5: 合算対象 工事費
E6: ="①"&E5 -> ① | F6: ="②"&F5 -> ② | G6: ="③"&G5 -> ③ | H6: ="④"&手動入力!$H$5 -> ④ | I6: ="⑤"&手動入力!$I$5 -> ⑤ | J6: ="⑥"&手動入力!$J$5 -> ⑥ | K6: ="⑦"&K5 -> ⑦ | L6: ="⑧"&L5 -> ⑧ | M6: ="⑨"&M5 -> ⑨ | N6: ="⑩"&N5 -> ⑩ | O6: ="⑪"&O5 -> ⑪ | P6: ="⑫"&P5 -> ⑫
B7: 仮想積算対象区分 | C7: =IF(最低制限価格算出結果!G45="合算点在計算","点在合冊区分等を 選択して下さい。","") ->  | E7: 標準 | F7: 合冊 | G7: 合冊 | H7: 標準 | I7: 標準 | J7: 標準 | K7: 標準 | L7: 標準 | M7: 標準 | N7: 標準 | O7: 標準 | P7: 合冊
B8: 積算対象区分 | E8: 1
E9: =E69&E70&E71&E72&E73&E74&E75&E76&E77&E78&E79&E80 -> ①
B10: 直接工事費 | D10: =SUM(E10:P10) -> 0 | R10: =IFERROR( IF(D10-Q10=0,"O.K","NG"),"") -> O.K
B11: 処分費等 直接工事費計上分 | D11: =SUM(E11:P11) -> 0
B12: 処分費等 準備費計上分 | D12: =SUM(E12:P12) -> 0
B13: 桁等購入費 | D13: =SUM(E13:P13) -> 0
B14: スクラップ | D14: =SUM(E14:P14) -> 0
B17: 共通仮設費計 | D17: =SUM(E17:P17) -> 0 | R17: =IFERROR( IF(D17-Q17=0,"O.K","NG"),"") -> O.K
B18: 現場管理費計 | D18: =SUM(E18:P18) -> 0 | R18: =IFERROR( IF(D18-Q18=0,"O.K","NG"),"") -> O.K
B19: 工事原価 | D19: =SUM(E19:P19) -> 0 | E19: =E10+E17+E18 -> 0 | F19: =F10+F17+F18 -> 0 | G19: 0 | H19: 0 | I19: 0 | J19: 0 | K19: 0 | L19: 0 | M19: 0 | N19: 0 | O19: 0 | P19: 0
B20: 現場管理費対象額 | C20: =IF(#REF!="合算点在計算","処分費等入力方式です。入力しないで下さい。","") ->  | D20: =SUM(E20:P20) -> 0
A33: =SUM(E33:M33) -> 0 | B33: 一般管理費対象額 | C33: =IF(最低制限価格算出結果!I45="N","処分費等入力方式です。入力しないで下さい。","") ->  | D33: =IF(最低制限価格算出結果!$G$45="合算点在計算",仮想工事!H35,仮想工事!E41) -> 0
B34: 一般管理費 | C34: =IF(最低制限価格算出結果!I45="N","処分費等入力方式です。入力しないで下さい。","") ->  | D34: =IF(最低制限価格算出結果!G45="合算点在計算",D40,IF(OR(最低制限価格算出結果!G45="点在設計",最低制限価格算出結果!G45="点在設計H284")," 点在経費計算です。入力しないでください。 ",SUM(E34:L34))) -> 0 | Q34: =VLOOKUP(H47,一覧工事検索,25,0) ->  | R34: =IFERROR(IF(D34-Q34=0,"O.K","NG"),"") -> 
B35: 契約保証 | C35: ケース1 | D35: 500万円 | E35: =E26+E33+E34 -> 0 | F35: =F26+F33+F34 -> 0 | G35: =G26+G33+G34 -> 0 | H35: =H26+H33+H34 -> 0 | I35: =I26+I33+I34 -> 0 | J35: =J26+J33+J34 -> 0 | K35: =K26+K33+K34 -> 0 | L35: =L26+L33+L34 -> 0 | M35: =M26+M33+M34 -> 0 | N35: =N26+N33+N34 -> 0 | O35: =O26+O33+O34 -> 0 | P35: =SUMIF($E$8:$P$8,P8,$E$33:$P$33) -> 0
B36: =IF(AND(E34>0,E33>0),"一般管理費対象額が入力されています","契約保証金 注)500万円が基準") -> 契約保証金 注)500万円が基準 | D36: ケース | E36: ケース1 | F36: ケース1 | G36: ケース1 | H36: ケース1
D37: 免除金額 | E37: 500万円 | F37: 500万円 | G37: 500万円 | H37: 500万円
B38: 一般管理費率 | C38: =IF(D33=0,"",仮想工事!E42) ->  | D38: =ROUNDDOWN(D19+$D$33*C38+D39,-3)-ROUNDUP(D19+$D$33*C38+D39,0)+ROUND(D33*C38,0) ->  | E38: =IF(最低制限価格算出結果!$G$45="合算点在計算",0,最低制限価格算出結果!#REF!) ->  | F38: =IF(最低制限価格算出結果!$G$45="合算点在計算",0,最低制限価格算出結果!L29) -> 0 | G38: =IF(最低制限価格算出結果!$G$45="合算点在計算",0,最低制限価格算出結果!M29) -> 0 | H38: =IF(最低制限価格算出結果!$G$45="合算点在計算",0,最低制限価格算出結果!N29) -> 0 | I38: =IF(最低制限価格算出結果!$G$45="合算点在計算",0,最低制限価格算出結果!O29) -> 0 | J38: =IF(最低制限価格算出結果!$G$45="合算点在計算",0,最低制限価格算出結果!P29) -> 0 | K38: =IF(最低制限価格算出結果!$G$45="合算点在計算",0,最低制限価格算出結果!Q29) -> 0 | L38: =IF(最低制限価格算出結果!$G$45="合算点在計算",0,最低制限価格算出結果!R29) -> 0 | M38: =IF(最低制限価格算出結果!$G$45="合算点在計算",0,最低制限価格算出結果!S29) -> 0 | N38: =IF(最低制限価格算出結果!$G$45="合算点在計算",0,最低制限価格算出結果!T29) -> 0 | O38: =IF(最低制限価格算出結果!$G$45="合算点在計算",0,最低制限価格算出結果!U29) -> 0 | P38: =IF(最低制限価格算出結果!$G$45="合算点在計算",0,最低制限価格算出結果!V29) -> 0
B39: 契約保証補正 | C39: =IF(AND(C35="ケース1",D35="500万円"),0.0004,IF(E39>0,0.0004,"")) -> 0.0004 | D39: =$D$33*C39 -> 0 | E39: =最低制限価格算出結果!K30 ->  | F39: =最低制限価格算出結果!L30 ->  | G39: =最低制限価格算出結果!M30 ->  | H39: =最低制限価格算出結果!N30 ->  | I39: =最低制限価格算出結果!O30 ->  | J39: =最低制限価格算出結果!P30 ->  | K39: =最低制限価格算出結果!Q30 ->  | L39: =最低制限価格算出結果!R30 ->  | M39: =最低制限価格算出結果!S30 ->  | N39: =最低制限価格算出結果!T30 ->  | O39: =最低制限価格算出結果!U30 ->  | P39: =最低制限価格算出結果!V30 -> 
B40: 一般管理費計 | D40: =IF(最低制限価格算出結果!G45="合算点在計算",最低制限価格算出結果!J38,IF(最低制限価格算出結果!G45="点在設計H284",D38+D39,IF(SUM(E40:L40)=0,0,(SUM(E40:L40))))) ->  | E40: =E34+E38+E39 ->  | G40: =G34+G38+G39 -> 
A41: 合算点在計算 | B41: ①積算工事価格 | D41: =IF(最低制限価格算出結果!G45="合算点在計算",最低制限価格算出結果!J39,IF(最低制限価格算出結果!G45="点在設計H284",D19+D40,SUM(E41:P41))) ->  | E41: =IF(#REF!="合算点在計算",0, 最低制限価格算出結果!K39) ->  | F41: =IF(#REF!="合算点在計算",0,最低制限価格算出結果!L39) ->  | G41: =IF(#REF!="合算点在計算",0,最低制限価格算出結果!M39) ->  | H41: =IF(#REF!="合算点在計算",0,最低制限価格算出結果!N39) ->  | I41: =IF(#REF!="合算点在計算",0,最低制限価格算出結果!O39) ->  | J41: =IF(#REF!="合算点在計算",0,最低制限価格算出結果!P39) ->  | K41: =IF(#REF!="合算点在計算",0,最低制限価格算出結果!Q39) ->  | L41: =IF(#REF!="合算点在計算",0,最低制限価格算出結果!R39) ->  | M41: =IF(#REF!="合算点在計算",0,最低制限価格算出結果!S39) ->  | N41: =IF(#REF!="合算点在計算",0,最低制限価格算出結果!T39) ->  | O41: =IF(#REF!="合算点在計算",0,最低制限価格算出結果!U39) ->  | P41: =IF(#REF!="合算点在計算",0,最低制限価格算出結果!V39) -> 
B43: ②予定価格（公表） | D43: =IF(最低制限価格算出結果!L43=0,最低制限価格算出結果!Q44,最低制限価格算出結果!L43) -> 24870000
B44: ②-① | D44: =IFERROR(D41-D43,"") -> 
B45: 入札工事価格 | C45: ="α="&最低制限価格算出結果!O16 -> α=1.03 | D45: =最低制限価格算出結果!J40 -> 1188
L46: 仮想工事 | M46: 積算対象工事 | N46: 合算対象工事
B47: ②予定価格（公表） | D47: =最低制限価格算出結果!L43 -> 24870000 | G47: 管理番号
B48: =IF(AND(K48="",D44=0),"","①-②") -> ①-② | F48: =IFERROR((IF(OR(K48="",D44=0),D44-K48,D44-K48)),0) -> 0 | G48: =IF(AND(K48="",D44=0),"","③-公表") -> ③-公表 | H48: =IFERROR(K49-D45,0) -> -1188
B49: 最低制限価格（公表）
B50: 落札金額
B51: 100ｍ超える超える
B52: 5ｋｍ以内
B53: 処分費等を考慮
B57: 登録工事要素 | F57: =E10&" "&E17&" "&E18&" "&E40 ->  | H57: =G10&" "&G17&" "&G18&" "&G40 -> 
B59: 登録済み工事要素 | F59: α
B60: =IF(H47="","管理番号が入力されていません","") -> 管理番号が入力されていません | F60: =VLOOKUP(H47,一覧工事検索,20,0) ->  | G60: =VLOOKUP(H47,一覧工事検索,21,0) -> 
B61: 登録済み工事要素 | F61: =VLOOKUP($H$47,一覧工事検索,44,0) ->  | G61: =VLOOKUP($H$47,一覧工事検索,45,0) ->  | H61: =VLOOKUP($H$47,一覧工事検索,46,0) ->  | I61: =VLOOKUP($H$47,一覧工事検索,47,0) ->  | J61: =VLOOKUP($H$47,一覧工事検索,48,0) ->  | K61: =VLOOKUP($H$47,一覧工事検索,49,0) ->  | L61: =VLOOKUP($H$47,一覧工事検索,50,0) ->  | M61: =VLOOKUP($H$47,一覧工事検索,51,0) ->  | N61: =VLOOKUP($H$47,一覧工事検索,52,0) ->  | O61: =VLOOKUP($H$47,一覧工事検索,53,0) ->  | P61: =VLOOKUP($H$47,一覧工事検索,53,0) ->  | Q61: =VLOOKUP($H$47,一覧工事検索,53,0) -> 
F62: =IF(F61=0,"",IF(F57=F61,"O.K","NG")) ->  | G62: =IF(G61=0,"",IF(G57=G61,"O.K","NG")) ->  | N62: =IF(N61=0,"",IF(N57=N61,"O.K","NG")) ->  | P62: =IF(P61=0,"",IF(P57=P61,"O.K","NG")) -> 
B67: 工事名
D69: =手動入力!$E$8 -> 1 | E69: =IF($D69=1,$E6,"") -> ①
D70: =手動入力!$F$8 -> 0 | E70: =IF($D70=1,$F6,"") ->  | F70: =IF($D70=2,$F6,"") -> 
D71: =手動入力!$G$8 -> 0 | E71: =IF($D71=1,$G6,"") ->  | F71: =IF($D71=2,$G6,"") ->  | G71: =IF($D71=3,$G6,"") -> 
D72: =手動入力!$H$8 -> 0 | E72: =IF($D72=1,$H6,"") ->  | F72: =IF($D72=2,$H6,"") ->  | G72: =IF($D72=3,$H6,"") ->  | H72: =IF($D72=4,$H6,"") -> 
D73: =手動入力!$I$8 -> 0 | E73: =IF($D73=1,$I6,"") ->  | F73: =IF($D73=2,$I6,"") ->  | G73: =IF($D73=3,$I6,"") ->  | H73: =IF($D73=4,$I6,"") ->  | I73: =IF($D73=5,$I6,"") -> 
B74: =手動入力!J10 -> 0 | D74: =手動入力!$J$8 -> 0 | E74: =IF($D74=1,$J6,"") ->  | F74: =IF($D74=2,$J6,"") ->  | G74: =IF($D74=3,$J6,"") ->  | H74: =IF($D74=4,$J6,"") ->  | I74: =IF($D74=5,$J6,"") ->  | J74: =IF($D74=6,$J6,"") -> 
B75: =手動入力!K10 -> 0 | D75: =手動入力!$K$8 -> 0 | E75: =IF($D75=1,$K6,"") ->  | F75: =IF($D75=2,$K6,"") ->  | G75: =IF($D75=3,$K6,"") ->  | H75: =IF($D75=4,$K6,"") ->  | I75: =IF($D75=5,$K6,"") ->  | J75: =IF($D75=6,$K6,"") ->  | K75: =IF($D75=7,$K6,"") -> 
B76: =手動入力!L10 -> 0 | D76: =手動入力!$L$8 -> 0 | E76: =IF($D76=1,$L6,"") ->  | F76: =IF($D76=2,$L6,"") ->  | G76: =IF($D76=3,$L6,"") ->  | H76: =IF($D76=4,$L6,"") ->  | I76: =IF($D76=5,$L6,"") ->  | J76: =IF($D76=6,$L6,"") ->  | K76: =IF($D76=7,$L6,"") ->  | L76: =IF($D76=8,$L6,"") -> 
B77: =手動入力!M10 -> 0 | D77: =手動入力!$M$8 -> 0 | E77: =IF($D77=1,$M6,"") ->  | F77: =IF($D77=2,$M6,"") ->  | G77: =IF($D77=3,$M6,"") ->  | H77: =IF($D77=4,$M6,"") ->  | I77: =IF($D77=5,$M6,"") ->  | J77: =IF($D77=6,$M6,"") ->  | K77: =IF($D77=7,$M6,"") ->  | L77: =IF($D77=8,$M6,"") ->  | M77: =IF($D77=9,$M6,"") -> 
B78: =手動入力!N10 -> 0 | D78: =手動入力!$N$8 -> 0 | E78: =IF($D78=1,$N6,"") ->  | F78: =IF($D78=2,$N6,"") ->  | G78: =IF($D78=3,$N6,"") ->  | H78: =IF($D78=4,$N6,"") ->  | I78: =IF($D78=5,$N6,"") ->  | J78: =IF($D78=6,$N6,"") ->  | K78: =IF($D78=7,$N6,"") ->  | L78: =IF($D78=8,$N6,"") ->  | M78: =IF($D78=9,$N6,"") ->  | N78: =IF($D78=10,$N6,"") -> 
B79: =手動入力!O10 -> 0 | D79: =手動入力!$O$8 -> 0 | E79: =IF($D79=1,$O6,"") ->  | F79: =IF($D79=2,$O6,"") ->  | G79: =IF($D79=3,$O6,"") ->  | H79: =IF($D79=4,$O6,"") ->  | I79: =IF($D79=5,$O6,"") ->  | J79: =IF($D79=6,$O6,"") ->  | K79: =IF($D79=7,$O6,"") ->  | L79: =IF($D79=8,$O6,"") ->  | M79: =IF($D79=9,$O6,"") ->  | N79: =IF($D79=10,$O6,"") ->  | O79: =IF($D79=11,"⑪"&手動入力!$O$5,"") -> 
D80: =手動入力!$P$8 -> 0 | E80: =IF($D80=1,$P6,"") ->  | F80: =IF($D80=2,$P6,"") ->  | G80: =IF($D80=3,$P6,"") ->  | H80: =IF($D80=4,$P6,"") ->  | I80: =IF($D80=5,$P6,"") ->  | J80: =IF($D80=6,$P6,"") ->  | K80: =IF($D80=7,$P6,"") ->  | L80: =IF($D80=8,$P6,"") ->  | M80: =IF($D80=9,$P6,"") ->  | N80: =IF($D80=10,$P6,"") ->  | O80: =IF($D80=11,$P6,"") ->  | P80: =IF($D80=12,$P6,"") -> 
C82: =E10 -> 0
B83: 直接工事費
B84: =手動入力!E25 -> 0 | C84: =手動入力!$E$10 -> 0 | D84: =手動入力!$E$8 -> 1 | E84: =IF($D84=1,$C84,"") -> 0
B85: =手動入力!F25 -> 0 | C85: =手動入力!$F$10 -> 0 | D85: =手動入力!$F$8 -> 0 | F85: =IF($D85=2,$C85,"") -> 
B86: =手動入力!G25 -> 0 | C86: =手動入力!$G$10 -> 0 | D86: =手動入力!$G$8 -> 0 | G86: =IF($D86=3,$C86,"") -> 
B87: =手動入力!H25 -> 0 | C87: =手動入力!$H$10 -> 0 | D87: =手動入力!$H$8 -> 0 | G87: =IF($D87=3,$C87,"") ->  | H87: =IF($D87=4,$C87,"") -> 
B88: =手動入力!I25 -> 0 | C88: =手動入力!$I$10 -> 0 | D88: =手動入力!$I$8 -> 0 | G88: =IF($D88=3,$C88,"") ->  | H88: =IF($D88=4,$C88,"") ->  | I88: =IF($D88=5,$C88,"") -> 
B89: =手動入力!J25 -> 0 | C89: =手動入力!$J$10 -> 0 | D89: =手動入力!$J$8 -> 0 | J89: =IF($D89=6,$C89,"") -> 
B90: =手動入力!K25 -> 0 | C90: =手動入力!$K$10 -> 0 | D90: =手動入力!$K$8 -> 0 | K90: =IF($D90=7,$C90,"") -> 
B91: =手動入力!L25 -> 0 | C91: =手動入力!$L$10 -> 0 | D91: =手動入力!$L$8 -> 0 | H91: =IF($D91=4,$C91,"") ->  | L91: =IF($D91=8,$C91,"") -> 
B92: =手動入力!M25 -> 0 | C92: =手動入力!$M$10 -> 0 | D92: =手動入力!$M$8 -> 0 | H92: =IF($D92=4,$C92,"") ->  | L92: =IF($D92=8,$C92,"") ->  | M92: =IF($D92=9,$C92,"") -> 
B93: =手動入力!N25 -> 0 | C93: =手動入力!$N$10 -> 0 | D93: =手動入力!$N$8 -> 0 | G93: =IF($D93=3,$C93,"") ->  | H93: =IF($D93=4,$C93,"") ->  | L93: =IF($D93=8,$C93,"") ->  | M93: =IF($D93=9,$C93,"") ->  | N93: =IF($D93=10,$C93,"") -> 
B94: =手動入力!O25 -> 0 | C94: =手動入力!$O$10 -> 0 | D94: =手動入力!$O$8 -> 0 | G94: =IF($D94=3,$C94,"") ->  | H94: =IF($D94=4,$C94,"") ->  | L94: =IF($D94=8,$C94,"") ->  | M94: =IF($D94=9,$C94,"") ->  | O94: =IF($D94=11,"⑪"&手動入力!$O$5,"") -> 
C95: =手動入力!$P$10 -> 0 | D95: =手動入力!$P$8 -> 0 | H95: =IF($D95=4,$C95,"") ->  | L95: =IF($D95=8,$C95,"") ->  | M95: =IF($D95=9,$C95,"") ->  | N95: =IF($D95=10,$C95,"") ->  | O95: =IF($D95=11,$C95,"") ->  | P95: =IF($D95=12,$C95,"") -> 

Sheet 八幡市合冊
H3: =IF(G74="点在設計","点在経費計算書",IF(G74="合冊設計","合冊経費計算書",IF(G74="合算点在計算","合算点在経費計算書","経費計算書"))) -> 経費計算書 | N3: verH291001
G4: 工事箇所名 | H4: 平成２９年度男山泉地区配水管布設替工事 | N4: =IF(I74="Ｋ","京都市 最低制限価格一覧","八幡市 水道＋道路") -> 八幡市 水道＋道路
N5: この計算結果はシミュレーションであり金額を保証するものではありません。
G6: 管理番号 | H6: =IF(N72>0,N72,手動入力!H47) -> 0 | J6: =IF(OR(手動入力!E2=H4,手動入力!E2=""),"",IF(H4="","","工事名が相違しています")) ->  | N6: =IF(I74="Ｋ","ランダム係数","α値") -> α値 | O6: ＊注）参考 最低制限価格 | P6: 摘要
G7: 直接工事費計 | H7: =J21 -> 43757566 | N7: =IF(G12="京都市",0.96,0) -> 0 | O7: =IFERROR( IF($G$74="合算点在計算",ROUNDDOWN($H$7*0.95+$H$8*0.9+$H$9*N7*0.9+$H$10*0.55,-3), 最低制限価格!Z22),0) -> 0 | P7: =IF($K$16=N7,"計算値","") -> 
G8: 共通仮設費計 | H8: =J45 -> 4805240 | N8: =IF(N7=0,0,0.97) -> 0 | O8: =IFERROR(IF($G$74="合算点在計算",ROUNDDOWN($H$7*0.95+$H$8*0.9+$H$9*N8*0.9+$H$10*0.55,-3),最低制限価格!Z23),0) -> 0
G9: 現場管理費 | H9: =J49 -> 10828000 | N9: =IF(N7=0,0,0.98) -> 0 | O9: =IFERROR(IF($G$74="合算点在計算",ROUNDDOWN($H$7*0.95+$H$8*0.9+$H$9*N9*0.9+$H$10*0.55,-3),最低制限価格!Z24),0) -> 0
G10: 一般管理費 | H10: =J65 -> 9058194 | N10: =IF(N7=0,0,0.99) -> 0 | O10: =IFERROR(IF($G$74="合算点在計算",ROUNDDOWN($H$7*0.95+$H$8*0.9+$H$9*N10*0.9+$H$10*0.55,-3),最低制限価格!Z25),0) -> 0
G11: 工事価格 | H11: =J66 -> 68449000 | J11: 諸経費等適用日 | K11: 2017-04-01 | N11: =IF(N7=0,0,1) -> 0 | O11: =IFERROR(IF($G$74="合算点在計算",ROUNDDOWN($H$7*0.95+$H$8*0.9+$H$9*N11*0.9+$H$10*0.55,-3),最低制限価格!Z26),0) -> 0
N12: =IF(N7=0,0,1.01) -> 0 | O12: =IFERROR(IF($G$74="合算点在計算",ROUNDDOWN($H$7*0.95+$H$8*0.9+$H$9*N12*0.9+$H$10*0.55,-3),最低制限価格!Z27),0) -> 0
G13: 入札工事価格 | H13: =J69 -> 61496000 | J13: ②予定価格（公表） | K13: =IF(L72>0,L72,Q73) -> 0 | M13: 積算-公表 | N13: =IF(N7=0,0,1.02) -> 0 | O13: =IFERROR(IF($G$74="合算点在計算",ROUNDDOWN($H$7*0.95+$H$8*0.9+$H$9*N13*0.9+$H$10*0.55,-3),最低制限価格!Z28),0) -> 0
M14: =IF(K13=0,0,IFERROR(J66-K13,0)) -> 0 | N14: =IF(N7=0,0,1.03) -> 0 | O14: =IFERROR(IF($G$74="合算点在計算",ROUNDDOWN($H$7*0.95+$H$8*0.9+$H$9*N14*0.9+$H$10*0.55,-3),最低制限価格!Z29),0) -> 0
G15: 処分費等を考慮 | H15: 標準 | J15: 現場管理費集計 | K15: 標準 | N15: =IF(N7=0,0,1.04) -> 0 | O15: =IFERROR(IF($G$74="合算点在計算",ROUNDDOWN($H$7*0.95+$H$8*0.9+$H$9*N15*0.9+$H$10*0.55,-3),最低制限価格!Z30),0) -> 0
G16: 契約保証金免除金額 | H16: 自動 | J16: 現場管理費のα値 | K16: 1 | L16: 各費目毎処理 | M16: 自動 | N16: =IF(N7=0,0,1.041) -> 0 | O16: =IFERROR(IF($G$74="合算点在計算",ROUNDDOWN($H$7*0.95+$H$8*0.9+$H$9*N16*0.9+$H$10*0.55,-3),最低制限価格!Z31),0) -> 0
G17: 施工地域・工事場所 | H17: 市街地 | J17: 現場管理費 | K17: 標準 | L17: 入札価格算出ケース | M17: 一括最低限計算 | N17: =IF(N7=0,0,1.05) -> 0 | O17: =IFERROR(IF($G$74="合算点在計算",ROUNDDOWN($H$7*0.95+$H$8*0.9+$H$9*N17*0.9+$H$10*0.55,-3),最低制限価格!Z32),0) -> 0
C18: 合算点在計算 | N18: =IF(N7=0,0,1.06) -> 0 | O18: =IFERROR(IF($G$74="合算点在計算",ROUNDDOWN($H$7*0.95+$H$8*0.9+$H$9*N18*0.9+$H$10*0.55,-3),最低制限価格!Z33),0) -> 0
G20: 名称・区分 | H20: 工種区分 | I20: 水道 | J20: 合計 | L20: 道路 | M20: 水道
G21: 直接工事費 | J21: =SUM(K21:O21) -> 43757566 | L21: 12048896 | M21: 31708670
G22: 管材費 | J22: =SUM(K22:O22) -> 9293272 | M22: 9293272
G23: 処分費等 | H23: 直接工事費計上分 | J23: 1723631 | L23: 594080 | M23: 1129551
G24: 処分費等 | H24: 間接工事費計上分 | J24: 188 | M24: 188
G25: 桁等購入費 | J25: 0
G26: スクラップ | J26: -134622 | M26: -134622
G27: 諸経費対象外 | H27: 直接工事費計上分 | J27: 0
G28: 諸経費対象外 | H28: 間接工事費計上分 | J28: 0
G32: 処分費の控除額 | J32: =IF(I20="水道",J21-J26-J22/2+J24-J27,J21-J26+J24) -> 39245740 | O32: =422.4*J35^-0.2167 -> 9.582275712
J33: =ROUNDDOWN(J32*0.03,0) -> 1177372
J34: =IF((J23-J33+J24)<0,0,J23-J33+J24) -> 546447
G35: 共通仮設費対象額 | J35: =J32-J34 -> 38699293
G36: 地域補正 | I36: =VLOOKUP(H17,条件表!B131:F134,4) -> 0.02
G37: 共通仮設費 | H37: 率計算 | I37: =IF(I20="水道",ROUND(485.4*J35^-0.2231,2)/100,ROUND(435.1*J35^-0.2074,2)/100)+I36 -> 0.1185 | J37: =ROUNDDOWN(J35*I37,-3) -> 4585000 | M37: 0
G38: 共通仮設費 | H38: 積上げ計 | J38: =SUM(J39:J44) -> 220240
G39: 運搬費 | H39: 積上げ分 | J39: =SUM(L39:P39) -> 100800 | M39: 100800
G40: 準備費 | H40: 積上げ分 | J40: =SUM(L40:P40) -> 13880 | M40: 13880
G41: 事業損失防止施設費 | H41: 積上げ分 | J41: 0
G42: 安全費 | H42: 積上げ分 | J42: 0
G43: 役務費 | H43: 積上げ分 | J43: 0
G44: 技術管理費 | H44: 積上げ分 | J44: 105560 | L44: 35185 | M44: 70375
G45: 共通仮設費計 | J45: =SUM(J37:J38) -> 4805240
G46: 純工事費 | J46: =J21+J45 -> 48562806
G47: 現場管理費費対象額 | J47: =IF(I20="水道",J46-スクラップ-管材費/2-処分費控除額,J46-L28) -> 43504345
G48: 地域補正 | I48: =VLOOKUP(H17,条件表!B131:F134,5) -> 0.015
G49: 現場管理費 | I49: =IF(I20="水道",ROUND(158.8*J47^-0.1089,2)/100,ROUND(622.2*J47^-0.1751,2)/100)+I48 -> 0.2489 | J49: =ROUNDDOWN(I49*J47,-3) -> 10828000 | M49: =ROUNDDOWN(I49*M47,-3) -> 0
G50: 工事原価 | J50: =J46+J49 -> 59390806 | M50: =M46+M49 -> 0
G51: 一般管理費対象額 | J51: =IF(I20="水道",J50-処分費控除額-スクラップ,J50-L28) -> 58978981
G52: 契約保証金 注)500万円が基準 | J52: 手動調整 | K52: =IF(K51=0,0,手動入力!E36) -> 0 | L52: =IF(L51=0,0,手動入力!H36) -> 0 | N52: =IF(N51=0,0,手動入力!J36) -> 0 | O52: =IF(O51=0,0,手動入力!K36) -> 0
J53: 免除金額 | K53: =IF(K51=0,0,手動入力!E37) -> 0 | L53: =IF(L51=0,0,手動入力!H37) -> 0 | N53: =IF(N51=0,0,手動入力!J37) -> 0 | O53: =IF(O51=0,0,手動入力!K37) -> 0
I54: 0.0004 | J54: 契約保証率 | K54: =IF(K51>0,IF(K52="ケース1",0.0004,IF(K50+K51*$I$55<5000000,0,0.0004)),0) -> 0 | L54: =IF(L51>0,IF(L52="ケース1",0.0004,IF(L50+L51*$I$55<5000000,0,0.0004)),0) -> 0 | N54: =IF(N51>0,IF(N52="ケース1",0.0004,IF(N50+N51*$I$55<5000000,0,0.0004)),0) -> 0 | O54: =IF(O51>0,IF(O52="ケース1",0.0004,IF(O50+O51*$I$55<5000000,0,0.0004)),0) -> 0
G55: 一般管理費 | J55: =I65*J51 -> 9059171.482 | K55: =-(K50+ROUNDDOWN(K51*八幡市合冊!$I$57,0))+ROUNDDOWN(K50+ROUNDDOWN(K51*八幡市合冊!$I$57,0),-3)+ROUNDDOWN(K51*八幡市合冊!$I$57,0) -> 0 | L55: =-(L50+ROUNDDOWN(L51*八幡市合冊!$I$57,0))+ROUNDDOWN(L50+ROUNDDOWN(L51*八幡市合冊!$I$57,0),-3)+ROUNDDOWN(L51*八幡市合冊!$I$57,0) -> 0 | M55: =-(M50+ROUNDDOWN(M51*八幡市合冊!$I$57,0))+ROUNDDOWN(M50+ROUNDDOWN(M51*八幡市合冊!$I$57,0),-3)+ROUNDDOWN(M51*八幡市合冊!$I$57,0) -> 0 | N55: =-(N50+ROUNDDOWN(N51*八幡市合冊!$I$57,0))+ROUNDDOWN(N50+ROUNDDOWN(N51*八幡市合冊!$I$57,0),-3)+ROUNDDOWN(N51*八幡市合冊!$I$57,0) -> 0 | O55: =-(O50+ROUNDDOWN(O51*八幡市合冊!$I$57,0))+ROUNDDOWN(O50+ROUNDDOWN(O51*八幡市合冊!$I$57,0),-3)+ROUNDDOWN(O51*八幡市合冊!$I$57,0) -> 0
G56: 契約保証補正 | I56: 0.0004 | J56: =IF($G$74="点在設計H284",I56*$J$51,SUM(K56:O56)) ->  | K56: =IF(OR($G$74="合算点在計算",$G$74="点在設計H284"),0,仮想工事!I21) ->  | L56: =IF(OR($G$74="合算点在計算",$G$74="点在設計H284"),0,仮想工事!L21) ->  | M56: =IF(OR($G$74="合算点在計算",$G$74="点在設計H284"),0,仮想工事!M21) ->  | N56: =IF(OR($G$74="合算点在計算",$G$74="点在設計H284"),0,仮想工事!N21) ->  | O56: =IF(OR($G$74="合算点在計算",$G$74="点在設計H284"),0,仮想工事!O21) -> 
G57: 調整前一般管理費計 | I57: =SUM(I55:I56) -> 0.0004 | J57: =SUM(J55:J56) ->  | K57: =SUM(K55:K56) ->  | L57: =SUM(L55:L56) -> 
G58: 標準設計 | I58: H | J58: =SUM(K58:O58) -> 0
G59: 自動 | I59: O | J59: 0
G60: 合冊設計 | I60: G | J60: 0
G61: 点在設計 | I61: D | J61: 0
G62: 点在設計H284 | I62: F | J62: 0
G63: 一般管理費調整 | J63: =ROUNDDOWN(J21+J45+J49+J55,-3)-(J21+J45+J49+J55) -> -977.4816 | K63: =ROUNDDOWN(K50+K57,-3)-ROUNDDOWN(K50+K57,0) ->  | L63: =ROUNDDOWN(L50+L57,-3)-ROUNDDOWN(L50+L57,0) ->  | M63: =ROUNDDOWN(M50+M57,-3)-ROUNDDOWN(M50+M57,0) ->  | N63: =ROUNDDOWN(N50+N57,-3)-ROUNDDOWN(N50+N57,0) ->  | O63: =ROUNDDOWN(O50+O57,-3)-ROUNDDOWN(O50+O57,0) -> 
G65: 一般管理費計 | I65: =ROUND(-4.63586*LOG(J51)+51.34242,2)/100+I54 -> 0.1536 | J65: =J55+ROUNDDOWN(J21+J45+J49+J55,-3)-(J21+J45+J49+J55) -> 9058194
G66: ①積算工事価格 | J66: =J21+J45+J49+J65 -> 68449000
G67: 最低制限価格 | I67: =VLOOKUP($K$11,条件表!$B$126:$J$129,6,0) -> 0.97 | J67: =VLOOKUP($K$11,条件表!$B$126:$J$129,7,0) -> 0.9 | K67: =VLOOKUP($K$11,条件表!$B$126:$J$129,8,0) -> 0.9 | L67: =VLOOKUP($K$11,条件表!$B$126:$J$129,9,0) -> 0.55
G68: =J21&"*"&I67&"+"&J45&"*"&J67&"+"&J49&"*"&K67&"+"&J65&"*"&L67 -> 43757566*0.97+4805240*0.9+10828000*0.9+9058194*0.55
G69: ③入札工事価格 | J69: =ROUNDDOWN(J21*I67+J45*J67+J49*K67+J65*L67,-3) -> 61496000
G72: 一般土木 | J72: ②予定価格（公表） | L72: 0 | M72: 管理番号 | O72: 検索結果 | P72: ①積算価格（公表）
G73: 手動 | J73: =IF(AND(Q73="",J66=0),"","①-②") -> ①-② | L73: =IFERROR((IF(OR(Q73="",J66=0),J66-Q73,J66-Q73)),J66-L72) -> 68449000 | M73: =IF(AND(Q73="",J66=0),"","③-公表") -> ③-公表 | N73: =IFERROR(Q74-J69,0) -> -61496000 | P73: ②予定価格（公表）
G74: 点在設計H284処分費入力 | J74: 最低制限価格（公表） | P74: 最低制限価格（公表）
J75: 落札金額 | P75: 落札金額
I78: 工事実績一覧表 | O78: =N3 -> verH291001
G79: 現場管理費のα係数決定に参考とした資料（合冊・点在設計等の場合は注意して下さい）
G80: 管理番号 | H80: H2805-142 | I80: =IFERROR( VLOOKUP(J80,一覧工事検索,2,0),"") -> 山城北 | J80: 281212-001 | K80: =IFERROR( VLOOKUP(L80,一覧工事検索,3,0),"") ->  | L80: H2805-138 | M80: =IFERROR( VLOOKUP(N80,一覧工事検索,3,0),"") ->  | N80: 2803-248 | O80: =IFERROR( VLOOKUP(P80,一覧工事検索,3,0),"") ->  | P80: 2803-249
G81: 工事名 | H81: =IFERROR(VLOOKUP(H80,一覧工事検索,6,0),"") ->  | I81: =IFERROR(VLOOKUP(J80,一覧工事検索,6,0),"") -> 管内一円（長尾八幡線）地域振興道路工事 | K81: =IFERROR( VLOOKUP(L80,一覧工事検索,6,0),"") ->  | M81: =IFERROR( VLOOKUP(N80,一覧工事検索,6,0),"") ->  | O81: =IFERROR( VLOOKUP(P80,一覧工事検索,6,0),"") -> 
G82: 個所名 | H82: =IFERROR( VLOOKUP(H80,一覧工事検索,8,0)&VLOOKUP(H80,一覧工事検索,9,0),"") ->  | I82: =IFERROR( VLOOKUP(J80,一覧工事検索,7,0)&VLOOKUP(J80,一覧工事検索,9,0),"") -> 八幡市八幡一の坪地内影響受ける | K82: =IFERROR( VLOOKUP(L80,一覧工事検索,8,0)&VLOOKUP(L80,一覧工事検索,9,0),"") ->  | M82: =IFERROR( VLOOKUP(N80,一覧工事検索,8,0)&VLOOKUP(N80,一覧工事検索,9,0),"") ->  | O82: =IFERROR( VLOOKUP(P80,一覧工事検索,8,0)&VLOOKUP(P80,一覧工事検索,9,0),"") -> 
G83: 直接工事費 | H83: =IFERROR( VLOOKUP(H80,一覧工事検索,22,0),"") ->  | I83: =IFERROR( VLOOKUP(J80,一覧工事検索,18,0),"") -> 3442191 | K83: =IFERROR( VLOOKUP(L80,一覧工事検索,22,0),"") ->  | M83: =IFERROR( VLOOKUP(N80,一覧工事検索,22,0),"") ->  | O83: =IFERROR( VLOOKUP(P80,一覧工事検索,22,0),"") -> 
G84: 共通仮設費計 | H84: =IFERROR( VLOOKUP(H80,一覧工事検索,23,0),"") ->  | I84: =IFERROR( VLOOKUP(J80,一覧工事検索,19,0),"") -> 980185 | K84: =IFERROR( VLOOKUP(L80,一覧工事検索,23,0),"") ->  | M84: =IFERROR( VLOOKUP(N80,一覧工事検索,23,0),"") ->  | O84: =IFERROR( VLOOKUP(P80,一覧工事検索,23,0),"") -> 
G85: 現場管理費 | H85: =IFERROR( VLOOKUP(H80,一覧工事検索,24,0),"") ->  | I85: =IFERROR( VLOOKUP(J80,一覧工事検索,20,0),"") -> 1786000 | K85: =IFERROR( VLOOKUP(L80,一覧工事検索,24,0),"") ->  | M85: =IFERROR( VLOOKUP(N80,一覧工事検索,24,0),"") ->  | O85: =IFERROR( VLOOKUP(P80,一覧工事検索,24,0),"") -> 
G86: 一般管理費 | H86: =IFERROR( VLOOKUP(H80,一覧工事検索,25,0),"") ->  | I86: =IFERROR( VLOOKUP(J80,一覧工事検索,21,0),"") -> 1234624 | K86: =IFERROR( VLOOKUP(L80,一覧工事検索,25,0),"") ->  | M86: =IFERROR( VLOOKUP(N80,一覧工事検索,25,0),"") ->  | O86: =IFERROR( VLOOKUP(P80,一覧工事検索,25,0),"") -> 
G87: 設計金額 | H87: =IFERROR( VLOOKUP(H80,一覧工事検索,14,0),"") ->  | I87: =IFERROR( VLOOKUP(J80,一覧工事検索,11,0),"") -> 7443000 | K87: =IFERROR( VLOOKUP(L80,一覧工事検索,14,0),"") ->  | M87: =IFERROR( VLOOKUP(N80,一覧工事検索,14,0),"") ->  | O87: =IFERROR( VLOOKUP(P80,一覧工事検索,14,0),"") -> 
G88: 公表予定金額 | H88: =IFERROR( VLOOKUP(H81,一覧工事検索,14,0),"") ->  | I88: =IFERROR( VLOOKUP(J80,一覧工事検索,10,0),"") -> 7440000 | K88: =IFERROR( VLOOKUP(L81,一覧工事検索,14,0),"") ->  | M88: =IFERROR( VLOOKUP(N81,一覧工事検索,14,0),"") ->  | O88: =IFERROR( VLOOKUP(P81,一覧工事検索,14,0),"") -> 
G89: 最低制限価格 | H89: =IFERROR( VLOOKUP(H80,一覧工事検索,17,0),"") ->  | I89: =IFERROR( VLOOKUP(J80,一覧工事検索,14,0),"") -> 6507000 | K89: =IFERROR( VLOOKUP(L80,一覧工事検索,17,0),"") ->  | M89: =IFERROR( VLOOKUP(N80,一覧工事検索,17,0),"") ->  | O89: =IFERROR( VLOOKUP(P80,一覧工事検索,17,0),"") -> 
G90: 落札金額 | H90: =IFERROR( VLOOKUP(H80,一覧工事検索,32,0),"") ->  | I90: =IFERROR( VLOOKUP(J80,一覧工事検索,32,0),"") ->  | K90: =IFERROR( VLOOKUP(L80,一覧工事検索,32,0),"") ->  | M90: =IFERROR( VLOOKUP(N80,一覧工事検索,32,0),"") ->  | O90: =IFERROR( VLOOKUP(P80,一覧工事検索,32,0),"") -> 
G91: 開札年月日 | H91: =IFERROR( VLOOKUP(H80,一覧工事検索,4,0),"") ->  | I91: =IFERROR( VLOOKUP(J80,一覧工事検索,4,0),"") -> 2016-04-15 | K91: =IFERROR( VLOOKUP(L80,一覧工事検索,4,0),"") ->  | M91: =IFERROR( VLOOKUP(N80,一覧工事検索,4,0),"") ->  | O91: =IFERROR( VLOOKUP(P80,一覧工事検索,4,0),"") -> 
G92: 入札参加数 | H92: =IFERROR( VLOOKUP(H80,一覧工事検索,37,0),"") ->  | I92: =IFERROR( VLOOKUP(J80,一覧工事検索,37,0),"") ->  | K92: =IFERROR( VLOOKUP(L80,一覧工事検索,37,0),"") ->  | M92: =IFERROR( VLOOKUP(N80,一覧工事検索,37,0),"") ->  | O92: =IFERROR( VLOOKUP(P80,一覧工事検索,37,0),"") -> 
G93: 現場管理費のα値 | H93: =IFERROR( IF(VLOOKUP(H80,一覧工事検索,21,0)=0,VLOOKUP(H80,一覧工事検索,20,0),VLOOKUP(H80,一覧工事検索,21,0)),"") ->  | I93: =IFERROR( IF(VLOOKUP(J80,一覧工事検索,17,0)=0,VLOOKUP(J80,一覧工事検索,17,0),VLOOKUP(J80,一覧工事検索,17,0)),"") -> 1.042496485 | K93: =IFERROR( IF(VLOOKUP(L80,一覧工事検索,21,0)=0,VLOOKUP(L80,一覧工事検索,20,0),VLOOKUP(L80,一覧工事検索,21,0)),"") ->  | M93: =IFERROR( IF(VLOOKUP(N80,一覧工事検索,21,0)=0,VLOOKUP(N80,一覧工事検索,20,0),VLOOKUP(N80,一覧工事検索,21,0)),"") ->  | O93: =IFERROR( IF(VLOOKUP(P80,一覧工事検索,21,0)=0,VLOOKUP(P80,一覧工事検索,20,0),VLOOKUP(P80,一覧工事検索,21,0)),"") -> 

Sheet 条件表 (hidden)
A2: 1:河川・道路構造物工事
A3: 2:海岸工事
A4: 3:道路改良工事
A5: 4:鋼橋架設工事
A6: 5:PC橋工事
A7: 6:舗装工事
A8: 7:砂防・地すべり等工事
A9: 8:公園工事
A10: 9:電線共同溝工事
A11: 10:情報BOX工事
A12: 11:道路維持工事
A13: 12:河川維持工事
A14: 13:共同溝等(1)工事
A15: 14:共同溝等(2)工事
A16: 15:トンネル工事
A17: 16:下水道工事(1)
A18: 17:下水道工事(2)
A19: 18:下水道工事(3)
A20: 19:コンクリートダム工事
A21: 20:フィルダム工事
A44: 発注者 | B44: 京都府 | C44: 260000
B45: 京都市 | C45: 1009
B46: 亀岡市 | C46: 2064
B47: 南丹市 | C47: 2137
A49: 歩掛 | B49: 一般土木 | C49: A
B50: 農業 | C50: N
B51: 水産 | C51: S
B52: 治山・林道 | C52: T
A54: 入力方式 | B54: 手動 | C54: 1
B55: 読み込み | C55: 2
B56: ガイヤー | C56: 3
B57: REAL | C57: 4
B60: 標準設計,合冊設計,点在設計,合冊+点在設計
A63: 計算区分 | B63: 標準設計 | C63: H
B64: 自動 | C64: O
B65: 合冊設計 | C65: G
B66: 点在設計 | C66: D
B67: 点在設計H284 | C67: F
A70: 数値補正 | B70: 標準 | C70: 0
B71: 千円四捨五入 | C71: -999
B72: 千円円止め | C72: -3
A74: 契約保証金免除金額 | B74: 自動 | C74: 5000000
B75: 500万円 | C75: 5000000
B76: 300万円 | C76: 3000000
B77: 0円 | C77: 0
B78: 個別に設定
B79: 有
B80: 無
A83: α値 | B83: 0.96
B84: 0.97
B85: 0.98
B86: 0.99
B87: 1
B88: 1.01
B89: 1.02
B90: 1.03
B91: 1.04
B92: 1.041
B93: 1.05
B94: 1.06
B95: 任意値
A97: イメージアップ経費_率計算分 | B97: 計上する
B98: 計上しない
A104: 保証の方法
B105: ケース1
B106: 有
B107: 無
B108: 合冊
B109: 自動
A112: 工事価格算出ケース
B113: 千円止め
B114: 端数有
B115: 一括最低限計算
B116: 自動
A118: 工事費目毎算出ケース
B119: 千円止め
B120: 端数有
B121: 自動
E123: 一般管理費率 | G123: 最低制限価格
G124: 直接工事費計 | H124: 共通仮設費計 | I124: 現場管理費計 | J124: 一般管理費計
A125: 諸経費適用日 | B125: 2015/4/1以前 | D125: 0.1438
B126: 2015-04-01 | C126: 現場管理費 一般管理費 共通仮設等 市街地補正 | G126: 0.95 | H126: 0.9 | I126: 0.8 | J126: 0.3
B127: 2015-10-01 | C127: 諸経費 | D127: 0.2029 | E127: -4.63586 | F127: 51.34242 | G127: 0.95 | H127: 0.9 | I127: 0.8 | J127: 0.55
B128: 2016-04-01 | C128: 調査基準価格及び最低制限価格について一部改正 | D128: 0.2029 | E128: -4.63586 | F128: 51.34242 | G128: 0.95 | H128: 0.9 | I128: 0.9 | J128: 0.55
B129: 2017-04-01 | C129: 調査基準価格及び最低制限価格について一部改正 | D129: 0.2029 | E129: -4.63586 | F129: 51.34242 | G129: 0.97 | H129: 0.9 | I129: 0.9 | J129: 0.55
A131: 経費補正条件 | B131: 影響を受ける | E131: 0.015 | F131: 0.01
B132: 影響を受けない
B133: 山間僻地及び離島 | E133: 0.01 | F133: 0.005
B134: 市街地 | E134: 0.02 | F134: 0.015
E136: 共通仮設費 | F136: 現場管理費
A137: 経費補正条件2 | B137: 補正無
B138: 一般交通影響有り① | E138: 1.3 | F138: 1.1
B139: 一般交通影響有り② | E139: 1.2 | F139: 1.1
B140: 市街地 一般交通の影響なし | E140: 1.2 | F140: 1.1
B141: 山間僻地及び離島 | E141: 1.3 | F141: 1
B142: 大都市①
B143: 大都市②
A155: ランダム係数 1.005 | B155: 1
B156: 1.001
B157: 1.002
B158: 1.003
B159: 1.004
B160: 1.005
B161: 1.006
B162: 1.007
B163: 1.008
B164: 1.009
B165: 1.01

Sheet 最低制限価格算出結果 (hidden)
L3: =IF(G45="点在設計","点在経費計算書",IF(G45="合冊設計","合冊経費計算書",IF(G45="合算点在計算","合算点在経費計算書","経費計算書"))) -> 経費計算書 | R3: verH291001
J4: 工事箇所名 | L4: =IFERROR(最低制限価格!E2,"") -> 0 | R4: =IF(I45="Ｋ","京都市 最低制限価格一覧",G45) -> 
R5: この計算結果はシミュレーションであり金額を保証するものではありません。
H6: =IF(手動入力!D40>0,"",IF(手動入力!D33>0,"",IF(N43>0,,"一般管理費対象額を入力"))) ->  | J6: 管理番号 | L6: =IF(N43>0,N43,手動入力!H47) -> 0 | N6: =IF(OR(手動入力!E2=L4,手動入力!E2=""),"",IF(L4="","","工事名が相違しています")) ->  | R6: =IF(I45="Ｋ","ランダム係数","α値") ->  | S6: ＊注）参考 最低制限価格 | T6: 摘要
J7: 直接工事費計 | L7: =最低制限価格!G8 -> 0 | R7: 0.96 | S7: =IF($G$45="合算点在計算",ROUNDDOWN($L$7*0.95+$L$8*0.9+$L$9*R7*0.9+$L$10*0.55,-3), 最低制限価格!Z22) ->  | T7: =IF($O$16=R7,"計算値","") -> 
J8: 共通仮設費計 | L8: =最低制限価格!G9 -> 0 | R8: 0.97 | S8: =IF($G$45="合算点在計算",ROUNDDOWN($L$7*0.95+$L$8*0.9+$L$9*R8*0.9+$L$10*0.55,-3), 最低制限価格!Z23) ->  | T8: =IF($O$16=R8,"計算値","") -> 
G9: =手動入力!D40 ->  | J9: 現場管理費 | L9: =最低制限価格!G10 -> 0 | R9: 0.98 | S9: =IF($G$45="合算点在計算",ROUNDDOWN($L$7*0.95+$L$8*0.9+$L$9*R9*0.9+$L$10*0.55,-3), 最低制限価格!Z24) ->  | T9: =IF($O$16=R9,"計算値","") -> 
J10: 一般管理費 | L10: =J38 ->  | R10: 0.99 | S10: =IF($G$45="合算点在計算",ROUNDDOWN($L$7*0.95+$L$8*0.9+$L$9*R10*0.9+$L$10*0.55,-3), 最低制限価格!Z25) ->  | T10: =IF($O$16=R10,"計算値","") -> 
J11: 工事価格 | L11: =最低制限価格!G16 ->  | N11: 諸経費等適用日 | O11: 2016-04-01 | R11: 1 | S11: =IF($G$45="合算点在計算",ROUNDDOWN($L$7*0.95+$L$8*0.9+$L$9*R11*0.9+$L$10*0.55,-3), 最低制限価格!Z26) -> 
R12: 1.01 | S12: =IF($G$45="合算点在計算",ROUNDDOWN($L$7*0.95+$L$8*0.9+$L$9*R12*0.9+$L$10*0.55,-3), 最低制限価格!Z27) ->  | T12: =IF($O$16=R12,"計算値","") -> 
J13: 入札工事価格 | L13: =J40 -> 1188 | N13: ②予定価格（公表） | O13: =IF(L43>0,L43,Q44) -> 24870000 | Q13: 積算-公表 | R13: 1.02 | S13: =IF($G$45="合算点在計算",ROUNDDOWN($L$7*0.95+$L$8*0.9+$L$9*R13*0.9+$L$10*0.55,-3), 最低制限価格!Z28) -> 
Q14: =IFERROR(J39-O13,0) -> 0 | R14: 1.03 | S14: =IF($G$45="合算点在計算",ROUNDDOWN($L$7*0.95+$L$8*0.9+$L$9*R14*0.9+$L$10*0.55,-3), 最低制限価格!Z29) ->  | T14: 計算値
J15: 処分費等を考慮 | L15: 標準 | N15: 現場管理費集計 | O15: 標準 | R15: 1.04 | S15: =IF($G$45="合算点在計算",ROUNDDOWN($L$7*0.95+$L$8*0.9+$L$9*R15*0.9+$L$10*0.55,-3), 最低制限価格!Z30) -> 
J16: 契約保証金免除金額 | L16: 自動 | M16: =IF(OR(L16="300万円",L16="0円",L16="自動"),"","未対応") ->  | N16: 現場管理費のα値 | O16: 1.03 | P16: 各費目毎処理 | Q16: 自動 | R16: 1.041 | S16: =IF($G$45="合算点在計算",ROUNDDOWN($L$7*0.95+$L$8*0.9+$L$9*R16*0.9+$L$10*0.55,-3), 最低制限価格!Z31) -> 
J17: 一般管理費の係数 | L17: =VLOOKUP(O11,諸経費,9,1) ->  | N17: 現場管理費 | O17: 標準 | P17: 入札価格算出ケース | Q17: 一括最低限計算 | R17: 1.05 | S17: =IF($G$45="合算点在計算",ROUNDDOWN($L$7*0.95+$L$8*0.9+$L$9*R17*0.9+$L$10*0.55,-3), 最低制限価格!Z32) -> 
C18: 合算点在計算 | R18: 1.06 | S18: =IF($G$45="合算点在計算",ROUNDDOWN($L$7*0.95+$L$8*0.9+$L$9*R18*0.9+$L$10*0.55,-3), 最低制限価格!Z33) -> 
G20: 工区名 | J20: 合計 | K20: =仮想工事!I7 -> ① | L20: =仮想工事!J7 -> 3333 | M20: =仮想工事!K7 -> 333 | N20: =仮想工事!L7 ->  | O20: =仮想工事!M7 ->  | P20: =仮想工事!N7 ->  | Q20: =仮想工事!O7 ->  | R20: =仮想工事!P7 ->  | S20: =仮想工事!Q7 -> 77777777 | T20: =仮想工事!R7 -> 99999 | U20: =仮想工事!S7 -> 0 | V20: =仮想工事!T7 -> 0
G21: 直接工事費 | J21: =SUM(K21:V21) -> 0 | K21: =IF($G$45="合算点在計算",仮想工事!I30,仮想工事!I15) -> 0 | L21: =IF($G$45="合算点在計算",仮想工事!J30,仮想工事!J15) -> 0 | M21: =IF($G$45="合算点在計算",仮想工事!K30,仮想工事!K15) -> 0 | N21: =IF($G$45="合算点在計算",仮想工事!L30,仮想工事!L15) -> 0 | O21: =IF($G$45="合算点在計算",仮想工事!M30,仮想工事!M15) -> 0 | P21: =IF($G$45="合算点在計算",仮想工事!N30,仮想工事!N15) -> 0 | Q21: =IF($G$45="合算点在計算",仮想工事!O30,仮想工事!O15) -> 0 | R21: =IF($G$45="合算点在計算",仮想工事!P30,仮想工事!P15) -> 0 | S21: =IF($G$45="合算点在計算",仮想工事!Q30,仮想工事!Q15) -> 0 | T21: =IF($G$45="合算点在計算",仮想工事!R30,仮想工事!R15) -> 0 | U21: =IF($G$45="合算点在計算",仮想工事!S30,仮想工事!S15) -> 0 | V21: =IF($G$45="合算点在計算",仮想工事!T30,仮想工事!T15) -> 0
G22: 共通仮設費計 | J22: =SUM(K22:V22) -> 0 | K22: =IF($G$45="合算点在計算",仮想工事!I31,仮想工事!I16) -> 0 | L22: =IF($G$45="合算点在計算",仮想工事!J31,仮想工事!J16) -> 0 | M22: =IF($G$45="合算点在計算",仮想工事!K31,仮想工事!K16) -> 0 | N22: =IF($G$45="合算点在計算",仮想工事!L31,仮想工事!L16) -> 0 | O22: =IF($G$45="合算点在計算",仮想工事!M31,仮想工事!M16) -> 0 | P22: =IF($G$45="合算点在計算",仮想工事!N31,仮想工事!N16) -> 0 | Q22: =IF($G$45="合算点在計算",仮想工事!O31,仮想工事!O16) -> 0 | R22: =IF($G$45="合算点在計算",仮想工事!P31,仮想工事!P16) -> 0 | S22: =IF($G$45="合算点在計算",仮想工事!Q31,仮想工事!Q16) -> 0 | T22: =IF($G$45="合算点在計算",仮想工事!R31,仮想工事!R16) -> 0 | U22: =IF($G$45="合算点在計算",仮想工事!S31,仮想工事!S16) -> 0 | V22: =IF($G$45="合算点在計算",仮想工事!T31,仮想工事!T16) -> 0
G23: 現場管理費 | J23: =SUM(K23:V23) -> 0 | K23: =IF($G$45="合算点在計算",仮想工事!I32,仮想工事!I17) -> 0 | L23: =IF($G$45="合算点在計算",仮想工事!J32,仮想工事!J17) -> 0 | M23: =IF($G$45="合算点在計算",仮想工事!K32,仮想工事!K17) -> 0 | N23: =IF($G$45="合算点在計算",仮想工事!L32,仮想工事!L17) -> 0 | O23: =IF($G$45="合算点在計算",仮想工事!M32,仮想工事!M17) -> 0 | P23: =IF($G$45="合算点在計算",仮想工事!N32,仮想工事!N17) -> 0 | Q23: =IF($G$45="合算点在計算",仮想工事!O32,仮想工事!O17) -> 0 | R23: =IF($G$45="合算点在計算",仮想工事!P32,仮想工事!P17) -> 0 | S23: =IF($G$45="合算点在計算",仮想工事!Q32,仮想工事!Q17) -> 0 | T23: =IF($G$45="合算点在計算",仮想工事!R32,仮想工事!R17) -> 0 | U23: =IF($G$45="合算点在計算",仮想工事!S32,仮想工事!S17) -> 0 | V23: =IF($G$45="合算点在計算",仮想工事!T32,仮想工事!T17) -> 0
G24: 工事原価 | J24: =SUM(K24:V24) -> 0 | K24: =IF($G$45="合算点在計算",仮想工事!I33,仮想工事!I18) -> 0 | L24: =IF($G$45="合算点在計算",仮想工事!J33,仮想工事!J18) -> 0 | M24: =IF($G$45="合算点在計算",仮想工事!K33,仮想工事!K18) -> 0 | N24: =IF($G$45="合算点在計算",仮想工事!L33,仮想工事!L18) -> 0 | O24: =IF($G$45="合算点在計算",仮想工事!M33,仮想工事!M18) -> 0 | P24: =IF($G$45="合算点在計算",仮想工事!N33,仮想工事!N18) -> 0 | Q24: =IF($G$45="合算点在計算",仮想工事!O33,仮想工事!O18) -> 0 | R24: =IF($G$45="合算点在計算",仮想工事!P33,仮想工事!P18) -> 0 | S24: =IF($G$45="合算点在計算",仮想工事!Q33,仮想工事!Q18) -> 0 | T24: =IF($G$45="合算点在計算",仮想工事!R33,仮想工事!R18) -> 0 | U24: =IF($G$45="合算点在計算",仮想工事!S33,仮想工事!S18) -> 0 | V24: =IF($G$45="合算点在計算",仮想工事!T33,仮想工事!T18) -> 0
G25: 一般管理費対象額 | J25: =SUM(K25:V25) -> 0 | K25: =IF($G$45="合算点在計算",仮想工事!I35,仮想工事!$I$19) -> 0 | L25: =IF($G$45="合算点在計算",仮想工事!J35,仮想工事!$I$19) -> 0 | M25: =IF($G$45="合算点在計算",仮想工事!K35,仮想工事!$I$19) -> 0 | N25: =IF($G$45="合算点在計算",仮想工事!L35,仮想工事!$I$19) -> 0 | O25: =IF($G$45="合算点在計算",仮想工事!M35,仮想工事!$I$19) -> 0 | P25: =IF($G$45="合算点在計算",仮想工事!N35,仮想工事!$I$19) -> 0 | Q25: =IF($G$45="合算点在計算",仮想工事!O35,仮想工事!$I$19) -> 0 | R25: =IF($G$45="合算点在計算",仮想工事!P35,仮想工事!$I$19) -> 0 | S25: =IF($G$45="合算点在計算",仮想工事!Q35,仮想工事!$I$19) -> 0 | T25: =IF($G$45="合算点在計算",仮想工事!R35,仮想工事!$I$19) -> 0 | U25: =IF($G$45="合算点在計算",仮想工事!S35,仮想工事!$I$19) -> 0 | V25: =IF($G$45="合算点在計算",仮想工事!T35,仮想工事!$I$19) -> 0
G26: 契約保証金 注)500万円が基準 | J26: 手動調整 | K26: =IF(K25=0,0,手動入力!E36) -> 0 | L26: =IF(L25=0,0,手動入力!F36) -> 0 | M26: =IF(M25=0,0,手動入力!G36) -> 0 | N26: =IF(N25=0,0,手動入力!H36) -> 0 | O26: =IF(O25=0,0,手動入力!I36) -> 0 | P26: =IF(P25=0,0,手動入力!J36) -> 0 | Q26: =IF(Q25=0,0,手動入力!K36) -> 0 | R26: =IF(R25=0,0,手動入力!L36) -> 0 | S26: =IF(S25=0,0,手動入力!M36) -> 0 | T26: =IF(T25=0,0,手動入力!N36) -> 0 | U26: =IF(U25=0,0,手動入力!O36) -> 0 | V26: =IF(V25=0,0,手動入力!P36) -> 0
J27: 免除金額 | K27: =IF(K25=0,0,手動入力!E37) -> 0 | L27: =IF(L25=0,0,手動入力!F37) -> 0 | M27: =IF(M25=0,0,手動入力!G37) -> 0 | N27: =IF(N25=0,0,手動入力!H37) -> 0 | O27: =IF(O25=0,0,手動入力!I37) -> 0 | P27: =IF(P25=0,0,手動入力!J37) -> 0 | Q27: =IF(Q25=0,0,手動入力!K37) -> 0 | R27: =IF(R25=0,0,手動入力!L37) -> 0 | S27: =IF(S25=0,0,手動入力!M37) -> 0 | T27: =IF(T25=0,0,手動入力!N37) -> 0 | U27: =IF(U25=0,0,手動入力!O37) -> 0 | V27: =IF(V25=0,0,手動入力!P37) -> 0
J28: 契約保証率 | K28: =IF(K25>0,IF(K26="ケース1",0.0004,IF(K24+K25*$I$29<5000000,0,0.0004)),0) -> 0 | L28: =IF(L25>0,IF(L26="ケース1",0.0004,IF(L24+L25*$I$29<5000000,0,0.0004)),0) -> 0 | M28: 0 | N28: 0 | O28: 0 | P28: 0 | Q28: 0 | R28: 0 | S28: =IF(S25>0,IF(S26="ケース1",0.0004,IF(S24+S25*$I$29<5000000,0,0.0004)),0) -> 0 | T28: 0 | U28: 0 | V28: 0
G29: 一般管理費 | I29: =IF(J25=0,"",仮想工事!E42) ->  | J29: =SUM(K29:V29) -> 0 | K29: =-(K24+ROUNDDOWN(K25*最低制限価格算出結果!$I$31,0))+ROUNDDOWN(K24+ROUNDDOWN(K25*最低制限価格算出結果!$I$31,0),-3)+ROUNDDOWN(K25*最低制限価格算出結果!$I$31,0) -> 0 | L29: =-(L24+ROUNDDOWN(L25*最低制限価格算出結果!$I$31,0))+ROUNDDOWN(L24+ROUNDDOWN(L25*最低制限価格算出結果!$I$31,0),-3)+ROUNDDOWN(L25*最低制限価格算出結果!$I$31,0) -> 0 | M29: =-(M24+ROUNDDOWN(M25*最低制限価格算出結果!$I$31,0))+ROUNDDOWN(M24+ROUNDDOWN(M25*最低制限価格算出結果!$I$31,0),-3)+ROUNDDOWN(M25*最低制限価格算出結果!$I$31,0) -> 0 | N29: =-(N24+ROUNDDOWN(N25*最低制限価格算出結果!$I$31,0))+ROUNDDOWN(N24+ROUNDDOWN(N25*最低制限価格算出結果!$I$31,0),-3)+ROUNDDOWN(N25*最低制限価格算出結果!$I$31,0) -> 0 | O29: =-(O24+ROUNDDOWN(O25*最低制限価格算出結果!$I$31,0))+ROUNDDOWN(O24+ROUNDDOWN(O25*最低制限価格算出結果!$I$31,0),-3)+ROUNDDOWN(O25*最低制限価格算出結果!$I$31,0) -> 0 | P29: =-(P24+ROUNDDOWN(P25*最低制限価格算出結果!$I$31,0))+ROUNDDOWN(P24+ROUNDDOWN(P25*最低制限価格算出結果!$I$31,0),-3)+ROUNDDOWN(P25*最低制限価格算出結果!$I$31,0) -> 0 | Q29: =-(Q24+ROUNDDOWN(Q25*最低制限価格算出結果!$I$31,0))+ROUNDDOWN(Q24+ROUNDDOWN(Q25*最低制限価格算出結果!$I$31,0),-3)+ROUNDDOWN(Q25*最低制限価格算出結果!$I$31,0) -> 0 | R29: =-(R24+ROUNDDOWN(R25*最低制限価格算出結果!$I$31,0))+ROUNDDOWN(R24+ROUNDDOWN(R25*最低制限価格算出結果!$I$31,0),-3)+ROUNDDOWN(R25*最低制限価格算出結果!$I$31,0) -> 0 | S29: =-(S24+ROUNDDOWN(S25*最低制限価格算出結果!$I$31,0))+ROUNDDOWN(S24+ROUNDDOWN(S25*最低制限価格算出結果!$I$31,0),-3)+ROUNDDOWN(S25*最低制限価格算出結果!$I$31,0) -> 0 | T29: =-(T24+ROUNDDOWN(T25*最低制限価格算出結果!$I$31,0))+ROUNDDOWN(T24+ROUNDDOWN(T25*最低制限価格算出結果!$I$31,0),-3)+ROUNDDOWN(T25*最低制限価格算出結果!$I$31,0) -> 0 | U29: =-(U24+ROUNDDOWN(U25*最低制限価格算出結果!$I$31,0))+ROUNDDOWN(U24+ROUNDDOWN(U25*最低制限価格算出結果!$I$31,0),-3)+ROUNDDOWN(U25*最低制限価格算出結果!$I$31,0) -> 0 | V29: =-(V24+ROUNDDOWN(V25*最低制限価格算出結果!$I$31,0))+ROUNDDOWN(V24+ROUNDDOWN(V25*最低制限価格算出結果!$I$31,0),-3)+ROUNDDOWN(V25*最低制限価格算出結果!$I$31,0) -> 0
G30: 契約保証補正 | I30: =IF(J25=0,"",0.0004) ->  | J30: =IF($G$45="点在設計H284",I30*$J$25,SUM(K30:V30)) ->  | K30: =IF(OR($G$45="合算点在計算",$G$45="点在設計H284"),0,仮想工事!I21) ->  | L30: =IF(OR($G$45="合算点在計算",$G$45="点在設計H284"),0,仮想工事!J21) ->  | M30: =IF(OR($G$45="合算点在計算",$G$45="点在設計H284"),0,仮想工事!K21) ->  | N30: =IF(OR($G$45="合算点在計算",$G$45="点在設計H284"),0,仮想工事!L21) ->  | O30: =IF(OR($G$45="合算点在計算",$G$45="点在設計H284"),0,仮想工事!M21) ->  | P30: =IF(OR($G$45="合算点在計算",$G$45="点在設計H284"),0,仮想工事!N21) ->  | Q30: =IF(OR($G$45="合算点在計算",$G$45="点在設計H284"),0,仮想工事!O21) ->  | R30: =IF(OR($G$45="合算点在計算",$G$45="点在設計H284"),0,仮想工事!P21) ->  | S30: =IF(OR($G$45="合算点在計算",$G$45="点在設計H284"),0,仮想工事!Q21) ->  | T30: =IF(OR($G$45="合算点在計算",$G$45="点在設計H284"),0,仮想工事!R21) ->  | U30: =IF(OR($G$45="合算点在計算",$G$45="点在設計H284"),0,仮想工事!S21) ->  | V30: =IF(OR($G$45="合算点在計算",$G$45="点在設計H284"),0,仮想工事!T21) -> 
G31: 調整前一般管理費計 | I31: =SUM(I29:I30) -> 0 | J31: =SUM(J29:J30) ->  | K31: =SUM(K29:K30) ->  | L31: =SUM(L29:L30) -> 
G32: 標準設計 | I32: H | J32: =SUM(K32:V32) -> 0
G33: 自動 | I33: O | J33: 0
G34: 合冊設計 | I34: G | J34: 0
G35: 点在設計 | I35: D | J35: 0
G36: 点在設計H284 | I36: F | J36: 0
G37: 一般管理費調整 | K37: =ROUNDDOWN(K24+K31,-3)-ROUNDDOWN(K24+K31,0) ->  | L37: =ROUNDDOWN(L24+L31,-3)-ROUNDDOWN(L24+L31,0) -> 
G38: 一般管理費計 | K38: =K31+K37 -> 
G39: ①積算工事価格 | K39: =K24+K38 -> 
G40: ="③入札工事価格("&O16&")" -> ③入札工事価格(1.03) | J40: 1188 | K40: =IF($G$45="合算点在計算",IF($G$45="点在設計H284",0,IF($G$45="合算点在計算",ROUNDDOWN(K21*0.95+K22*0.9+K23*0.9*$O$16+K38*0.55,-3),最低制限価格!J16)),99) -> 99 | L40: =IF($G$45="合算点在計算",IF($G$45="点在設計H284",0,IF($G$45="合算点在計算",ROUNDDOWN(L21*0.95+L22*0.9+L23*0.9*$O$16+L38*0.55,-3),最低制限価格!K16)),99) -> 99 | M40: =IF($G$45="合算点在計算",IF($G$45="点在設計H284",0,IF($G$45="合算点在計算",ROUNDDOWN(M21*0.95+M22*0.9+M23*0.9*$O$16+M38*0.55,-3),最低制限価格!L16)),99) -> 99 | N40: =IF($G$45="合算点在計算",IF($G$45="点在設計H284",0,IF($G$45="合算点在計算",ROUNDDOWN(N21*0.95+N22*0.9+N23*0.9*$O$16+N38*0.55,-3),最低制限価格!M16)),99) -> 99 | O40: =IF($G$45="合算点在計算",IF($G$45="点在設計H284",0,IF($G$45="合算点在計算",ROUNDDOWN(O21*0.95+O22*0.9+O23*0.9*$O$16+O38*0.55,-3),最低制限価格!N16)),99) -> 99 | P40: =IF($G$45="合算点在計算",IF($G$45="点在設計H284",0,IF($G$45="合算点在計算",ROUNDDOWN(P21*0.95+P22*0.9+P23*0.9*$O$16+P38*0.55,-3),最低制限価格!O16)),99) -> 99 | Q40: =IF($G$45="合算点在計算",IF($G$45="点在設計H284",0,IF($G$45="合算点在計算",ROUNDDOWN(Q21*0.95+Q22*0.9+Q23*0.9*$O$16+Q38*0.55,-3),最低制限価格!P16)),99) -> 99 | R40: =IF($G$45="合算点在計算",IF($G$45="点在設計H284",0,IF($G$45="合算点在計算",ROUNDDOWN(R21*0.95+R22*0.9+R23*0.9*$O$16+R38*0.55,-3),最低制限価格!Q16)),99) -> 99 | S40: =IF($G$45="合算点在計算",IF($G$45="点在設計H284",0,IF($G$45="合算点在計算",ROUNDDOWN(S21*0.95+S22*0.9+S23*0.9*$O$16+S38*0.55,-3),最低制限価格!R16)),99) -> 99 | T40: =IF($G$45="合算点在計算",IF($G$45="点在設計H284",0,IF($G$45="合算点在計算",ROUNDDOWN(T21*0.95+T22*0.9+T23*0.9*$O$16+T38*0.55,-3),最低制限価格!S16)),99) -> 99 | U40: =IF($G$45="合算点在計算",IF($G$45="点在設計H284",0,IF($G$45="合算点在計算",ROUNDDOWN(U21*0.95+U22*0.9+U23*0.9*$O$16+U38*0.55,-3),最低制限価格!T16)),99) -> 99 | V40: =IF($G$45="合算点在計算",IF($G$45="点在設計H284",0,IF($G$45="合算点在計算",ROUNDDOWN(V21*0.95+V22*0.9+V23*0.9*$O$16+V38*0.55,-3),最低制限価格!U16)),99) -> 99
G43: 一般土木 | J43: ②予定価格（公表） | L43: 24870000 | M43: 管理番号 | O43: 検索結果 | P43: ①積算価格（公表） | Q43: =IFERROR(現場検索!C16,"") ->  | R43: 貴社応札金額 | S43: =IFERROR(現場検索!C37,"") -> 
G44: 手動 | J44: =IF(AND(Q44="",J39=0),"","①-②") ->  | L44: =IFERROR((IF(OR(Q44="",J39=0),J39-Q44,J39-Q44)),J39-L43) ->  | M44: =IF(AND(Q44="",J39=0),"","③-公表") ->  | N44: =IFERROR(Q45-J40,0) -> 0 | P44: ②予定価格（公表） | Q44: =IFERROR(現場検索!C15,"") ->  | R44: 開札日 | S44: =IFERROR(現場検索!C21,"") -> 
G45: 点在設計H284処分費入力 | I45: =VLOOKUP(G45,[1]計算条件!$B$63:$C$69,2,0) ->  | J45: 最低制限価格（公表） | P45: 最低制限価格（公表） | Q45: =IFERROR(現場検索!C17,"") ->  | R45: 一般管理費の係数 | S45: =IFERROR(現場検索!C19,"") -> 
J46: 落札金額 | P46: 落札金額 | Q46: =IFERROR(現場検索!C20,"") ->  | R46: 落札業者 | S46: =IFERROR(現場検索!C22,"") -> 
L48: 工事実績一覧表 | R48: =R3 -> verH291001
G49: 現場管理費のα係数決定に参考とした資料（合冊・点在設計等の場合は注意して下さい）
G50: 管理番号 | J50: H2805-142 | K50: =IFERROR( VLOOKUP(L50,一覧工事検索,2,0),"") -> 山城北 | L50: 281212-001 | M50: =IFERROR( VLOOKUP(N50,一覧工事検索,3,0),"") ->  | N50: H2805-138 | O50: =IFERROR( VLOOKUP(P50,一覧工事検索,3,0),"") ->  | P50: 2803-248 | Q50: =IFERROR( VLOOKUP(R50,一覧工事検索,3,0),"") ->  | R50: 2803-249 | S50: =IFERROR( VLOOKUP(T50,一覧工事検索,3,0),"") ->  | T50: 271111-59 | U50: =IFERROR( VLOOKUP(V50,一覧工事検索,3,0),"") ->  | V50: 271109-261
G51: 工事名 | J51: =IFERROR(VLOOKUP(J50,一覧工事検索,6,0),"") ->  | K51: =IFERROR(VLOOKUP(L50,一覧工事検索,6,0),"") -> 管内一円（長尾八幡線）地域振興道路工事 | M51: =IFERROR( VLOOKUP(N50,一覧工事検索,6,0),"") ->  | O51: =IFERROR( VLOOKUP(P50,一覧工事検索,6,0),"") ->  | Q51: =IFERROR( VLOOKUP(R50,一覧工事検索,6,0),"") ->  | S51: =IFERROR( VLOOKUP(T50,一覧工事検索,6,0),"") ->  | U51: =IFERROR( VLOOKUP(V50,一覧工事検索,6,0),"") -> 
G52: 個所名 | J52: =IFERROR( VLOOKUP(J50,一覧工事検索,8,0)&VLOOKUP(J50,一覧工事検索,9,0),"") ->  | K52: =IFERROR( VLOOKUP(L50,一覧工事検索,7,0)&VLOOKUP(L50,一覧工事検索,9,0),"") -> 八幡市八幡一の坪地内影響受ける | M52: =IFERROR( VLOOKUP(N50,一覧工事検索,8,0)&VLOOKUP(N50,一覧工事検索,9,0),"") ->  | O52: =IFERROR( VLOOKUP(P50,一覧工事検索,8,0)&VLOOKUP(P50,一覧工事検索,9,0),"") ->  | Q52: =IFERROR( VLOOKUP(R50,一覧工事検索,8,0)&VLOOKUP(R50,一覧工事検索,9,0),"") ->  | S52: =IFERROR( VLOOKUP(T50,一覧工事検索,8,0)&VLOOKUP(T50,一覧工事検索,9,0),"") ->  | U52: =IFERROR( VLOOKUP(V50,一覧工事検索,8,0)&VLOOKUP(V50,一覧工事検索,9,0),"") -> 
G53: 直接工事費 | J53: =IFERROR( VLOOKUP(J50,一覧工事検索,22,0),"") ->  | K53: =IFERROR( VLOOKUP(L50,一覧工事検索,18,0),"") -> 3442191 | M53: =IFERROR( VLOOKUP(N50,一覧工事検索,22,0),"") ->  | O53: =IFERROR( VLOOKUP(P50,一覧工事検索,22,0),"") ->  | Q53: =IFERROR( VLOOKUP(R50,一覧工事検索,22,0),"") ->  | S53: =IFERROR( VLOOKUP(T50,一覧工事検索,22,0),"") ->  | U53: =IFERROR( VLOOKUP(V50,一覧工事検索,22,0),"") -> 
G54: 共通仮設費計 | J54: =IFERROR( VLOOKUP(J50,一覧工事検索,23,0),"") ->  | K54: =IFERROR( VLOOKUP(L50,一覧工事検索,19,0),"") -> 980185 | M54: =IFERROR( VLOOKUP(N50,一覧工事検索,23,0),"") ->  | O54: =IFERROR( VLOOKUP(P50,一覧工事検索,23,0),"") ->  | Q54: =IFERROR( VLOOKUP(R50,一覧工事検索,23,0),"") ->  | S54: =IFERROR( VLOOKUP(T50,一覧工事検索,23,0),"") ->  | U54: =IFERROR( VLOOKUP(V50,一覧工事検索,23,0),"") -> 
G55: 現場管理費 | J55: =IFERROR( VLOOKUP(J50,一覧工事検索,24,0),"") ->  | K55: =IFERROR( VLOOKUP(L50,一覧工事検索,20,0),"") -> 1786000 | M55: =IFERROR( VLOOKUP(N50,一覧工事検索,24,0),"") ->  | O55: =IFERROR( VLOOKUP(P50,一覧工事検索,24,0),"") ->  | Q55: =IFERROR( VLOOKUP(R50,一覧工事検索,24,0),"") ->  | S55: =IFERROR( VLOOKUP(T50,一覧工事検索,24,0),"") ->  | U55: =IFERROR( VLOOKUP(V50,一覧工事検索,24,0),"") -> 
G56: 一般管理費 | J56: =IFERROR( VLOOKUP(J50,一覧工事検索,25,0),"") ->  | K56: =IFERROR( VLOOKUP(L50,一覧工事検索,21,0),"") -> 1234624 | M56: =IFERROR( VLOOKUP(N50,一覧工事検索,25,0),"") ->  | O56: =IFERROR( VLOOKUP(P50,一覧工事検索,25,0),"") ->  | Q56: =IFERROR( VLOOKUP(R50,一覧工事検索,25,0),"") ->  | S56: =IFERROR( VLOOKUP(T50,一覧工事検索,25,0),"") ->  | U56: =IFERROR( VLOOKUP(V50,一覧工事検索,25,0),"") -> 
G57: 設計金額 | J57: =IFERROR( VLOOKUP(J50,一覧工事検索,14,0),"") ->  | K57: =IFERROR( VLOOKUP(L50,一覧工事検索,11,0),"") -> 7443000 | M57: =IFERROR( VLOOKUP(N50,一覧工事検索,14,0),"") ->  | O57: =IFERROR( VLOOKUP(P50,一覧工事検索,14,0),"") ->  | Q57: =IFERROR( VLOOKUP(R50,一覧工事検索,14,0),"") ->  | S57: =IFERROR( VLOOKUP(T50,一覧工事検索,14,0),"") ->  | U57: =IFERROR( VLOOKUP(V50,一覧工事検索,14,0),"") -> 
G58: 公表予定金額 | J58: =IFERROR( VLOOKUP(J51,一覧工事検索,14,0),"") ->  | K58: =IFERROR( VLOOKUP(L50,一覧工事検索,10,0),"") -> 7440000 | M58: =IFERROR( VLOOKUP(N51,一覧工事検索,14,0),"") ->  | O58: =IFERROR( VLOOKUP(P51,一覧工事検索,14,0),"") ->  | Q58: =IFERROR( VLOOKUP(R51,一覧工事検索,14,0),"") ->  | S58: =IFERROR( VLOOKUP(T51,一覧工事検索,14,0),"") ->  | U58: =IFERROR( VLOOKUP(V51,一覧工事検索,14,0),"") -> 
G59: 最低制限価格 | J59: =IFERROR( VLOOKUP(J50,一覧工事検索,17,0),"") ->  | K59: =IFERROR( VLOOKUP(L50,一覧工事検索,14,0),"") -> 6507000 | M59: =IFERROR( VLOOKUP(N50,一覧工事検索,17,0),"") ->  | O59: =IFERROR( VLOOKUP(P50,一覧工事検索,17,0),"") ->  | Q59: =IFERROR( VLOOKUP(R50,一覧工事検索,17,0),"") ->  | S59: =IFERROR( VLOOKUP(T50,一覧工事検索,17,0),"") ->  | U59: =IFERROR( VLOOKUP(V50,一覧工事検索,17,0),"") -> 
G60: 落札金額 | J60: =IFERROR( VLOOKUP(J50,一覧工事検索,32,0),"") ->  | K60: =IFERROR( VLOOKUP(L50,一覧工事検索,32,0),"") ->  | M60: =IFERROR( VLOOKUP(N50,一覧工事検索,32,0),"") ->  | O60: =IFERROR( VLOOKUP(P50,一覧工事検索,32,0),"") ->  | Q60: =IFERROR( VLOOKUP(R50,一覧工事検索,32,0),"") ->  | S60: =IFERROR( VLOOKUP(T50,一覧工事検索,32,0),"") ->  | U60: =IFERROR( VLOOKUP(V50,一覧工事検索,32,0),"") -> 
G61: 開札年月日 | J61: =IFERROR( VLOOKUP(J50,一覧工事検索,4,0),"") ->  | K61: =IFERROR( VLOOKUP(L50,一覧工事検索,4,0),"") -> 2016-04-15 | M61: =IFERROR( VLOOKUP(N50,一覧工事検索,4,0),"") ->  | O61: =IFERROR( VLOOKUP(P50,一覧工事検索,4,0),"") ->  | Q61: =IFERROR( VLOOKUP(R50,一覧工事検索,4,0),"") ->  | S61: =IFERROR( VLOOKUP(T50,一覧工事検索,4,0),"") ->  | U61: =IFERROR( VLOOKUP(V50,一覧工事検索,4,0),"") -> 
G62: 入札参加数 | J62: =IFERROR( VLOOKUP(J50,一覧工事検索,37,0),"") ->  | K62: =IFERROR( VLOOKUP(L50,一覧工事検索,37,0),"") ->  | M62: =IFERROR( VLOOKUP(N50,一覧工事検索,37,0),"") ->  | O62: =IFERROR( VLOOKUP(P50,一覧工事検索,37,0),"") ->  | Q62: =IFERROR( VLOOKUP(R50,一覧工事検索,37,0),"") ->  | S62: =IFERROR( VLOOKUP(T50,一覧工事検索,37,0),"") ->  | U62: =IFERROR( VLOOKUP(V50,一覧工事検索,37,0),"") -> 
G63: 現場管理費のα値 | J63: =IFERROR( IF(VLOOKUP(J50,一覧工事検索,21,0)=0,VLOOKUP(J50,一覧工事検索,20,0),VLOOKUP(J50,一覧工事検索,21,0)),"") ->  | K63: =IFERROR( IF(VLOOKUP(L50,一覧工事検索,17,0)=0,VLOOKUP(L50,一覧工事検索,17,0),VLOOKUP(L50,一覧工事検索,17,0)),"") -> 1.042496485 | M63: =IFERROR( IF(VLOOKUP(N50,一覧工事検索,21,0)=0,VLOOKUP(N50,一覧工事検索,20,0),VLOOKUP(N50,一覧工事検索,21,0)),"") ->  | O63: =IFERROR( IF(VLOOKUP(P50,一覧工事検索,21,0)=0,VLOOKUP(P50,一覧工事検索,20,0),VLOOKUP(P50,一覧工事検索,21,0)),"") ->  | Q63: =IFERROR( IF(VLOOKUP(R50,一覧工事検索,21,0)=0,VLOOKUP(R50,一覧工事検索,20,0),VLOOKUP(R50,一覧工事検索,21,0)),"") ->  | S63: =IFERROR( IF(VLOOKUP(T50,一覧工事検索,21,0)=0,VLOOKUP(T50,一覧工事検索,20,0),VLOOKUP(T50,一覧工事検索,21,0)),"") ->  | U63: =IFERROR( IF(VLOOKUP(V50,一覧工事検索,21,0)=0,VLOOKUP(V50,一覧工事検索,20,0),VLOOKUP(V50,一覧工事検索,21,0)),"") -> 

Sheet 仮想工事 (hidden)
C2: 工事名 | D2: =IFERROR(手動入力!E2,VLOOKUP(最低制限価格算出結果!$L$6,一覧工事検索,6,0)) -> 0
C3: 算出価格最低制限価
C5: 費目名 | E5: 設計価格 | G5: 基準価格
A7: 合算点在計算 | E7: =IF(OR(最低制限価格算出結果!G44="手動",最低制限価格算出結果!G45="点在設計"),"仮装工事","設計価格") -> 仮装工事 | I7: =IF(手動入力!E$8=I8,"①"&手動入力!E$5&IF(手動入力!F8=I8,"②"&手動入力!F5&IF(手動入力!G8=I8,"③"&手動入力!G5&IF(手動入力!H8=I8,"④"&手動入力!H5&IF(手動入力!I8=I8,"⑤"&手動入力!I5&IF(手動入力!J8=I8,"⑥"&手動入力!J5&IF(手動入力!K8=I8,"⑦"&手動入力!K5&IF(手動入力!L8=I8,"⑧"&手動入力!L5&IF(手動入力!M8=I8,"⑨"&手動入力!M5&IF(手動入力!N8=I8,"⑩"&手動入力!N5&IF(手動入力!O8=I8,"⑪"&手動入力!O5&IF(手動入力!P8=I8,"⑫"&手動入力!P5,1212),1111),1010),999),888),777),666),555),444),333),IF(手動入力!F8<>I8,"",222))) -> ① | J7: =IF(手動入力!F8=J8,"②"&手動入力!F5&IF(手動入力!G8=J8,"③"&手動入力!G5&IF(手動入力!H8=J8,"④"&手動入力!H5&IF(手動入力!I8=J8,"⑤"&手動入力!I5&IF(手動入力!J8=J8,"⑥"&手動入力!J5&IF(手動入力!K8=J8,"⑦"&手動入力!K5&IF(手動入力!L8=J8,"⑧"&手動入力!L5&IF(手動入力!M8=J8,"⑨"&手動入力!M5&IF(手動入力!N8=J8,"⑩"&手動入力!N5&IF(手動入力!O8=J8,"⑪"&手動入力!O5&IF(手動入力!P8=J8,"⑫"&手動入力!P5,1212),1111),1010),999),888),777),666),555),44444),5333333),IF(手動入力!G8=J8,"③"&手動入力!G5&IF(手動入力!H8=J8,"④"&手動入力!H5&IF(手動入力!I8=J8,"⑤"&手動入力!I5&IF(手動入力!J8=J8,"⑥"&手動入力!J5&IF(手動入力!K8=J8,"⑦"&手動入力!K5&IF(手動入力!L8=J8,"⑧"&手動入力!L5&IF(手動入力!M8=J8,"⑨"&手動入力!M5&IF(手動入力!N8=J8,"⑩"&手動入力!N5&IF(手動入力!O8=J8,"⑪"&手動入力!O5&IF(手動入力!P8=J8,"⑫"&手動入力!P5,1212),1111),1010),999),888),777),666),555),444),3333)) -> 3333 | K7: =IF(手動入力!G8=K8,"③"&手動入力!G5&IF(手動入力!H8=K8,"④"&手動入力!H5&IF(手動入力!I8=K8,"⑤"&手動入力!I5&IF(手動入力!J8=K8,"⑥"&手動入力!J5&IF(手動入力!K8=K8,"⑦"&手動入力!K5&IF(手動入力!L8=K8,"⑧"&手動入力!L5&IF(手動入力!M8=K8,"⑨"&手動入力!M5&IF(手動入力!N8=K8,"⑩"&手動入力!N5&IF(手動入力!O8=K8,"⑪"&手動入力!O5&IF(手動入力!P8=K8,"⑫"&手動入力!P5,""),1011),1010),999),888),777),666),555),444),333) -> 333 | L7: =IF(手動入力!H$8=L8,"④"&手動入力!H$5,"") ->  | M7: =IF(手動入力!I$8=M8,"⑤"&手動入力!I$5,"") ->  | N7: =IF(手動入力!J$8=N8,"⑥"&手動入力!J$5,"") ->  | O7: =IF(手動入力!K$8=O8,"⑦"&手動入力!K$5,"") ->  | P7: =IF(手動入力!L$8=P8,"⑧"&手動入力!L$5,"") ->  | Q7: =IF(手動入力!M$8=Q8,"⑨"&手動入力!M$5&IF(手動入力!N$8=Q8,"⑩"&手動入力!N$5&IF(手動入力!O$8=Q8,"⑪"&手動入力!O$5&IF(手動入力!P$8=Q8,"⑫"&手動入力!P$5,""),4444444),555555),IF(手動入力!P8=Q8,"⑫"&手動入力!P$5,77777777)) -> 77777777 | R7: =IF(手動入力!N$8<=R8,IF(手動入力!N8=10,"⑩"&手動入力!N$5&IF(手動入力!O$8=R8,"⑪"&手動入力!O$8&IF(手動入力!P$8=R8,"⑫888"&手動入力!P$8,4444444),111),IF(手動入力!O8=R8,"⑪"&手動入力!O$5&"⑫"&手動入力!P$5,99999)),IF(手動入力!P8=R8,"⑫895"&手動入力!P$8,8888888)) -> 99999 | S7: =手動入力!O9 -> 0 | T7: =手動入力!P9 -> 0
I8: 1 | J8: 2 | K8: 3 | L8: 4 | M8: 5 | N8: 6 | O8: 7 | P8: 8 | Q8: 9 | R8: 10 | S8: 11 | T8: 12
E9: 率 | F9: 金額 | G9: 変換率 | H9: 金額 | I9: 設計金額① | J9: 設計金額② | K9: 設計金額③ | L9: 設計金額④ | M9: 設計金額⑤ | N9: 設計金額⑥ | O9: 設計金額⑦ | P9: 設計金額⑧ | Q9: 設計金額⑨ | R9: 設計金額⑩ | S9: 設計金額⑪ | T9: 設計金額⑫
C10: 読込DATA | I10: =現場検索!C23 ->  | J10: =現場検索!C24 ->  | K10: =現場検索!C25 ->  | L10: =現場検索!C26 ->  | M10: =現場検索!C27 ->  | N10: =現場検索!C28 ->  | O10: =現場検索!C29 ->  | P10: =現場検索!C30 ->  | Q10: =現場検索!C31 ->  | R10: =現場検索!C32 ->  | S10: =現場検索!C33 ->  | T10: =現場検索!C34 -> 
C11: 契約保証補正計算用 | I11: =手動入力!E35 -> 0 | J11: =手動入力!F35 -> 0 | K11: =手動入力!G35 -> 0 | L11: =手動入力!H35 -> 0 | M11: =手動入力!I35 -> 0 | N11: =手動入力!J35 -> 0 | O11: =手動入力!K35 -> 0 | P11: =手動入力!L35 -> 0 | Q11: =手動入力!M35 -> 0 | R11: =手動入力!N35 -> 0 | S11: =手動入力!O35 -> 0 | T11: =手動入力!P35 -> 0
I12: =最低制限価格算出結果!K27 -> 0 | J12: =最低制限価格算出結果!L27 -> 0 | K12: =最低制限価格算出結果!M27 -> 0 | L12: =最低制限価格算出結果!N27 -> 0 | M12: =最低制限価格算出結果!O27 -> 0 | N12: =最低制限価格算出結果!P27 -> 0 | O12: =最低制限価格算出結果!Q27 -> 0 | P12: =最低制限価格算出結果!R27 -> 0 | Q12: =最低制限価格算出結果!S27 -> 0 | R12: =最低制限価格算出結果!T27 -> 0 | S12: =最低制限価格算出結果!U27 -> 0 | T12: =最低制限価格算出結果!V27 -> 0
C13: 契約保証補正に係る処理 | I13: =IF(OR(I12="0円",(I18+I20+I19*0.0004)>5000000),0.0004,) ->  | J13: =IF(OR(J12="0円",(J11+J20+J11*0.0004)>5000000),0.0004,0) ->  | K13: =IF(OR(K12="0円",(K11+K20+K11*0.0004)>5000000),0.0004,0) -> 
C15: 直接工事費計 | F15: =SUM(I15:T15) -> 0 | I15: =IFERROR(VALUE(LEFT(I10,SEARCH(" ",I10))),手動入力!E10) -> 0 | J15: =IFERROR(VALUE(LEFT(J10,SEARCH(" ",J10))),手動入力!F10) -> 0 | K15: =IFERROR(VALUE(LEFT(K10,SEARCH(" ",K10))),手動入力!G10) -> 0 | L15: =IFERROR(VALUE(LEFT(L10,SEARCH(" ",L10))),手動入力!H10) -> 0 | M15: =IFERROR(VALUE(LEFT(M10,SEARCH(" ",M10))),手動入力!I10) -> 0 | N15: =IFERROR(VALUE(LEFT(N10,SEARCH(" ",N10))),手動入力!J10) -> 0 | O15: =IFERROR(VALUE(LEFT(O10,SEARCH(" ",O10))),手動入力!K10) -> 0 | P15: =IFERROR(VALUE(LEFT(P10,SEARCH(" ",P10))),手動入力!L10) -> 0 | Q15: =IFERROR(VALUE(LEFT(Q10,SEARCH(" ",Q10))),手動入力!M10) -> 0 | R15: =IFERROR(VALUE(LEFT(R10,SEARCH(" ",R10))),手動入力!N10) -> 0 | S15: =IFERROR(VALUE(LEFT(S10,SEARCH(" ",S10))),手動入力!O10) -> 0 | T15: =IFERROR(VALUE(LEFT(T10,SEARCH(" ",T10))),手動入力!P10) -> 0
C16: 共通仮設費計 | F16: =SUM(I16:T16) -> 0 | I16: =IFERROR(VALUE(MID(I10,SEARCH(" ",I10,1)+1,SEARCH(" ",I10,SEARCH(" ",I10,1)+1)-SEARCH(" ",I10,1))),手動入力!E17) -> 0 | J16: =IFERROR(VALUE(MID(J10,SEARCH(" ",J10,1)+1,SEARCH(" ",J10,SEARCH(" ",J10,1)+1)-SEARCH(" ",J10,1))),手動入力!F17) -> 0 | K16: =IFERROR(VALUE(MID(K10,SEARCH(" ",K10,1)+1,SEARCH(" ",K10,SEARCH(" ",K10,1)+1)-SEARCH(" ",K10,1))),手動入力!G17) -> 0 | L16: =IFERROR(VALUE(MID(L10,SEARCH(" ",L10,1)+1,SEARCH(" ",L10,SEARCH(" ",L10,1)+1)-SEARCH(" ",L10,1))),手動入力!H17) -> 0 | M16: =IFERROR(VALUE(MID(M10,SEARCH(" ",M10,1)+1,SEARCH(" ",M10,SEARCH(" ",M10,1)+1)-SEARCH(" ",M10,1))),手動入力!I17) -> 0 | N16: =IFERROR(VALUE(MID(N10,SEARCH(" ",N10,1)+1,SEARCH(" ",N10,SEARCH(" ",N10,1)+1)-SEARCH(" ",N10,1))),手動入力!J17) -> 0 | O16: =IFERROR(VALUE(MID(O10,SEARCH(" ",O10,1)+1,SEARCH(" ",O10,SEARCH(" ",O10,1)+1)-SEARCH(" ",O10,1))),手動入力!K17) -> 0 | P16: =IFERROR(VALUE(MID(P10,SEARCH(" ",P10,1)+1,SEARCH(" ",P10,SEARCH(" ",P10,1)+1)-SEARCH(" ",P10,1))),手動入力!L17) -> 0 | Q16: =IFERROR(VALUE(MID(Q10,SEARCH(" ",Q10,1)+1,SEARCH(" ",Q10,SEARCH(" ",Q10,1)+1)-SEARCH(" ",Q10,1))),手動入力!M17) -> 0 | R16: =IFERROR(VALUE(MID(R10,SEARCH(" ",R10,1)+1,SEARCH(" ",R10,SEARCH(" ",R10,1)+1)-SEARCH(" ",R10,1))),手動入力!N17) -> 0 | S16: =IFERROR(VALUE(MID(S10,SEARCH(" ",S10,1)+1,SEARCH(" ",S10,SEARCH(" ",S10,1)+1)-SEARCH(" ",S10,1))),手動入力!O17) -> 0 | T16: =IFERROR(VALUE(MID(T10,SEARCH(" ",T10,1)+1,SEARCH(" ",T10,SEARCH(" ",T10,1)+1)-SEARCH(" ",T10,1))),手動入力!P17) -> 0
C17: 現場管理費計 | F17: 0 | I17: =IFERROR(VALUE(LEFT(RIGHT(I10,LEN(I10)-SEARCH(" ",I10,SEARCH(" ",I10,1)+1)),SEARCH(" ",RIGHT(I10,LEN(I10)-SEARCH(" ",I10,SEARCH(" ",I10,1)+1))))),手動入力!E18) -> 0 | J17: =IFERROR(VALUE(LEFT(RIGHT(J10,LEN(J10)-SEARCH(" ",J10,SEARCH(" ",J10,1)+1)),SEARCH(" ",RIGHT(J10,LEN(J10)-SEARCH(" ",J10,SEARCH(" ",J10,1)+1))))),手動入力!F18) -> 0 | K17: =IFERROR(VALUE(LEFT(RIGHT(K10,LEN(K10)-SEARCH(" ",K10,SEARCH(" ",K10,1)+1)),SEARCH(" ",RIGHT(K10,LEN(K10)-SEARCH(" ",K10,SEARCH(" ",K10,1)+1))))),手動入力!G18) -> 0 | L17: =IFERROR(VALUE(LEFT(RIGHT(L10,LEN(L10)-SEARCH(" ",L10,SEARCH(" ",L10,1)+1)),SEARCH(" ",RIGHT(L10,LEN(L10)-SEARCH(" ",L10,SEARCH(" ",L10,1)+1))))),手動入力!H18) -> 0 | M17: =IFERROR(VALUE(LEFT(RIGHT(M10,LEN(M10)-SEARCH(" ",M10,SEARCH(" ",M10,1)+1)),SEARCH(" ",RIGHT(M10,LEN(M10)-SEARCH(" ",M10,SEARCH(" ",M10,1)+1))))),手動入力!I18) -> 0 | N17: =IFERROR(VALUE(LEFT(RIGHT(N10,LEN(N10)-SEARCH(" ",N10,SEARCH(" ",N10,1)+1)),SEARCH(" ",RIGHT(N10,LEN(N10)-SEARCH(" ",N10,SEARCH(" ",N10,1)+1))))),手動入力!J18) -> 0 | O17: =IFERROR(VALUE(LEFT(RIGHT(O10,LEN(O10)-SEARCH(" ",O10,SEARCH(" ",O10,1)+1)),SEARCH(" ",RIGHT(O10,LEN(O10)-SEARCH(" ",O10,SEARCH(" ",O10,1)+1))))),手動入力!K18) -> 0 | P17: =IFERROR(VALUE(LEFT(RIGHT(P10,LEN(P10)-SEARCH(" ",P10,SEARCH(" ",P10,1)+1)),SEARCH(" ",RIGHT(P10,LEN(P10)-SEARCH(" ",P10,SEARCH(" ",P10,1)+1))))),手動入力!L18) -> 0 | Q17: =IFERROR(VALUE(LEFT(RIGHT(Q10,LEN(Q10)-SEARCH(" ",Q10,SEARCH(" ",Q10,1)+1)),SEARCH(" ",RIGHT(Q10,LEN(Q10)-SEARCH(" ",Q10,SEARCH(" ",Q10,1)+1))))),手動入力!M18) -> 0 | R17: =IFERROR(VALUE(LEFT(RIGHT(R10,LEN(R10)-SEARCH(" ",R10,SEARCH(" ",R10,1)+1)),SEARCH(" ",RIGHT(R10,LEN(R10)-SEARCH(" ",R10,SEARCH(" ",R10,1)+1))))),手動入力!N18) -> 0 | S17: =IFERROR(VALUE(LEFT(RIGHT(S10,LEN(S10)-SEARCH(" ",S10,SEARCH(" ",S10,1)+1)),SEARCH(" ",RIGHT(S10,LEN(S10)-SEARCH(" ",S10,SEARCH(" ",S10,1)+1))))),手動入力!O18) -> 0 | T17: =IFERROR(VALUE(LEFT(RIGHT(T10,LEN(T10)-SEARCH(" ",T10,SEARCH(" ",T10,1)+1)),SEARCH(" ",RIGHT(T10,LEN(T10)-SEARCH(" ",T10,SEARCH(" ",T10,1)+1))))),手動入力!P18) -> 0
C18: 工事原価 | F18: 0 | I18: =SUM(I15:I17) -> 0 | J18: 0 | K18: 0 | L18: 0 | M18: 0 | N18: 0 | O18: 0 | P18: =SUM(P15:P17) -> 0 | Q18: 0 | R18: 0 | S18: 0 | T18: 0
D19: 一般管理費対象額 | F19: =SUM(I19:T19) -> 0 | I19: =手動入力!E33 -> 0 | J19: =手動入力!F33 -> 0 | K19: =手動入力!G33 -> 0 | L19: =手動入力!H33 -> 0 | M19: =手動入力!I33 -> 0 | N19: =手動入力!J33 -> 0 | O19: =手動入力!K33 -> 0 | P19: =手動入力!L33 -> 0 | Q19: =手動入力!M33 -> 0 | R19: =手動入力!N33 -> 0 | S19: =手動入力!O33 -> 0 | T19: =手動入力!P33 -> 0
D20: 一般管理費 | F20: =I20+J20+K20+L20+M20+N20+O20+T20 ->  | I20: =ROUNDDOWN(I19*$E$42,0) -> 
D21: 契約保証補正に係る額 | F21: =I21+J21+K21+L21+M21+N21+O21+T21 ->  | I21: =ROUNDDOWN(I19*I13,0) ->  | J21: =ROUNDDOWN(J19*J13,0) ->  | P21: =ROUNDDOWN(P19*P13,0) -> 
C22: 一般管理費計 | F22: =SUM(I22:T22) ->  | I22: =IFERROR(VALUE(RIGHT(RIGHT(I10,LEN(I10)-SEARCH(" ",I10,SEARCH(" ",I10,1)+1)),LEN(RIGHT(I10,LEN(I10)-SEARCH(" ",I10,SEARCH(" ",I10,1)+1)))-SEARCH(" ",RIGHT(I10,LEN(I10)-SEARCH(" ",I10,SEARCH(" ",I10,1)+1)),1))), IF(I20>0,SUM(I20:I21),手動入力!E34)) ->  | J22: =IFERROR(VALUE(RIGHT(RIGHT(J10,LEN(J10)-SEARCH(" ",J10,SEARCH(" ",J10,1)+1)),LEN(RIGHT(J10,LEN(J10)-SEARCH(" ",J10,SEARCH(" ",J10,1)+1)))-SEARCH(" ",RIGHT(J10,LEN(J10)-SEARCH(" ",J10,SEARCH(" ",J10,1)+1)),1))),IF(J20>0,SUM(J20:J21),手動入力!F34)) ->  | K22: =IFERROR(VALUE(RIGHT(RIGHT(K10,LEN(K10)-SEARCH(" ",K10,SEARCH(" ",K10,1)+1)),LEN(RIGHT(K10,LEN(K10)-SEARCH(" ",K10,SEARCH(" ",K10,1)+1)))-SEARCH(" ",RIGHT(K10,LEN(K10)-SEARCH(" ",K10,SEARCH(" ",K10,1)+1)),1))),IF(K20>0,SUM(K20:K21),手動入力!G34)) ->  | L22: =IFERROR(VALUE(RIGHT(RIGHT(L10,LEN(L10)-SEARCH(" ",L10,SEARCH(" ",L10,1)+1)),LEN(RIGHT(L10,LEN(L10)-SEARCH(" ",L10,SEARCH(" ",L10,1)+1)))-SEARCH(" ",RIGHT(L10,LEN(L10)-SEARCH(" ",L10,SEARCH(" ",L10,1)+1)),1))), IF(L20>0,SUM(L20:L21),手動入力!H34)) ->  | M22: =IFERROR(VALUE(RIGHT(RIGHT(M10,LEN(M10)-SEARCH(" ",M10,SEARCH(" ",M10,1)+1)),LEN(RIGHT(M10,LEN(M10)-SEARCH(" ",M10,SEARCH(" ",M10,1)+1)))-SEARCH(" ",RIGHT(M10,LEN(M10)-SEARCH(" ",M10,SEARCH(" ",M10,1)+1)),1))), IF(M20>0,SUM(M20:M21),手動入力!I34)) ->  | N22: =IFERROR(VALUE(RIGHT(RIGHT(N10,LEN(N10)-SEARCH(" ",N10,SEARCH(" ",N10,1)+1)),LEN(RIGHT(N10,LEN(N10)-SEARCH(" ",N10,SEARCH(" ",N10,1)+1)))-SEARCH(" ",RIGHT(N10,LEN(N10)-SEARCH(" ",N10,SEARCH(" ",N10,1)+1)),1))), IF(N20>0,SUM(N20:N21),手動入力!J34)) ->  | O22: =IFERROR(VALUE(RIGHT(RIGHT(O10,LEN(O10)-SEARCH(" ",O10,SEARCH(" ",O10,1)+1)),LEN(RIGHT(O10,LEN(O10)-SEARCH(" ",O10,SEARCH(" ",O10,1)+1)))-SEARCH(" ",RIGHT(O10,LEN(O10)-SEARCH(" ",O10,SEARCH(" ",O10,1)+1)),1))), IF(O20>0,SUM(O20:O21),手動入力!K34)) ->  | P22: =IFERROR(VALUE(RIGHT(RIGHT(P10,LEN(P10)-SEARCH(" ",P10,SEARCH(" ",P10,1)+1)),LEN(RIGHT(P10,LEN(P10)-SEARCH(" ",P10,SEARCH(" ",P10,1)+1)))-SEARCH(" ",RIGHT(P10,LEN(P10)-SEARCH(" ",P10,SEARCH(" ",P10,1)+1)),1))), IF(P20>0,SUM(P20:P21),手動入力!L34)) ->  | Q22: =IFERROR(VALUE(RIGHT(RIGHT(Q10,LEN(Q10)-SEARCH(" ",Q10,SEARCH(" ",Q10,1)+1)),LEN(RIGHT(Q10,LEN(Q10)-SEARCH(" ",Q10,SEARCH(" ",Q10,1)+1)))-SEARCH(" ",RIGHT(Q10,LEN(Q10)-SEARCH(" ",Q10,SEARCH(" ",Q10,1)+1)),1))), IF(Q20>0,SUM(Q20:Q21),手動入力!M34)) ->  | R22: =IFERROR(VALUE(RIGHT(RIGHT(R10,LEN(R10)-SEARCH(" ",R10,SEARCH(" ",R10,1)+1)),LEN(RIGHT(R10,LEN(R10)-SEARCH(" ",R10,SEARCH(" ",R10,1)+1)))-SEARCH(" ",RIGHT(R10,LEN(R10)-SEARCH(" ",R10,SEARCH(" ",R10,1)+1)),1))), IF(R20>0,SUM(R20:R21),手動入力!N34)) ->  | S22: =IFERROR(VALUE(RIGHT(RIGHT(S10,LEN(S10)-SEARCH(" ",S10,SEARCH(" ",S10,1)+1)),LEN(RIGHT(S10,LEN(S10)-SEARCH(" ",S10,SEARCH(" ",S10,1)+1)))-SEARCH(" ",RIGHT(S10,LEN(S10)-SEARCH(" ",S10,SEARCH(" ",S10,1)+1)),1))), IF(S20>0,SUM(S20:S21),手動入力!O34)) ->  | T22: =IFERROR(VALUE(RIGHT(RIGHT(T10,LEN(T10)-SEARCH(" ",T10,SEARCH(" ",T10,1)+1)),LEN(RIGHT(T10,LEN(T10)-SEARCH(" ",T10,SEARCH(" ",T10,1)+1)))-SEARCH(" ",RIGHT(T10,LEN(T10)-SEARCH(" ",T10,SEARCH(" ",T10,1)+1)),1))), IF(T20>0,SUM(T20:T21),手動入力!P34)) -> 
C23: 工事価格 | F23: =ROUNDDOWN(F18+F22,-3) ->  | G23: =SUM(I23:T23) ->  | I23: =ROUNDDOWN(I18+I22,-3) ->  | P23: =ROUNDDOWN(P18+P22,-3) -> 
J27: =IF(最低制限価格算出結果!G45="点在設計","点在経費計算書",IF(最低制限価格算出結果!G45="合冊設計","合冊経費計算書",IF(最低制限価格算出結果!G45="合算点在計算","仮想工事集計","経費計算書"))) -> 経費計算書 | P27: ver14.0001
F28: 工区名 | H28: 合計 | I28: =手動入力!E69&手動入力!E70&手動入力!E71&手動入力!E72&手動入力!E73&手動入力!E74&手動入力!E75&手動入力!E76&手動入力!E77&手動入力!E78&手動入力!E79 -> ① | J28: =手動入力!F70&手動入力!F71&手動入力!F72&手動入力!F73&手動入力!F74&手動入力!F75&手動入力!F76&手動入力!F77&手動入力!F78&手動入力!F79 ->  | K28: =手動入力!G71&手動入力!G72&手動入力!G73&手動入力!G74&手動入力!G75&手動入力!G76&手動入力!G77&手動入力!G78&手動入力!G79 ->  | L28: =手動入力!H72&手動入力!H73&手動入力!H74&手動入力!H75&手動入力!H76&手動入力!H77&手動入力!H78&手動入力!H79 ->  | M28: =手動入力!I73&手動入力!I74&手動入力!I75&手動入力!I76&手動入力!I77&手動入力!I78&手動入力!I79 ->  | N28: =手動入力!J74&手動入力!J75&手動入力!J76&手動入力!J77&手動入力!J78&手動入力!J79 ->  | O28: =手動入力!K75&手動入力!K76&手動入力!K77&手動入力!K78&手動入力!K79 ->  | P28: =手動入力!L76&手動入力!L77&手動入力!L78&手動入力!L79 ->  | Q28: =手動入力!M77&手動入力!M78&手動入力!M79 ->  | R28: =手動入力!N78&手動入力!N79 ->  | S28: =IF(手動入力!$D79=11,"⑪"&手動入力!$O$5,"") ->  | T28: =IF(T29=12,"⑫"&手動入力!$P$5,"") -> ⑫
I29: 1 | J29: 2 | K29: 3 | L29: 4 | M29: 5 | N29: 6 | O29: 7 | P29: 8 | Q29: 9 | R29: 10 | S29: 11 | T29: 12
F30: 直接工事費 | H30: =SUM(I30:T30) -> 0 | I30: =IF(手動入力!E8=I29,手動入力!E10,0)+IF(手動入力!F8=I29,手動入力!F10,0)+IF(手動入力!G8=I29,手動入力!G10,0)+IF(手動入力!H8=I29,手動入力!H10,0)+IF(手動入力!I8=I29,手動入力!I10,0)+IF(手動入力!J8=$I29,手動入力!J10,0)+IF(手動入力!K8=I29,手動入力!K10,0)+IF(手動入力!L8=$I29,手動入力!L10,0)+IF(手動入力!M8=$I29,手動入力!M10,0)+IF(手動入力!N8=I29,手動入力!N10,0)+IF(手動入力!O8=I29,手動入力!O10,0)+IF(手動入力!P8=I29,手動入力!P10,0) -> 0 | J30: =IF(手動入力!F8=J29,手動入力!F10,0)+IF(手動入力!G8=J29,手動入力!G10,0)+IF(手動入力!H8=J29,手動入力!H10,0)+IF(手動入力!I8=J29,手動入力!I10,0)+IF(手動入力!J8=J29,手動入力!J10,0)+IF(手動入力!K8=J29,手動入力!K10,0)+IF(手動入力!L8=J29,手動入力!L10,0)+IF(手動入力!M8=J29,手動入力!M10,0)+IF(手動入力!N8=J29,手動入力!N10,0)+IF(手動入力!O8=J29,手動入力!O10,0)+IF(手動入力!P8=J29,手動入力!P10,0) -> 0 | K30: =IF(手動入力!G8=K29,手動入力!G10,0)+IF(手動入力!H8=K29,手動入力!H10,0)+IF(手動入力!I8=K29,手動入力!I10,0)+IF(手動入力!J8=K29,手動入力!J10,0)+IF(手動入力!K8=K29,手動入力!K10,0)+IF(手動入力!L8=K29,手動入力!L10,0)+IF(手動入力!M8=K29,手動入力!M10,0)+IF(手動入力!N8=K29,手動入力!N10,0)+IF(手動入力!O8=K29,手動入力!O10,0)+IF(手動入力!P8=K29,手動入力!P10,0) -> 0 | L30: =IF(手動入力!H8=L29,手動入力!H10,0)+IF(手動入力!I8=L29,手動入力!I10,0)+IF(手動入力!J8=L29,手動入力!J10,0)+IF(手動入力!K8=L29,手動入力!K10,0)+IF(手動入力!L8=L29,手動入力!L10,0)+IF(手動入力!M8=L29,手動入力!M10,0)+IF(手動入力!N8=L29,手動入力!N10,0)+IF(手動入力!O8=L29,手動入力!O10,0)+IF(手動入力!P8=L29,手動入力!P10,0) -> 0 | M30: =IF(手動入力!I8=M29,手動入力!I10,0)+IF(手動入力!J8=M29,手動入力!J10,0)+IF(手動入力!K8=M29,手動入力!K10,0)+IF(手動入力!L8=M29,手動入力!L10,0)+IF(手動入力!M8=M29,手動入力!M10,0)+IF(手動入力!N8=M29,手動入力!N10,0)+IF(手動入力!O8=M29,手動入力!O10,0)+IF(手動入力!P8=M29,手動入力!P10,0) -> 0 | N30: =IF(手動入力!J8=N29,手動入力!J10,0)+IF(手動入力!K8=N29,手動入力!K10,0)+IF(手動入力!L8=N29,手動入力!L10,0)+IF(手動入力!M8=N29,手動入力!M10,0)+IF(手動入力!N8=N29,手動入力!N10,0)+IF(手動入力!O8=N29,手動入力!O10,0)+IF(手動入力!P8=N29,手動入力!P10,0) -> 0 | O30: =IF(手動入力!K8=O29,手動入力!K10,0)+IF(手動入力!L8=O29,手動入力!L10,0)+IF(手動入力!M8=O29,手動入力!M10,0)+IF(手動入力!N8=O29,手動入力!N10,0)+IF(手動入力!O8=O29,手動入力!O10,0)+IF(手動入力!P8=O29,手動入力!P10,0) -> 0 | P30: =IF(手動入力!L8=P29,手動入力!L10,0)+IF(手動入力!M8=P29,手動入力!M10,0)+IF(手動入力!N8=P29,手動入力!N10,0)+IF(手動入力!O8=P29,手動入力!O10,0)+IF(手動入力!P8=P29,手動入力!P10,0) -> 0 | Q30: =IF(手動入力!M8=Q29,手動入力!M10,0)+IF(手動入力!N8=Q29,手動入力!N10,0)+IF(手動入力!O8=Q29,手動入力!O10,0)+IF(手動入力!P8=Q29,手動入力!P10,0) -> 0 | R30: =IF(手動入力!N8=R29,手動入力!N10,0)+IF(手動入力!O8=R29,手動入力!O10,0)+IF(手動入力!P8=R29,手動入力!P10,0) -> 0 | S30: =IF(手動入力!O8=S29,手動入力!O10,0)+IF(手動入力!P8=S29,手動入力!P10,0) -> 0 | T30: =IF(手動入力!P8=T29,手動入力!P10,0) -> 0
F31: 共通仮設費計 | H31: =SUM(I31:T31) -> 0 | I31: =IF(手動入力!E8=I29,手動入力!E17)+IF(手動入力!F8=I29,手動入力!F17)+IF(手動入力!G8=I29,手動入力!G17)+IF(手動入力!H8=I29,手動入力!H17)+IF(手動入力!I8=I29,手動入力!I17)+IF(手動入力!J8=I29,手動入力!J17)+IF(手動入力!K8=I29,手動入力!K17)+IF(手動入力!L8=I29,手動入力!L17)+IF(手動入力!M8=I29,手動入力!M17)+IF(手動入力!N8=I29,手動入力!N17)+IF(手動入力!O8=I29,手動入力!O17)+IF(手動入力!P8=I29,手動入力!P17) -> 0 | J31: =IF(手動入力!F8=J29,手動入力!F17)+IF(手動入力!G8=J29,手動入力!G17)+IF(手動入力!H8=J29,手動入力!H17)+IF(手動入力!I8=J29,手動入力!I17)+IF(手動入力!J8=J29,手動入力!J17)+IF(手動入力!K8=J29,手動入力!K17)+IF(手動入力!L8=J29,手動入力!L17)+IF(手動入力!M8=J29,手動入力!M17)+IF(手動入力!N8=J29,手動入力!N17)+IF(手動入力!O8=J29,手動入力!O17)+IF(手動入力!P8=J29,手動入力!P17)+IF(手動入力!Q8=J29,手動入力!Q17) -> 0 | K31: =IF(手動入力!G8=K29,手動入力!G17)+IF(手動入力!H8=K29,手動入力!H17)+IF(手動入力!I8=K29,手動入力!I17)+IF(手動入力!J8=K29,手動入力!J17)+IF(手動入力!K8=K29,手動入力!K17)+IF(手動入力!L8=K29,手動入力!L17)+IF(手動入力!M8=K29,手動入力!M17)+IF(手動入力!N8=K29,手動入力!N17)+IF(手動入力!O8=K29,手動入力!O17)+IF(手動入力!P8=K29,手動入力!P17)+IF(手動入力!Q8=K29,手動入力!Q17)+IF(手動入力!R8=K29,手動入力!R17) -> 0 | L31: =IF(手動入力!H8=L29,手動入力!H17)+IF(手動入力!I8=L29,手動入力!I17)+IF(手動入力!J8=L29,手動入力!J17)+IF(手動入力!K8=L29,手動入力!K17)+IF(手動入力!L8=L29,手動入力!L17)+IF(手動入力!M8=L29,手動入力!M17)+IF(手動入力!N8=L29,手動入力!N17)+IF(手動入力!O8=L29,手動入力!O17)+IF(手動入力!P8=L29,手動入力!P17)+IF(手動入力!Q8=L29,手動入力!Q17)+IF(手動入力!R8=L29,手動入力!R17)+IF(手動入力!S8=L29,手動入力!S17) -> 0 | M31: =IF(手動入力!I8=M29,手動入力!I17)+IF(手動入力!J8=M29,手動入力!J17)+IF(手動入力!K8=M29,手動入力!K17)+IF(手動入力!L8=M29,手動入力!L17)+IF(手動入力!M8=M29,手動入力!M17)+IF(手動入力!N8=M29,手動入力!N17)+IF(手動入力!O8=M29,手動入力!O17)+IF(手動入力!P8=M29,手動入力!P17)+IF(手動入力!Q8=M29,手動入力!Q17)+IF(手動入力!R8=M29,手動入力!R17)+IF(手動入力!S8=M29,手動入力!S17)+IF(手動入力!T8=M29,手動入力!T17) -> 0 | N31: =IF(手動入力!J8=N29,手動入力!J17)+IF(手動入力!K8=N29,手動入力!K17)+IF(手動入力!L8=N29,手動入力!L17)+IF(手動入力!M8=N29,手動入力!M17)+IF(手動入力!N8=N29,手動入力!N17)+IF(手動入力!O8=N29,手動入力!O17)+IF(手動入力!P8=N29,手動入力!P17)+IF(手動入力!Q8=N29,手動入力!Q17)+IF(手動入力!R8=N29,手動入力!R17)+IF(手動入力!S8=N29,手動入力!S17)+IF(手動入力!T8=N29,手動入力!T17)+IF(手動入力!U8=N29,手動入力!U17) -> 0 | O31: =IF(手動入力!K8=O29,手動入力!K17)+IF(手動入力!L8=O29,手動入力!L17)+IF(手動入力!M8=O29,手動入力!M17)+IF(手動入力!N8=O29,手動入力!N17)+IF(手動入力!O8=O29,手動入力!O17)+IF(手動入力!P8=O29,手動入力!P17)+IF(手動入力!Q8=O29,手動入力!Q17)+IF(手動入力!R8=O29,手動入力!R17)+IF(手動入力!S8=O29,手動入力!S17)+IF(手動入力!T8=O29,手動入力!T17)+IF(手動入力!U8=O29,手動入力!U17)+IF(手動入力!V8=O29,手動入力!V17) -> 0 | P31: =IF(手動入力!L8=P29,手動入力!L17)+IF(手動入力!M8=P29,手動入力!M17)+IF(手動入力!N8=P29,手動入力!N17)+IF(手動入力!O8=P29,手動入力!O17)+IF(手動入力!P8=P29,手動入力!P17)+IF(手動入力!Q8=P29,手動入力!Q17)+IF(手動入力!R8=P29,手動入力!R17)+IF(手動入力!S8=P29,手動入力!S17)+IF(手動入力!T8=P29,手動入力!T17)+IF(手動入力!U8=P29,手動入力!U17)+IF(手動入力!V8=P29,手動入力!V17)+IF(手動入力!W8=P29,手動入力!W17) -> 0 | Q31: =IF(手動入力!M8=Q29,手動入力!M17)+IF(手動入力!N8=Q29,手動入力!N17)+IF(手動入力!O8=Q29,手動入力!O17)+IF(手動入力!P8=Q29,手動入力!P17)+IF(手動入力!Q8=Q29,手動入力!Q17)+IF(手動入力!R8=Q29,手動入力!R17)+IF(手動入力!S8=Q29,手動入力!S17)+IF(手動入力!T8=Q29,手動入力!T17)+IF(手動入力!U8=Q29,手動入力!U17)+IF(手動入力!V8=Q29,手動入力!V17)+IF(手動入力!W8=Q29,手動入力!W17)+IF(手動入力!X8=Q29,手動入力!X17) -> 0 | R31: =IF(手動入力!N8=R29,手動入力!N17)+IF(手動入力!O8=R29,手動入力!O17)+IF(手動入力!P8=R29,手動入力!P17)+IF(手動入力!Q8=R29,手動入力!Q17)+IF(手動入力!R8=R29,手動入力!R17)+IF(手動入力!S8=R29,手動入力!S17)+IF(手動入力!T8=R29,手動入力!T17)+IF(手動入力!U8=R29,手動入力!U17)+IF(手動入力!V8=R29,手動入力!V17)+IF(手動入力!W8=R29,手動入力!W17)+IF(手動入力!X8=R29,手動入力!X17)+IF(手動入力!Y8=R29,手動入力!Y17) -> 0 | S31: =IF(手動入力!O8=S29,手動入力!O17)+IF(手動入力!P8=S29,手動入力!P17)+IF(手動入力!Q8=S29,手動入力!Q17)+IF(手動入力!R8=S29,手動入力!R17)+IF(手動入力!S8=S29,手動入力!S17)+IF(手動入力!T8=S29,手動入力!T17)+IF(手動入力!U8=S29,手動入力!U17)+IF(手動入力!V8=S29,手動入力!V17)+IF(手動入力!W8=S29,手動入力!W17)+IF(手動入力!X8=S29,手動入力!X17)+IF(手動入力!Y8=S29,手動入力!Y17)+IF(手動入力!Z8=S29,手動入力!Z17) -> 0 | T31: =IF(手動入力!P8=T29,手動入力!P17)+IF(手動入力!Q8=T29,手動入力!Q17)+IF(手動入力!R8=T29,手動入力!R17)+IF(手動入力!S8=T29,手動入力!S17)+IF(手動入力!T8=T29,手動入力!T17)+IF(手動入力!U8=T29,手動入力!U17)+IF(手動入力!V8=T29,手動入力!V17)+IF(手動入力!W8=T29,手動入力!W17)+IF(手動入力!X8=T29,手動入力!X17)+IF(手動入力!Y8=T29,手動入力!Y17)+IF(手動入力!Z8=T29,手動入力!Z17)+IF(手動入力!AA8=T29,手動入力!AA17) -> 0
F32: 現場管理費 | H32: =SUM(I32:T32) -> 0 | I32: =IF(手動入力!E8=I29,手動入力!E18)+IF(手動入力!F8=I29,手動入力!F18)+IF(手動入力!G8=I29,手動入力!G18)+IF(手動入力!H8=I29,手動入力!H18)+IF(手動入力!I8=I29,手動入力!I18)+IF(手動入力!J8=I29,手動入力!J18)+IF(手動入力!K8=I29,手動入力!K18)+IF(手動入力!L8=I29,手動入力!L18)+IF(手動入力!M8=I29,手動入力!M18)+IF(手動入力!N8=I29,手動入力!N18)+IF(手動入力!O8=I29,手動入力!O18)+IF(手動入力!P8=I29,手動入力!P18) -> 0 | J32: =IF(手動入力!F8=J29,手動入力!F18)+IF(手動入力!G8=J29,手動入力!G18)+IF(手動入力!H8=J29,手動入力!H18)+IF(手動入力!I8=J29,手動入力!I18)+IF(手動入力!J8=J29,手動入力!J18)+IF(手動入力!K8=J29,手動入力!K18)+IF(手動入力!L8=J29,手動入力!L18)+IF(手動入力!M8=J29,手動入力!M18)+IF(手動入力!N8=J29,手動入力!N18)+IF(手動入力!O8=J29,手動入力!O18)+IF(手動入力!P8=J29,手動入力!P18) -> 0 | K32: =IF(手動入力!G8=K29,手動入力!G18)+IF(手動入力!H8=K29,手動入力!H18)+IF(手動入力!I8=K29,手動入力!I18)+IF(手動入力!J8=K29,手動入力!J18)+IF(手動入力!K8=K29,手動入力!K18)+IF(手動入力!L8=K29,手動入力!L18)+IF(手動入力!M8=K29,手動入力!M18)+IF(手動入力!N8=K29,手動入力!N18)+IF(手動入力!O8=K29,手動入力!O18)+IF(手動入力!P8=K29,手動入力!P18) -> 0 | L32: =IF(手動入力!H8=L29,手動入力!H18)+IF(手動入力!I8=L29,手動入力!I18)+IF(手動入力!J8=L29,手動入力!J18)+IF(手動入力!K8=L29,手動入力!K18)+IF(手動入力!L8=L29,手動入力!L18)+IF(手動入力!M8=L29,手動入力!M18)+IF(手動入力!N8=L29,手動入力!N18)+IF(手動入力!O8=L29,手動入力!O18)+IF(手動入力!P8=L29,手動入力!P18) -> 0 | M32: =IF(手動入力!I8=M29,手動入力!I18)+IF(手動入力!J8=M29,手動入力!J18)+IF(手動入力!K8=M29,手動入力!K18)+IF(手動入力!L8=M29,手動入力!L18)+IF(手動入力!M8=M29,手動入力!M18)+IF(手動入力!N8=M29,手動入力!N18)+IF(手動入力!O8=M29,手動入力!O18)+IF(手動入力!P8=M29,手動入力!P18) -> 0 | N32: =IF(手動入力!J8=N29,手動入力!J18)+IF(手動入力!K8=N29,手動入力!K18)+IF(手動入力!L8=N29,手動入力!L18)+IF(手動入力!M8=N29,手動入力!M18)+IF(手動入力!N8=N29,手動入力!N18)+IF(手動入力!O8=N29,手動入力!O18)+IF(手動入力!P8=N29,手動入力!P18) -> 0 | O32: =IF(手動入力!K8=O29,手動入力!K18)+IF(手動入力!L8=O29,手動入力!L18)+IF(手動入力!M8=O29,手動入力!M18)+IF(手動入力!N8=O29,手動入力!N18)+IF(手動入力!O8=O29,手動入力!O18)+IF(手動入力!P8=O29,手動入力!P18) -> 0 | P32: =IF(手動入力!L8=P29,手動入力!L18)+IF(手動入力!M8=P29,手動入力!M18)+IF(手動入力!N8=P29,手動入力!N18)+IF(手動入力!O8=P29,手動入力!O18)+IF(手動入力!P8=P29,手動入力!P18) -> 0 | Q32: =IF(手動入力!M8=Q29,手動入力!M18)+IF(手動入力!N8=Q29,手動入力!N18)+IF(手動入力!O8=Q29,手動入力!O18)+IF(手動入力!P8=Q29,手動入力!P18) -> 0 | R32: =IF(手動入力!N8=R29,手動入力!N18)+IF(手動入力!O8=R29,手動入力!O18)+IF(手動入力!P8=R29,手動入力!P18) -> 0 | S32: =IF(手動入力!O8=S29,手動入力!O18)+IF(手動入力!P8=S29,手動入力!P18) -> 0 | T32: =IF(手動入力!P8=T29,手動入力!P18,0) -> 0
F33: 工事原価 | H33: =SUM(I33:T33) -> 0 | I33: =SUM(I30:I32) -> 0 | J33: 0 | K33: 0 | L33: 0 | M33: 0 | N33: 0 | O33: 0 | P33: 0 | Q33: 0 | R33: 0 | S33: 0 | T33: 0
F34: 処分費等 | H34: =SUM(手動入力!E11:P11) -> 0 | I34: =IF(手動入力!E8=I29,手動入力!E11)+IF(手動入力!F8=I29,手動入力!F11)+IF(手動入力!G8=I29,手動入力!G11)+IF(手動入力!H8=I29,手動入力!H11)+IF(手動入力!I8=I29,手動入力!I11)+IF(手動入力!J8=I29,手動入力!J11)+IF(手動入力!K8=I29,手動入力!K11)+IF(手動入力!L8=I29,手動入力!L11)+IF(手動入力!M8=I29,手動入力!M11)+IF(手動入力!N8=I29,手動入力!N11)+IF(手動入力!O8=I29,手動入力!O11)+IF(手動入力!P8=I29,手動入力!P11) -> 0 | J34: =IF(手動入力!F8=J29,手動入力!F11)+IF(手動入力!G8=J29,手動入力!G11)+IF(手動入力!H8=J29,手動入力!H11)+IF(手動入力!I8=J29,手動入力!I11)+IF(手動入力!J8=J29,手動入力!J11)+IF(手動入力!K8=J29,手動入力!K11)+IF(手動入力!L8=J29,手動入力!L11)+IF(手動入力!M8=J29,手動入力!M11)+IF(手動入力!N8=J29,手動入力!N11)+IF(手動入力!O8=J29,手動入力!O11)+IF(手動入力!P8=J29,手動入力!P11) -> 0 | K34: =IF(手動入力!G8=K29,手動入力!G11)+IF(手動入力!H8=K29,手動入力!H11)+IF(手動入力!I8=K29,手動入力!I11)+IF(手動入力!J8=K29,手動入力!J11)+IF(手動入力!K8=K29,手動入力!K11)+IF(手動入力!L8=K29,手動入力!L11)+IF(手動入力!M8=K29,手動入力!M11)+IF(手動入力!N8=K29,手動入力!N11)+IF(手動入力!O8=K29,手動入力!O11)+IF(手動入力!P8=K29,手動入力!P11) -> 0 | L34: =IF(手動入力!H8=L29,手動入力!H11)+IF(手動入力!I8=L29,手動入力!I11)+IF(手動入力!J8=L29,手動入力!J11)+IF(手動入力!K8=L29,手動入力!K11)+IF(手動入力!L8=L29,手動入力!L11)+IF(手動入力!M8=L29,手動入力!M11)+IF(手動入力!N8=L29,手動入力!N11)+IF(手動入力!O8=L29,手動入力!O11)+IF(手動入力!P8=L29,手動入力!P11) -> 0 | M34: =IF(手動入力!I8=M29,手動入力!I11)+IF(手動入力!J8=M29,手動入力!J11)+IF(手動入力!K8=M29,手動入力!K11)+IF(手動入力!L8=M29,手動入力!L11)+IF(手動入力!M8=M29,手動入力!M11)+IF(手動入力!N8=M29,手動入力!N11)+IF(手動入力!O8=M29,手動入力!O11)+IF(手動入力!P8=M29,手動入力!P11) -> 0 | N34: =IF(手動入力!J8=N29,手動入力!J11)+IF(手動入力!K8=N29,手動入力!K11)+IF(手動入力!L8=N29,手動入力!L11)+IF(手動入力!M8=N29,手動入力!M11)+IF(手動入力!N8=N29,手動入力!N11)+IF(手動入力!O8=N29,手動入力!O11)+IF(手動入力!P8=N29,手動入力!P11) -> 0 | O34: =IF(手動入力!K8=O29,手動入力!K11)+IF(手動入力!L8=O29,手動入力!L11)+IF(手動入力!M8=O29,手動入力!M11)+IF(手動入力!N8=O29,手動入力!N11)+IF(手動入力!O8=O29,手動入力!O11)+IF(手動入力!P8=O29,手動入力!P11)+IF(手動入力!Q8=O29,手動入力!Q11)+IF(手動入力!R8=O29,手動入力!R11)+IF(手動入力!S8=O29,手動入力!S11)+IF(手動入力!T8=O29,手動入力!T11)+IF(手動入力!U8=O29,手動入力!U11)+IF(手動入力!V8=O29,手動入力!V11) -> 0 | P34: =IF(手動入力!L8=P29,手動入力!L11)+IF(手動入力!M8=P29,手動入力!M11)+IF(手動入力!N8=P29,手動入力!N11)+IF(手動入力!O8=P29,手動入力!O11)+IF(手動入力!P8=P29,手動入力!P11)+IF(手動入力!Q8=P29,手動入力!Q11)+IF(手動入力!R8=P29,手動入力!R11)+IF(手動入力!S8=P29,手動入力!S11)+IF(手動入力!T8=P29,手動入力!T11)+IF(手動入力!U8=P29,手動入力!U11)+IF(手動入力!V8=P29,手動入力!V11)+IF(手動入力!W8=P29,手動入力!W11) -> 0 | Q34: =IF(手動入力!M8=Q29,手動入力!M11)+IF(手動入力!N8=Q29,手動入力!N11)+IF(手動入力!O8=Q29,手動入力!O11)+IF(手動入力!P8=Q29,手動入力!P11)+IF(手動入力!Q8=Q29,手動入力!Q11)+IF(手動入力!R8=Q29,手動入力!R11)+IF(手動入力!S8=Q29,手動入力!S11)+IF(手動入力!T8=Q29,手動入力!T11)+IF(手動入力!U8=Q29,手動入力!U11)+IF(手動入力!V8=Q29,手動入力!V11)+IF(手動入力!W8=Q29,手動入力!W11)+IF(手動入力!X8=Q29,手動入力!X11) -> 0 | R34: =IF(手動入力!N8=R29,手動入力!N11)+IF(手動入力!O8=R29,手動入力!O11)+IF(手動入力!P8=R29,手動入力!P11)+IF(手動入力!Q8=R29,手動入力!Q11)+IF(手動入力!R8=R29,手動入力!R11)+IF(手動入力!S8=R29,手動入力!S11)+IF(手動入力!T8=R29,手動入力!T11)+IF(手動入力!U8=R29,手動入力!U11)+IF(手動入力!V8=R29,手動入力!V11)+IF(手動入力!W8=R29,手動入力!W11)+IF(手動入力!X8=R29,手動入力!X11)+IF(手動入力!Y8=R29,手動入力!Y11) -> 0 | S34: =IF(手動入力!O8=S29,手動入力!O11)+IF(手動入力!P8=S29,手動入力!P11)+IF(手動入力!Q8=S29,手動入力!Q11)+IF(手動入力!R8=S29,手動入力!R11)+IF(手動入力!S8=S29,手動入力!S11)+IF(手動入力!T8=S29,手動入力!T11)+IF(手動入力!U8=S29,手動入力!U11)+IF(手動入力!V8=S29,手動入力!V11)+IF(手動入力!W8=S29,手動入力!W11)+IF(手動入力!X8=S29,手動入力!X11)+IF(手動入力!Y8=S29,手動入力!Y11)+IF(手動入力!Z8=S29,手動入力!Z11) -> 0 | T34: =IF(手動入力!P8=T29,手動入力!P11)+IF(手動入力!Q8=T29,手動入力!Q11)+IF(手動入力!R8=T29,手動入力!R11)+IF(手動入力!S8=T29,手動入力!S11)+IF(手動入力!T8=T29,手動入力!T11)+IF(手動入力!U8=T29,手動入力!U11)+IF(手動入力!V8=T29,手動入力!V11)+IF(手動入力!W8=T29,手動入力!W11)+IF(手動入力!X8=T29,手動入力!X11)+IF(手動入力!Y8=T29,手動入力!Y11)+IF(手動入力!Z8=T29,手動入力!Z11)+IF(手動入力!AA8=T29,手動入力!AA11) -> 0
F35: 一般管理費対象額 | H35: =SUM(I35:T35) -> 99 | I35: =IF(最低制限価格算出結果!G45<>"合算点在計算",99,I33+IF(I34-I30*0.03>0,-(I34-I30*0.03),0)) -> 99 | J35: =J33+IF(J34-J30*0.03>0,-(J34-J30*0.03),0) -> 0 | K35: 0 | L35: 0 | M35: 0 | N35: 0 | O35: 0 | P35: 0 | Q35: 0 | R35: 0 | S35: 0 | T35: 0
D39: =最低制限価格算出結果!L$16 -> 自動 | E39: =VLOOKUP(D39,免除金額,2,0) -> 
D40: =最低制限価格算出結果!O11 -> 2016-04-01
D41: 一般管理費対象額 | E41: =最低制限価格算出結果!J25 -> 0
D42: 決定一般管理費率 | E42: =IF(E41<5000000,F42,ROUND((G42*LOG(E41)+H42)/100,4)) ->  | F42: =VLOOKUP($D$40,諸経費,3,0) ->  | G42: =VLOOKUP($D$40,諸経費,4,0) ->  | H42: =VLOOKUP($D$40,諸経費,5,0) -> 

Sheet 最低制限価格 (hidden)
D2: 工事名 | E2: =IFERROR(VLOOKUP(E3,一覧工事検索,6,0),手動入力!E2) -> 0
D3: 番号 | E3: =IF(現場検索!C2>0,現場検索!C2,手動入力!E2) ->  | G3: 算出価格最低制限価 | J3: 変換率・丸め設定京都府 - 平成25年5月
D5: 費目名 | F5: 設計価格 | I5: 変換率 | J5: 設計書に反映する価格
J6: =IF(仮想工事!I9=0,"",IF(手動入力!E5="","1工区",手動入力!E5)) -> 1工区 | K6: =IF(仮想工事!J9=0,"",IF(手動入力!F5="","2工区",手動入力!F5)) -> 2工区 | L6: =IF(仮想工事!K9=0,"",IF(手動入力!G5="","3工区",手動入力!G5)) -> 3工区 | M6: =IF(仮想工事!L9=0,"",IF(手動入力!H5="","4工区",手動入力!H5)) -> 4工区 | N6: =IF(仮想工事!M9=0,"",IF(手動入力!I5="","5工区",手動入力!I5)) -> 5工区 | O6: =IF(仮想工事!N9=0,"",IF(手動入力!J5="","6工区",手動入力!J5)) -> 6工区 | P6: =IF(仮想工事!O9=0,"",IF(手動入力!K5="","7工区",手動入力!K5)) -> 7工区 | Q6: =IF(仮想工事!P9=0,"",IF(手動入力!L5="","8工区",手動入力!L5)) -> 8工区 | R6: =IF(仮想工事!Q9=0,"",IF(手動入力!M5="","9工区",手動入力!M5)) -> 9工区 | S6: =IF(仮想工事!R9=0,"",IF(手動入力!N5="","",手動入力!N5)) ->  | T6: =IF(仮想工事!S9=0,"",IF(手動入力!O5=""," ",手動入力!O5)) ->  | U6: =IF(仮想工事!T9=0,"",IF(手動入力!P5="","",手動入力!P5)) -> 
F7: 率 | G7: 金額 | J7: 設計書に反映する価格 | K7: 設計書に反映する価格 | L7: 設計書に反映する価格 | M7: 設計書に反映する価格 | N7: 設計書に反映する価格 | O7: 設計書に反映する価格 | P7: 設計書に反映する価格 | Q7: 設計書に反映する価格 | R7: 設計書に反映する価格 | S7: 設計書に反映する価格 | T7: 設計書に反映する価格 | U7: 設計書に反映する価格
D8: 直接工事費計 | G8: =仮想工事!F15 -> 0 | H8: =SUM(J8:S8) -> 0 | I8: 0.95 | J8: =ROUNDDOWN(仮想工事!I15*$I$8,$G$20) -> 0 | K8: =ROUNDDOWN(仮想工事!J15*$I$8,$G$20) -> 0 | L8: =ROUNDDOWN(仮想工事!K15*$I$8,$G$20) -> 0 | M8: =ROUNDDOWN(仮想工事!L15*$I$8,$G$20) -> 0 | N8: =ROUNDDOWN(仮想工事!M15*$I$8,$G$20) -> 0 | O8: =ROUNDDOWN(仮想工事!N15*$I$8,$G$20) -> 0 | P8: =ROUNDDOWN(仮想工事!O15*$I$8,$G$20) -> 0 | Q8: =ROUNDDOWN(仮想工事!P15*$I$8,$G$20) -> 0 | R8: =ROUNDDOWN(仮想工事!Q15*$I$8,$G$20) -> 0 | S8: =ROUNDDOWN(仮想工事!R15*$I$8,$G$20) -> 0 | T8: =ROUNDDOWN(仮想工事!S15*$I$8,$G$20) -> 0 | U8: =ROUNDDOWN(仮想工事!T15*$I$8,$G$20) -> 0
D9: 共通仮設費計 | G9: =仮想工事!F16 -> 0 | H9: =SUM(J9:S9) -> 0 | I9: 0.9 | J9: =ROUNDDOWN(仮想工事!I16*$I$9,$G$20) -> 0 | K9: =ROUNDDOWN(仮想工事!J16*$I$9,$G$20) -> 0 | L9: =ROUNDDOWN(仮想工事!K16*$I$9,$G$20) -> 0 | M9: =ROUNDDOWN(仮想工事!L16*$I$9,$G$20) -> 0 | N9: =ROUNDDOWN(仮想工事!M16*$I$9,$G$20) -> 0 | O9: =ROUNDDOWN(仮想工事!N16*$I$9,$G$20) -> 0 | P9: =ROUNDDOWN(仮想工事!O16*$I$9,$G$20) -> 0 | Q9: =ROUNDDOWN(仮想工事!P16*$I$9,$G$20) -> 0 | R9: =ROUNDDOWN(仮想工事!Q16*$I$9,$G$20) -> 0 | S9: =ROUNDDOWN(仮想工事!R16*$I$9,$G$20) -> 0 | T9: =ROUNDDOWN(仮想工事!S16*$I$9,$G$20) -> 0 | U9: =ROUNDDOWN(仮想工事!T16*$I$9,$G$20) -> 0
D10: 現場管理費等計 | G10: =仮想工事!F17 -> 0 | H10: 0 | I10: =H26&"*"&F24 -> 0.9*1.03 | J10: =ROUNDDOWN(仮想工事!I17*H26*$F$24,$G$20) -> 0 | K10: =ROUNDDOWN(仮想工事!J17*H26*$F$24,$G$20) -> 0 | L10: =ROUNDDOWN(仮想工事!K17*H26*$F$24,$G$20) -> 0 | M10: =ROUNDDOWN(仮想工事!L17*H26*$F$24,$G$20) -> 0 | N10: =ROUNDDOWN(仮想工事!M17*H26*$F$24,$G$20) -> 0 | O10: =ROUNDDOWN(仮想工事!N17*H26*$F$24,$G$20) -> 0 | P10: =ROUNDDOWN(仮想工事!O17*H26*$F$24,$G$20) -> 0 | Q10: =ROUNDDOWN(仮想工事!P17*H26*$F$24,$G$20) -> 0 | R10: =ROUNDDOWN(仮想工事!Q17*H26*$F$24,$G$20) -> 0 | S10: =ROUNDDOWN(仮想工事!R17*$H$26*$F$24,$G$20) -> 0 | T10: =ROUNDDOWN(仮想工事!S17*$H$26*$F$24,$G$20) -> 0 | U10: =ROUNDDOWN(仮想工事!T17*$H$26*$F$24,$G$20) -> 0
D11: 純工事費 | G11: =SUM(G8:G10) -> 0 | H11: 0
D12: 一般管理費等計 | F12: =仮想工事!E42 ->  | G12: =仮想工事!F22 ->  | I12: =最低制限価格算出結果!L17 ->  | J12: =ROUND(仮想工事!I22*$I$12,$G$20) ->  | K12: =ROUND(仮想工事!J22*$I$12,$G$20) ->  | L12: =ROUND(仮想工事!K22*$I$12,$G$20) ->  | M12: =ROUND(仮想工事!L22*$I$12,$G$20) ->  | N12: =ROUND(仮想工事!M22*$I$12,$G$20) ->  | O12: =ROUND(仮想工事!N22*$I$12,$G$20) ->  | P12: =ROUND(仮想工事!O22*$I$12,$G$20) ->  | Q12: =ROUND(仮想工事!P22*$I$12,$G$20) ->  | R12: =ROUND(仮想工事!Q22*$I$12,$G$20) ->  | S12: =ROUND(仮想工事!R22*$I$12,$G$20) ->  | T12: =ROUND(仮想工事!S22*$I$12,$G$20) ->  | U12: =ROUND(仮想工事!T22*$I$12,$G$20) -> 
H13: 0
H14: 0
H15: 0
D16: 工事価格 | G16: =仮想工事!F23 ->  | H16: =SUM(J16:U16) ->  | J16: =ROUNDDOWN( SUM(J8:J12),$G$21) ->  | T16: =ROUNDDOWN( SUM(T8:T12),$G$21) -> 
D17: 経費基準 | H17: =ROUNDDOWN(J17+K17+L17+M17+N17+O17+P17+S17,-3) ->  | J17: =J8+J9+J12 ->  | K17: =K8+K9+K12 ->  | T17: =T8+T9+T12 -> 
G18: 一括最低限計算 | H18: =ROUNDDOWN(G8*I8+G9*I9+G10*H26*F24+G12*I12,-3) -> 
G19: 各費目毎千円止め | H19: =SUM(J19:S19) ->  | J19: =ROUNDDOWN(J8,-3)+ROUNDDOWN(J9,-3)+ROUNDDOWN(J10,-3)+ROUNDDOWN(J12,-3) ->  | T19: =ROUNDDOWN(T8,-3)+ROUNDDOWN(T9,-3)+ROUNDDOWN(T10,-3)+ROUNDDOWN(T12,-3) ->  | Y19: 合算点在計算
E20: 各費目毎千円止め | F20: =最低制限価格算出結果!Q16 -> 自動 | G20: =IF(F20="千円止め",-3,0) -> 0 | H20: 千円止め
E21: 工事価格算出ケース | F21: =最低制限価格算出結果!Q17 -> 一括最低限計算 | G21: =IF(最低制限価格算出結果!Q17="千円止め",-3,IF(最低制限価格算出結果!Q17="端数有",0,IF(最低制限価格算出結果!Q17="自動",-3,9999))) -> 9999 | Y21: この計算結果はシミュレーションであり金額を保証するものではありません。 | AC21: =112+400+664+563+8+496+704 -> 2947
E22: 工事価格 | F22: =最低制限価格算出結果!O17 -> 標準 | G22: =VLOOKUP(F22,[1]計算条件!B72:C74,2,0) ->  | Y22: 0.96 | Z22: =ROUNDDOWN(ROUNDDOWN($J$17+ROUND(仮想工事!$I$17*$H$26*Y22,0),$G$21)+ROUNDDOWN($K$17+ROUND(仮想工事!$J$17*$H$26*Y22,0),$G$21)+ROUNDDOWN($L$17+ROUND(仮想工事!$K$17*$H$26*Y22,0),$G$21)+ROUNDDOWN($M$17+ROUND(仮想工事!$L$17*$H$26*Y22,0),$G$21)+ROUNDDOWN($N$17+ROUND(仮想工事!$M$17*$H$26*Y22,0),$G$21)+ROUNDDOWN($O$17+ROUND(仮想工事!$N$17*$H$26*Y22,0),$G$21)+ROUNDDOWN($P$17+ROUND(仮想工事!$O$17*$H$26*Y22,0),$G$21)+ROUNDDOWN($Q$17+ROUND(仮想工事!$P$17*$H$26*Y22,0),$G$21)+ROUNDDOWN($R$17+ROUND(仮想工事!$Q$17*$H$26*Y22,0),$G$21)+ROUNDDOWN($S$17+ROUND(仮想工事!$R$17*$H$26*Y22,0),$G$21)+ROUNDDOWN($T$17+ROUND(仮想工事!$S$17*$H$26*Y22,0),$G$21)+ROUNDDOWN($U$17+ROUND(仮想工事!$T$17*$H$26*Y22,0),$G$21),-3) ->  | AE22: 田原川平成２５年発生土木災害復旧工事【査定番号４０９７号】＜南丹２５－２５災第７２９９号の１の６７＞等８工事合冊
E23: 点在 | F23: 点在経費計算 | Y23: 0.97 | Z23: =ROUNDDOWN(ROUNDDOWN($J$17+ROUND(仮想工事!$I$17*$H$26*Y23,0),$G$21)+ROUNDDOWN($K$17+ROUND(仮想工事!$J$17*$H$26*Y23,0),$G$21)+ROUNDDOWN($L$17+ROUND(仮想工事!$K$17*$H$26*Y23,0),$G$21)+ROUNDDOWN($M$17+ROUND(仮想工事!$L$17*$H$26*Y23,0),$G$21)+ROUNDDOWN($N$17+ROUND(仮想工事!$M$17*$H$26*Y23,0),$G$21)+ROUNDDOWN($O$17+ROUND(仮想工事!$N$17*$H$26*Y23,0),$G$21)+ROUNDDOWN($P$17+ROUND(仮想工事!$O$17*$H$26*Y23,0),$G$21)+ROUNDDOWN($Q$17+ROUND(仮想工事!$P$17*$H$26*Y23,0),$G$21)+ROUNDDOWN($R$17+ROUND(仮想工事!$Q$17*$H$26*Y23,0),$G$21)+ROUNDDOWN($S$17+ROUND(仮想工事!$R$17*$H$26*Y23,0),$G$21)+ROUNDDOWN($T$17+ROUND(仮想工事!$S$17*$H$26*Y23,0),$G$21)+ROUNDDOWN($U$17+ROUND(仮想工事!$T$17*$H$26*Y23,0),$G$21),-3) ->  | AB23: =Z23-Z22 ->  | AE23: 曽我谷川平成２５年発生土木災害復旧工事【査定番号４０１１号】＜南丹２５－２５災第７２９９の１号の１の５＞等８工事合冊
D24: 現場管理費α＝ | F24: =最低制限価格算出結果!O16 -> 1.03 | Y24: 0.98 | Z24: =ROUNDDOWN(ROUNDDOWN($J$17+ROUND(仮想工事!$I$17*$H$26*Y24,0),$G$21)+ROUNDDOWN($K$17+ROUND(仮想工事!$J$17*$H$26*Y24,0),$G$21)+ROUNDDOWN($L$17+ROUND(仮想工事!$K$17*$H$26*Y24,0),$G$21)+ROUNDDOWN($M$17+ROUND(仮想工事!$L$17*$H$26*Y24,0),$G$21)+ROUNDDOWN($N$17+ROUND(仮想工事!$M$17*$H$26*Y24,0),$G$21)+ROUNDDOWN($O$17+ROUND(仮想工事!$N$17*$H$26*Y24,0),$G$21)+ROUNDDOWN($P$17+ROUND(仮想工事!$O$17*$H$26*Y24,0),$G$21)+ROUNDDOWN($Q$17+ROUND(仮想工事!$P$17*$H$26*Y24,0),$G$21)+ROUNDDOWN($R$17+ROUND(仮想工事!$Q$17*$H$26*Y24,0),$G$21)+ROUNDDOWN($S$17+ROUND(仮想工事!$R$17*$H$26*Y24,0),$G$21)+ROUNDDOWN($T$17+ROUND(仮想工事!$S$17*$H$26*Y24,0),$G$21)+ROUNDDOWN($U$17+ROUND(仮想工事!$T$17*$H$26*Y24,0),$G$21),-3) ->  | AB24: =Z24-Z23 ->  | AE24: 園部川平成２５年発生土木災害復旧工事【査定番号４０４３号】＜南丹２５－２５災第７２９９号の１の４９＞等８工事合冊
D25: 予定価格（手入力） | Y25: 0.99 | Z25: =ROUNDDOWN(ROUNDDOWN($J$17+ROUND(仮想工事!$I$17*$H$26*Y25,0),$G$21)+ROUNDDOWN($K$17+ROUND(仮想工事!$J$17*$H$26*Y25,0),$G$21)+ROUNDDOWN($L$17+ROUND(仮想工事!$K$17*$H$26*Y25,0),$G$21)+ROUNDDOWN($M$17+ROUND(仮想工事!$L$17*$H$26*Y25,0),$G$21)+ROUNDDOWN($N$17+ROUND(仮想工事!$M$17*$H$26*Y25,0),$G$21)+ROUNDDOWN($O$17+ROUND(仮想工事!$N$17*$H$26*Y25,0),$G$21)+ROUNDDOWN($P$17+ROUND(仮想工事!$O$17*$H$26*Y25,0),$G$21)+ROUNDDOWN($Q$17+ROUND(仮想工事!$P$17*$H$26*Y25,0),$G$21)+ROUNDDOWN($R$17+ROUND(仮想工事!$Q$17*$H$26*Y25,0),$G$21)+ROUNDDOWN($S$17+ROUND(仮想工事!$R$17*$H$26*Y25,0),$G$21)+ROUNDDOWN($T$17+ROUND(仮想工事!$S$17*$H$26*Y25,0),$G$21)+ROUNDDOWN($U$17+ROUND(仮想工事!$T$17*$H$26*Y25,0),$G$21),-3) ->  | AE25: 本梅川平成２５年発生土木災害復旧工事【査定番号４０５４号】＜南丹２５－２５災第７２９９の１号の１の３５＞等４工事合冊
D26: 最低制限 | E26: 摘要年月日 | F26: =最低制限価格算出結果!O11 -> 2016-04-01 | H26: =IF(F26=42461,0.9,0.8) -> 0.9 | Y26: 1 | Z26: =ROUNDDOWN(ROUNDDOWN($J$17+ROUND(仮想工事!$I$17*$H$26*Y26,0),$G$21)+ROUNDDOWN($K$17+ROUND(仮想工事!$J$17*$H$26*Y26,0),$G$21)+ROUNDDOWN($L$17+ROUND(仮想工事!$K$17*$H$26*Y26,0),$G$21)+ROUNDDOWN($M$17+ROUND(仮想工事!$L$17*$H$26*Y26,0),$G$21)+ROUNDDOWN($N$17+ROUND(仮想工事!$M$17*$H$26*Y26,0),$G$21)+ROUNDDOWN($O$17+ROUND(仮想工事!$N$17*$H$26*Y26,0),$G$21)+ROUNDDOWN($P$17+ROUND(仮想工事!$O$17*$H$26*Y26,0),$G$21)+ROUNDDOWN($Q$17+ROUND(仮想工事!$P$17*$H$26*Y26,0),$G$21)+ROUNDDOWN($R$17+ROUND(仮想工事!$Q$17*$H$26*Y26,0),$G$21)+ROUNDDOWN($S$17+ROUND(仮想工事!$R$17*$H$26*Y26,0),$G$21)+ROUNDDOWN($T$17+ROUND(仮想工事!$S$17*$H$26*Y26,0),$G$21)+ROUNDDOWN($U$17+ROUND(仮想工事!$T$17*$H$26*Y26,0),$G$21),-3) ->  | AA26: 基準値 | AB26: =Z26-Z25 -> 
E27: 公表価格 | F27: =IF(OR(最低制限価格算出結果!L46>0,F25>0),最低制限価格算出結果!L46,"未公表") -> 未公表 | Y27: 1.01 | Z27: =ROUNDDOWN(ROUNDDOWN($J$17+ROUND(仮想工事!$I$17*$H$26*Y27,0),$G$21)+ROUNDDOWN($K$17+ROUND(仮想工事!$J$17*$H$26*Y27,0),$G$21)+ROUNDDOWN($L$17+ROUND(仮想工事!$K$17*$H$26*Y27,0),$G$21)+ROUNDDOWN($M$17+ROUND(仮想工事!$L$17*$H$26*Y27,0),$G$21)+ROUNDDOWN($N$17+ROUND(仮想工事!$M$17*$H$26*Y27,0),$G$21)+ROUNDDOWN($O$17+ROUND(仮想工事!$N$17*$H$26*Y27,0),$G$21)+ROUNDDOWN($P$17+ROUND(仮想工事!$O$17*$H$26*Y27,0),$G$21)+ROUNDDOWN($Q$17+ROUND(仮想工事!$P$17*$H$26*Y27,0),$G$21)+ROUNDDOWN($R$17+ROUND(仮想工事!$Q$17*$H$26*Y27,0),$G$21)+ROUNDDOWN($S$17+ROUND(仮想工事!$R$17*$H$26*Y27,0),$G$21)+ROUNDDOWN($T$17+ROUND(仮想工事!$S$17*$H$26*Y27,0),$G$21)+ROUNDDOWN($U$17+ROUND(仮想工事!$T$17*$H$26*Y27,0),$G$21),-3) -> 
E28: 入札価格 | F28: =J16+K16+L16+M16+N16+O16+P16+S16 ->  | X28: α係数 | Y28: 1.02 | Z28: =ROUNDDOWN(ROUNDDOWN($J$17+ROUND(仮想工事!$I$17*$H$26*Y28,0),$G$21)+ROUNDDOWN($K$17+ROUND(仮想工事!$J$17*$H$26*Y28,0),$G$21)+ROUNDDOWN($L$17+ROUND(仮想工事!$K$17*$H$26*Y28,0),$G$21)+ROUNDDOWN($M$17+ROUND(仮想工事!$L$17*$H$26*Y28,0),$G$21)+ROUNDDOWN($N$17+ROUND(仮想工事!$M$17*$H$26*Y28,0),$G$21)+ROUNDDOWN($O$17+ROUND(仮想工事!$N$17*$H$26*Y28,0),$G$21)+ROUNDDOWN($P$17+ROUND(仮想工事!$O$17*$H$26*Y28,0),$G$21)+ROUNDDOWN($Q$17+ROUND(仮想工事!$P$17*$H$26*Y28,0),$G$21)+ROUNDDOWN($R$17+ROUND(仮想工事!$Q$17*$H$26*Y28,0),$G$21)+ROUNDDOWN($S$17+ROUND(仮想工事!$R$17*$H$26*Y28,0),$G$21)+ROUNDDOWN($T$17+ROUND(仮想工事!$S$17*$H$26*Y28,0),$G$21)+ROUNDDOWN($U$17+ROUND(仮想工事!$T$17*$H$26*Y28,0),$G$21),-3) -> 
E29: 差額 | F29: =IFERROR(F28-F27,"") ->  | Y29: 1.03 | Z29: =ROUNDDOWN(ROUNDDOWN($J$17+ROUND(仮想工事!$I$17*$H$26*Y29,0),$G$21)+ROUNDDOWN($K$17+ROUND(仮想工事!$J$17*$H$26*Y29,0),$G$21)+ROUNDDOWN($L$17+ROUND(仮想工事!$K$17*$H$26*Y29,0),$G$21)+ROUNDDOWN($M$17+ROUND(仮想工事!$L$17*$H$26*Y29,0),$G$21)+ROUNDDOWN($N$17+ROUND(仮想工事!$M$17*$H$26*Y29,0),$G$21)+ROUNDDOWN($O$17+ROUND(仮想工事!$N$17*$H$26*Y29,0),$G$21)+ROUNDDOWN($P$17+ROUND(仮想工事!$O$17*$H$26*Y29,0),$G$21)+ROUNDDOWN($Q$17+ROUND(仮想工事!$P$17*$H$26*Y29,0),$G$21)+ROUNDDOWN($R$17+ROUND(仮想工事!$Q$17*$H$26*Y29,0),$G$21)+ROUNDDOWN($S$17+ROUND(仮想工事!$R$17*$H$26*Y29,0),$G$21)+ROUNDDOWN($T$17+ROUND(仮想工事!$S$17*$H$26*Y29,0),$G$21)+ROUNDDOWN($U$17+ROUND(仮想工事!$T$17*$H$26*Y29,0),$G$21),-3) -> 
D30: 設計価格 | E30: 公表価格 | F30: =IF(最低制限価格算出結果!L45=0,"未公表",999) -> 未公表 | Y30: 1.04 | Z30: =ROUNDDOWN(ROUNDDOWN($J$17+ROUND(仮想工事!$I$17*$H$26*Y30,0),$G$21)+ROUNDDOWN($K$17+ROUND(仮想工事!$J$17*$H$26*Y30,0),$G$21)+ROUNDDOWN($L$17+ROUND(仮想工事!$K$17*$H$26*Y30,0),$G$21)+ROUNDDOWN($M$17+ROUND(仮想工事!$L$17*$H$26*Y30,0),$G$21)+ROUNDDOWN($N$17+ROUND(仮想工事!$M$17*$H$26*Y30,0),$G$21)+ROUNDDOWN($O$17+ROUND(仮想工事!$N$17*$H$26*Y30,0),$G$21)+ROUNDDOWN($P$17+ROUND(仮想工事!$O$17*$H$26*Y30,0),$G$21)+ROUNDDOWN($Q$17+ROUND(仮想工事!$P$17*$H$26*Y30,0),$G$21)+ROUNDDOWN($R$17+ROUND(仮想工事!$Q$17*$H$26*Y30,0),$G$21)+ROUNDDOWN($S$17+ROUND(仮想工事!$R$17*$H$26*Y30,0),$G$21)+ROUNDDOWN($T$17+ROUND(仮想工事!$S$17*$H$26*Y30,0),$G$21)+ROUNDDOWN($U$17+ROUND(仮想工事!$T$17*$H$26*Y30,0),$G$21),-3) -> 
E31: 積算価格 | F31: =G16 ->  | Y31: 1.041 | Z31: =ROUNDDOWN(ROUNDDOWN($J$17+ROUND(仮想工事!$I$17*$H$26*Y31,0),$G$21)+ROUNDDOWN($K$17+ROUND(仮想工事!$J$17*$H$26*Y31,0),$G$21)+ROUNDDOWN($L$17+ROUND(仮想工事!$K$17*$H$26*Y31,0),$G$21)+ROUNDDOWN($M$17+ROUND(仮想工事!$L$17*$H$26*Y31,0),$G$21)+ROUNDDOWN($N$17+ROUND(仮想工事!$M$17*$H$26*Y31,0),$G$21)+ROUNDDOWN($O$17+ROUND(仮想工事!$N$17*$H$26*Y31,0),$G$21)+ROUNDDOWN($P$17+ROUND(仮想工事!$O$17*$H$26*Y31,0),$G$21)+ROUNDDOWN($Q$17+ROUND(仮想工事!$P$17*$H$26*Y31,0),$G$21)+ROUNDDOWN($R$17+ROUND(仮想工事!$Q$17*$H$26*Y31,0),$G$21)+ROUNDDOWN($S$17+ROUND(仮想工事!$R$17*$H$26*Y31,0),$G$21)+ROUNDDOWN($T$17+ROUND(仮想工事!$S$17*$H$26*Y31,0),$G$21)+ROUNDDOWN($U$17+ROUND(仮想工事!$T$17*$H$26*Y31,0),$G$21),-3) -> 
E32: 差額 | F32: =IFERROR(F31-F30,"") ->  | Y32: 1.05 | Z32: =ROUNDDOWN(ROUNDDOWN($J$17+ROUND(仮想工事!$I$17*$H$26*Y32,0),$G$21)+ROUNDDOWN($K$17+ROUND(仮想工事!$J$17*$H$26*Y32,0),$G$21)+ROUNDDOWN($L$17+ROUND(仮想工事!$K$17*$H$26*Y32,0),$G$21)+ROUNDDOWN($M$17+ROUND(仮想工事!$L$17*$H$26*Y32,0),$G$21)+ROUNDDOWN($N$17+ROUND(仮想工事!$M$17*$H$26*Y32,0),$G$21)+ROUNDDOWN($O$17+ROUND(仮想工事!$N$17*$H$26*Y32,0),$G$21)+ROUNDDOWN($P$17+ROUND(仮想工事!$O$17*$H$26*Y32,0),$G$21)+ROUNDDOWN($Q$17+ROUND(仮想工事!$P$17*$H$26*Y32,0),$G$21)+ROUNDDOWN($R$17+ROUND(仮想工事!$Q$17*$H$26*Y32,0),$G$21)+ROUNDDOWN($S$17+ROUND(仮想工事!$R$17*$H$26*Y32,0),$G$21)+ROUNDDOWN($T$17+ROUND(仮想工事!$S$17*$H$26*Y32,0),$G$21)+ROUNDDOWN($U$17+ROUND(仮想工事!$T$17*$H$26*Y32,0),$G$21),-3) -> 
Y33: 1.06 | Z33: =ROUNDDOWN(ROUNDDOWN($J$17+ROUND(仮想工事!$I$17*$H$26*Y33,0),$G$21)+ROUNDDOWN($K$17+ROUND(仮想工事!$J$17*$H$26*Y33,0),$G$21)+ROUNDDOWN($L$17+ROUND(仮想工事!$K$17*$H$26*Y33,0),$G$21)+ROUNDDOWN($M$17+ROUND(仮想工事!$L$17*$H$26*Y33,0),$G$21)+ROUNDDOWN($N$17+ROUND(仮想工事!$M$17*$H$26*Y33,0),$G$21)+ROUNDDOWN($O$17+ROUND(仮想工事!$N$17*$H$26*Y33,0),$G$21)+ROUNDDOWN($P$17+ROUND(仮想工事!$O$17*$H$26*Y33,0),$G$21)+ROUNDDOWN($Q$17+ROUND(仮想工事!$P$17*$H$26*Y33,0),$G$21)+ROUNDDOWN($R$17+ROUND(仮想工事!$Q$17*$H$26*Y33,0),$G$21)+ROUNDDOWN($S$17+ROUND(仮想工事!$R$17*$H$26*Y33,0),$G$21)+ROUNDDOWN($T$17+ROUND(仮想工事!$S$17*$H$26*Y33,0),$G$21)+ROUNDDOWN($U$17+ROUND(仮想工事!$T$17*$H$26*Y33,0),$G$21),-3) -> 
Y35: この計算結果はシミュレーションであり金額を保証するものではありません。
Y36: 1 | Z36: =ROUNDDOWN(ROUNDDOWN($J$17+ROUND(仮想工事!$I$17*$H$26*Y36,0),$G$21)+ROUNDDOWN($K$17+ROUND(仮想工事!$J$17*$H$26*Y36,0),$G$21)+ROUNDDOWN($L$17+ROUND(仮想工事!$K$17*$H$26*Y36,0),$G$21)+ROUNDDOWN($M$17+ROUND(仮想工事!$L$17*$H$26*Y36,0),$G$21)+ROUNDDOWN($N$17+ROUND(仮想工事!$M$17*$H$26*Y36,0),$G$21)+ROUNDDOWN($O$17+ROUND(仮想工事!$N$17*$H$26*Y36,0),$G$21)+ROUNDDOWN($P$17+ROUND(仮想工事!$O$17*$H$26*Y36,0),$G$21)+ROUNDDOWN($Q$17+ROUND(仮想工事!$P$17*$H$26*Y36,0),$G$21)+ROUNDDOWN($R$17+ROUND(仮想工事!$Q$17*$H$26*Y36,0),$G$21)+ROUNDDOWN($S$17+ROUND(仮想工事!$R$17*$H$26*Y36,0),$G$21)+ROUNDDOWN($T$17+ROUND(仮想工事!$S$17*$H$26*Y36,0),$G$21)+ROUNDDOWN($U$17+ROUND(仮想工事!$T$17*$H$26*Y36,0),$G$21),-3) -> 
Y37: 1.001 | Z37: =ROUNDDOWN(ROUNDDOWN($J$17+ROUND(仮想工事!$I$17*$H$26*Y37,0),$G$21)+ROUNDDOWN($K$17+ROUND(仮想工事!$J$17*$H$26*Y37,0),$G$21)+ROUNDDOWN($L$17+ROUND(仮想工事!$K$17*$H$26*Y37,0),$G$21)+ROUNDDOWN($M$17+ROUND(仮想工事!$L$17*$H$26*Y37,0),$G$21)+ROUNDDOWN($N$17+ROUND(仮想工事!$M$17*$H$26*Y37,0),$G$21)+ROUNDDOWN($O$17+ROUND(仮想工事!$N$17*$H$26*Y37,0),$G$21)+ROUNDDOWN($P$17+ROUND(仮想工事!$O$17*$H$26*Y37,0),$G$21)+ROUNDDOWN($Q$17+ROUND(仮想工事!$P$17*$H$26*Y37,0),$G$21)+ROUNDDOWN($R$17+ROUND(仮想工事!$Q$17*$H$26*Y37,0),$G$21)+ROUNDDOWN($S$17+ROUND(仮想工事!$R$17*$H$26*Y37,0),$G$21)+ROUNDDOWN($T$17+ROUND(仮想工事!$S$17*$H$26*Y37,0),$G$21)+ROUNDDOWN($U$17+ROUND(仮想工事!$T$17*$H$26*Y37,0),$G$21),-3) ->  | AB37: =Z37-Z36 -> 
Y38: 1.002 | Z38: =ROUNDDOWN(ROUNDDOWN($J$17+ROUND(仮想工事!$I$17*$H$26*Y38,0),$G$21)+ROUNDDOWN($K$17+ROUND(仮想工事!$J$17*$H$26*Y38,0),$G$21)+ROUNDDOWN($L$17+ROUND(仮想工事!$K$17*$H$26*Y38,0),$G$21)+ROUNDDOWN($M$17+ROUND(仮想工事!$L$17*$H$26*Y38,0),$G$21)+ROUNDDOWN($N$17+ROUND(仮想工事!$M$17*$H$26*Y38,0),$G$21)+ROUNDDOWN($O$17+ROUND(仮想工事!$N$17*$H$26*Y38,0),$G$21)+ROUNDDOWN($P$17+ROUND(仮想工事!$O$17*$H$26*Y38,0),$G$21)+ROUNDDOWN($Q$17+ROUND(仮想工事!$P$17*$H$26*Y38,0),$G$21)+ROUNDDOWN($R$17+ROUND(仮想工事!$Q$17*$H$26*Y38,0),$G$21)+ROUNDDOWN($S$17+ROUND(仮想工事!$R$17*$H$26*Y38,0),$G$21)+ROUNDDOWN($T$17+ROUND(仮想工事!$S$17*$H$26*Y38,0),$G$21)+ROUNDDOWN($U$17+ROUND(仮想工事!$T$17*$H$26*Y38,0),$G$21),-3) ->  | AB38: =Z38-Z37 -> 
Y39: 1.003 | Z39: =ROUNDDOWN(ROUNDDOWN($J$17+ROUND(仮想工事!$I$17*$H$26*Y39,0),$G$21)+ROUNDDOWN($K$17+ROUND(仮想工事!$J$17*$H$26*Y39,0),$G$21)+ROUNDDOWN($L$17+ROUND(仮想工事!$K$17*$H$26*Y39,0),$G$21)+ROUNDDOWN($M$17+ROUND(仮想工事!$L$17*$H$26*Y39,0),$G$21)+ROUNDDOWN($N$17+ROUND(仮想工事!$M$17*$H$26*Y39,0),$G$21)+ROUNDDOWN($O$17+ROUND(仮想工事!$N$17*$H$26*Y39,0),$G$21)+ROUNDDOWN($P$17+ROUND(仮想工事!$O$17*$H$26*Y39,0),$G$21)+ROUNDDOWN($Q$17+ROUND(仮想工事!$P$17*$H$26*Y39,0),$G$21)+ROUNDDOWN($R$17+ROUND(仮想工事!$Q$17*$H$26*Y39,0),$G$21)+ROUNDDOWN($S$17+ROUND(仮想工事!$R$17*$H$26*Y39,0),$G$21)+ROUNDDOWN($T$17+ROUND(仮想工事!$S$17*$H$26*Y39,0),$G$21)+ROUNDDOWN($U$17+ROUND(仮想工事!$T$17*$H$26*Y39,0),$G$21),-3) -> 
Y40: 1.004 | Z40: =ROUNDDOWN(ROUNDDOWN($J$17+ROUND(仮想工事!$I$17*$H$26*Y40,0),$G$21)+ROUNDDOWN($K$17+ROUND(仮想工事!$J$17*$H$26*Y40,0),$G$21)+ROUNDDOWN($L$17+ROUND(仮想工事!$K$17*$H$26*Y40,0),$G$21)+ROUNDDOWN($M$17+ROUND(仮想工事!$L$17*$H$26*Y40,0),$G$21)+ROUNDDOWN($N$17+ROUND(仮想工事!$M$17*$H$26*Y40,0),$G$21)+ROUNDDOWN($O$17+ROUND(仮想工事!$N$17*$H$26*Y40,0),$G$21)+ROUNDDOWN($P$17+ROUND(仮想工事!$O$17*$H$26*Y40,0),$G$21)+ROUNDDOWN($Q$17+ROUND(仮想工事!$P$17*$H$26*Y40,0),$G$21)+ROUNDDOWN($R$17+ROUND(仮想工事!$Q$17*$H$26*Y40,0),$G$21)+ROUNDDOWN($S$17+ROUND(仮想工事!$R$17*$H$26*Y40,0),$G$21)+ROUNDDOWN($T$17+ROUND(仮想工事!$S$17*$H$26*Y40,0),$G$21)+ROUNDDOWN($U$17+ROUND(仮想工事!$T$17*$H$26*Y40,0),$G$21),-3) ->  | AA40: 基準値 | AB40: =Z40-Z39 -> 
Y41: 1.005 | Z41: =ROUNDDOWN(ROUNDDOWN($J$17+ROUND(仮想工事!$I$17*$H$26*Y41,0),$G$21)+ROUNDDOWN($K$17+ROUND(仮想工事!$J$17*$H$26*Y41,0),$G$21)+ROUNDDOWN($L$17+ROUND(仮想工事!$K$17*$H$26*Y41,0),$G$21)+ROUNDDOWN($M$17+ROUND(仮想工事!$L$17*$H$26*Y41,0),$G$21)+ROUNDDOWN($N$17+ROUND(仮想工事!$M$17*$H$26*Y41,0),$G$21)+ROUNDDOWN($O$17+ROUND(仮想工事!$N$17*$H$26*Y41,0),$G$21)+ROUNDDOWN($P$17+ROUND(仮想工事!$O$17*$H$26*Y41,0),$G$21)+ROUNDDOWN($Q$17+ROUND(仮想工事!$P$17*$H$26*Y41,0),$G$21)+ROUNDDOWN($R$17+ROUND(仮想工事!$Q$17*$H$26*Y41,0),$G$21)+ROUNDDOWN($S$17+ROUND(仮想工事!$R$17*$H$26*Y41,0),$G$21)+ROUNDDOWN($T$17+ROUND(仮想工事!$S$17*$H$26*Y41,0),$G$21)+ROUNDDOWN($U$17+ROUND(仮想工事!$T$17*$H$26*Y41,0),$G$21),-3) ->  | AB41: =Z41-Z40 -> 
X42: ランダム係数 | Y42: 1.006 | Z42: =ROUNDDOWN(ROUNDDOWN($J$17+ROUND(仮想工事!$I$17*$H$26*Y42,0),$G$21)+ROUNDDOWN($K$17+ROUND(仮想工事!$J$17*$H$26*Y42,0),$G$21)+ROUNDDOWN($L$17+ROUND(仮想工事!$K$17*$H$26*Y42,0),$G$21)+ROUNDDOWN($M$17+ROUND(仮想工事!$L$17*$H$26*Y42,0),$G$21)+ROUNDDOWN($N$17+ROUND(仮想工事!$M$17*$H$26*Y42,0),$G$21)+ROUNDDOWN($O$17+ROUND(仮想工事!$N$17*$H$26*Y42,0),$G$21)+ROUNDDOWN($P$17+ROUND(仮想工事!$O$17*$H$26*Y42,0),$G$21)+ROUNDDOWN($Q$17+ROUND(仮想工事!$P$17*$H$26*Y42,0),$G$21)+ROUNDDOWN($R$17+ROUND(仮想工事!$Q$17*$H$26*Y42,0),$G$21)+ROUNDDOWN($S$17+ROUND(仮想工事!$R$17*$H$26*Y42,0),$G$21)+ROUNDDOWN($T$17+ROUND(仮想工事!$S$17*$H$26*Y42,0),$G$21)+ROUNDDOWN($U$17+ROUND(仮想工事!$T$17*$H$26*Y42,0),$G$21),-3) -> 
Y43: 1.007 | Z43: =ROUNDDOWN(ROUNDDOWN($J$17+ROUND(仮想工事!$I$17*$H$26*Y43,0),$G$21)+ROUNDDOWN($K$17+ROUND(仮想工事!$J$17*$H$26*Y43,0),$G$21)+ROUNDDOWN($L$17+ROUND(仮想工事!$K$17*$H$26*Y43,0),$G$21)+ROUNDDOWN($M$17+ROUND(仮想工事!$L$17*$H$26*Y43,0),$G$21)+ROUNDDOWN($N$17+ROUND(仮想工事!$M$17*$H$26*Y43,0),$G$21)+ROUNDDOWN($O$17+ROUND(仮想工事!$N$17*$H$26*Y43,0),$G$21)+ROUNDDOWN($P$17+ROUND(仮想工事!$O$17*$H$26*Y43,0),$G$21)+ROUNDDOWN($Q$17+ROUND(仮想工事!$P$17*$H$26*Y43,0),$G$21)+ROUNDDOWN($R$17+ROUND(仮想工事!$Q$17*$H$26*Y43,0),$G$21)+ROUNDDOWN($S$17+ROUND(仮想工事!$R$17*$H$26*Y43,0),$G$21)+ROUNDDOWN($T$17+ROUND(仮想工事!$S$17*$H$26*Y43,0),$G$21)+ROUNDDOWN($U$17+ROUND(仮想工事!$T$17*$H$26*Y43,0),$G$21),-3) -> 
Y44: 1.008 | Z44: =ROUNDDOWN(ROUNDDOWN($J$17+ROUND(仮想工事!$I$17*$H$26*Y44,0),$G$21)+ROUNDDOWN($K$17+ROUND(仮想工事!$J$17*$H$26*Y44,0),$G$21)+ROUNDDOWN($L$17+ROUND(仮想工事!$K$17*$H$26*Y44,0),$G$21)+ROUNDDOWN($M$17+ROUND(仮想工事!$L$17*$H$26*Y44,0),$G$21)+ROUNDDOWN($N$17+ROUND(仮想工事!$M$17*$H$26*Y44,0),$G$21)+ROUNDDOWN($O$17+ROUND(仮想工事!$N$17*$H$26*Y44,0),$G$21)+ROUNDDOWN($P$17+ROUND(仮想工事!$O$17*$H$26*Y44,0),$G$21)+ROUNDDOWN($Q$17+ROUND(仮想工事!$P$17*$H$26*Y44,0),$G$21)+ROUNDDOWN($R$17+ROUND(仮想工事!$Q$17*$H$26*Y44,0),$G$21)+ROUNDDOWN($S$17+ROUND(仮想工事!$R$17*$H$26*Y44,0),$G$21)+ROUNDDOWN($T$17+ROUND(仮想工事!$S$17*$H$26*Y44,0),$G$21)+ROUNDDOWN($U$17+ROUND(仮想工事!$T$17*$H$26*Y44,0),$G$21),-3) -> 
Y45: 1.009 | Z45: =ROUNDDOWN(ROUNDDOWN($J$17+ROUND(仮想工事!$I$17*$H$26*Y45,0),$G$21)+ROUNDDOWN($K$17+ROUND(仮想工事!$J$17*$H$26*Y45,0),$G$21)+ROUNDDOWN($L$17+ROUND(仮想工事!$K$17*$H$26*Y45,0),$G$21)+ROUNDDOWN($M$17+ROUND(仮想工事!$L$17*$H$26*Y45,0),$G$21)+ROUNDDOWN($N$17+ROUND(仮想工事!$M$17*$H$26*Y45,0),$G$21)+ROUNDDOWN($O$17+ROUND(仮想工事!$N$17*$H$26*Y45,0),$G$21)+ROUNDDOWN($P$17+ROUND(仮想工事!$O$17*$H$26*Y45,0),$G$21)+ROUNDDOWN($Q$17+ROUND(仮想工事!$P$17*$H$26*Y45,0),$G$21)+ROUNDDOWN($R$17+ROUND(仮想工事!$Q$17*$H$26*Y45,0),$G$21)+ROUNDDOWN($S$17+ROUND(仮想工事!$R$17*$H$26*Y45,0),$G$21)+ROUNDDOWN($T$17+ROUND(仮想工事!$S$17*$H$26*Y45,0),$G$21)+ROUNDDOWN($U$17+ROUND(仮想工事!$T$17*$H$26*Y45,0),$G$21),-3) -> 
Y46: 1.01 | Z46: =ROUNDDOWN(ROUNDDOWN($J$17+ROUND(仮想工事!$I$17*$H$26*Y46,0),$G$21)+ROUNDDOWN($K$17+ROUND(仮想工事!$J$17*$H$26*Y46,0),$G$21)+ROUNDDOWN($L$17+ROUND(仮想工事!$K$17*$H$26*Y46,0),$G$21)+ROUNDDOWN($M$17+ROUND(仮想工事!$L$17*$H$26*Y46,0),$G$21)+ROUNDDOWN($N$17+ROUND(仮想工事!$M$17*$H$26*Y46,0),$G$21)+ROUNDDOWN($O$17+ROUND(仮想工事!$N$17*$H$26*Y46,0),$G$21)+ROUNDDOWN($P$17+ROUND(仮想工事!$O$17*$H$26*Y46,0),$G$21)+ROUNDDOWN($Q$17+ROUND(仮想工事!$P$17*$H$26*Y46,0),$G$21)+ROUNDDOWN($R$17+ROUND(仮想工事!$Q$17*$H$26*Y46,0),$G$21)+ROUNDDOWN($S$17+ROUND(仮想工事!$R$17*$H$26*Y46,0),$G$21)+ROUNDDOWN($T$17+ROUND(仮想工事!$S$17*$H$26*Y46,0),$G$21)+ROUNDDOWN($U$17+ROUND(仮想工事!$T$17*$H$26*Y46,0),$G$21),-3) -> 

Sheet 登録情報 (hidden)
B1: 登録情報 | C1: 最低制限価格算出結果
A3: 土木事務所
A4: 総合評価
A5: 開札年月日
A6: 種別
A7: 工事名
A8: 工事場所
A9: 工種
A10: 施工地域・工事場所による補正
A11: ①予定金額 | B11: =C11 -> 24870000 | C11: =最低制限価格算出結果!L43 -> 24870000
A12: ②設計金額
A13: ②-①
A14: ③設計最低制限価格 直95+共90+現90+一般55
A15: ④最低制限価格
A16: ④-③
A17: 現場管理費*α
A18: α
A19: 直接工事費
A20: 共通仮設費
A21: 現場管理費
A22: 一般管理費
A23: 最低制限価格/設計価格
A24: 最低制限価格/予定価格
A25: 施工箇所点在
A26: 備考

Sheet 現場検索 (hidden)
A1: 経費管理\[京都府価格算出参考資料ver2016-01.xlsm]一覧'!$A:$Bc | E1: 工事実績一覧表
C2: =IF(AND(手動入力!H47="",最低制限価格算出結果!N43=""),test,IF(手動入力!H47="",最低制限価格算出結果!N43,手動入力!H47)) ->  | E2: =最低制限価格算出結果!J50 -> H2805-142 | H2: =最低制限価格算出結果!L50 -> 281212-001 | I2: =最低制限価格算出結果!N50 -> H2805-138 | J2: =最低制限価格算出結果!P50 -> 2803-248 | K2: =最低制限価格算出結果!R50 -> 2803-249 | L2: =最低制限価格算出結果!T50 -> 271111-59 | M2: =最低制限価格算出結果!V50 -> 271109-261
B4: 工事名 | C4: =VLOOKUP(C2,一覧工事検索,6,0) ->  | E4: =VLOOKUP(E2,一覧工事検索,6,0) ->  | H4: =VLOOKUP(H2,一覧工事検索,6,0) -> 管内一円（長尾八幡線）地域振興道路工事
B5: 個所名 | C5: =VLOOKUP(C2,一覧工事検索,8,0)&VLOOKUP(C2,一覧工事検索,9,0) ->  | E5: =VLOOKUP(E2,一覧工事検索,8,0)&VLOOKUP(E2,一覧工事検索,9,0) ->  | H5: =VLOOKUP(H2,一覧工事検索,8,0)&VLOOKUP(H2,一覧工事検索,9,0) -> 舗装工事影響受ける
B6: 直接工事費計 | C6: =VLOOKUP(C$2,一覧工事検索,22,0) ->  | E6: =VLOOKUP(E$2,一覧工事検索,22,0) ->  | H6: =VLOOKUP(H$2,一覧工事検索,22,0) -> 0.8742442563
B7: 共通仮設費計 | C7: =VLOOKUP(C$2,一覧工事検索,23,0) ->  | E7: =VLOOKUP(E$2,一覧工事検索,23,0) ->  | H7: =VLOOKUP(H$2,一覧工事検索,23,0) -> 0.8745967742
B8: 現場管理費 | C8: =VLOOKUP(C$2,一覧工事検索,24,0) ->  | E8: =VLOOKUP(E$2,一覧工事検索,24,0) ->  | H8: =VLOOKUP(H$2,一覧工事検索,24,0) -> 0
B9: 一般管理費 | C9: =VLOOKUP(C$2,一覧工事検索,25,0) ->  | E9: =VLOOKUP(E$2,一覧工事検索,25,0) ->  | H9: =VLOOKUP(H$2,一覧工事検索,25,0) -> 0
C10: =C23+#REF!+C25+#REF!+C27 ->  | E10: =E23+E24+E25+#REF!+E27 -> 
C11: =#REF!+#REF!+#REF!+#REF!+#REF! ->  | E11: =#REF!+#REF!+#REF!+#REF!+#REF! -> 
C12: =#REF!+#REF!+#REF!+#REF!+#REF! ->  | E12: =#REF!+#REF!+#REF!+#REF!+#REF! -> 
C13: =C24+#REF!+#REF!+C27+#REF! ->  | E13: =#REF!+#REF!+#REF!+E27+#REF! -> 
B15: 予定価格（公表） | C15: =VLOOKUP(C$2,一覧工事検索,13,0) -> 
B16: 積算価格（公表） | C16: =VLOOKUP(C$2,一覧工事検索,14,0) -> 
B17: 最低制限価格1 | C17: =VLOOKUP(C$2,一覧工事検索,17,0) ->  | E17: =VLOOKUP(E$2,一覧工事検索,17,0) ->  | H17: =VLOOKUP(H$2,一覧工事検索,17,0) -> 1.042496485
B18: 公告
B19: 現場管理費α値 | C19: =IF(VLOOKUP(C$2,一覧工事検索,21,0)>1,VLOOKUP(C$2,一覧工事検索,21,0),VLOOKUP(C$2,一覧工事検索,20,0)) ->  | E19: =IF(VLOOKUP(E$2,一覧工事検索,21,0)>1,VLOOKUP(E$2,一覧工事検索,21,0),VLOOKUP(E$2,一覧工事検索,20,0)) ->  | H19: =IF(VLOOKUP(H$2,一覧工事検索,21,0)>1,VLOOKUP(H$2,一覧工事検索,21,0),VLOOKUP(H$2,一覧工事検索,20,0)) -> 1234624
B20: 落札額 | C20: =VLOOKUP(C$2,一覧工事検索,32,0) ->  | E20: =VLOOKUP(E$2,一覧工事検索,32,0) ->  | H20: =VLOOKUP(H$2,一覧工事検索,32,0) -> 
B21: 開札執行日 | C21: =VLOOKUP(C$2,一覧工事検索,4,0) -> 
B22: 落札者 | C22: =VLOOKUP(C$2,一覧工事検索,31,0) -> 
B23: 直接工事費1 | C23: =VLOOKUP($C$2,一覧工事検索,44,0) ->  | E23: =VLOOKUP($E$2,一覧工事検索,41,0) -> 
B24: 直接工事費2 | C24: =VLOOKUP($C$2,一覧工事検索,45,0) ->  | E24: =VLOOKUP($E$2,一覧工事検索,45,0) -> 
B25: 直接工事費3 | C25: =VLOOKUP($C$2,一覧工事検索,46,0) -> 
B26: 直接工事費4 | C26: =VLOOKUP($C$2,一覧工事検索,47,0) -> 
B27: 直接工事費5 | C27: =VLOOKUP($C$2,一覧工事検索,48,0) -> 
B28: 直接工事費6 | C28: =VLOOKUP($C$2,一覧工事検索,49,0) -> 
B29: 直接工事費7 | C29: =VLOOKUP($C$2,一覧工事検索,50,0) -> 
B30: 直接工事費8 | C30: =VLOOKUP($C$2,一覧工事検索,51,0) -> 
B31: 直接工事費9 | C31: =VLOOKUP($C$2,一覧工事検索,52,0) -> 
B32: 直接工事費10 | C32: =VLOOKUP($C$2,一覧工事検索,53,0) -> 
B33: 直接工事費11 | C33: =VLOOKUP($C$2,一覧工事検索,54,0) -> 
B34: 直接工事費12 | C34: =VLOOKUP($C$2,一覧工事検索,55,0) -> 
B37: 貴社応札額 | C37: =VLOOKUP(C$2,一覧工事検索,33,0) -> 

Sheet 基礎DATA (hidden)
A25: 基礎data
A27: 京都府価格算出参考資料

Sheet （平成２８年４月１日以降）低入札個別計算表 (hidden)
B2: 京都府 最低制限価格一覧（α値）
AU5: 予定価格
B8: 工事名
B11: 最低制限価格 ＝ （直接工事費×０．９５）+（共通仮設費計×０．９）+（現場管理費×０．９×α値 【０．９４０≦１．０００≦１．０６０】）+（一般管理費×０．５５）
B14: 直接工事費計 | Q14: =最低制限価格算出結果!J21 -> 0 | AL14: 予定価格の９０％（上限値） | AX14: =AZ5*0.9 -> 0
B16: 共通仮設費計 | Q16: =最低制限価格算出結果!J22 -> 0 | AL16: 予定価格の７０％（下限値） | AX16: =AZ5*0.7 -> 0
B18: 現場管理費計 | Q18: =最低制限価格算出結果!J23 -> 0 | AL18: 判定 | AX18: 合計値を採用する(1円未満切り捨て)
B20: 一般管理費計 | Q20: =最低制限価格算出結果!J38 ->  | AL20: 最低制限価格【基本価格】
B22: 上記合計 | Q22: =SUM(Q14:AG21) ->  | AL22: =($Q$14*0.95)+($Q$16*0.9)+($Q$18*0.9)+($Q$20*0.55) -> 
B25: 《参考》最 低 制 限 価 格 （税抜）
B27: α値 | L27: 金 額 | V27: α値 | AF27: 金 額 | AP27: α値 | AZ27: 金 額
B29: 0.94 | L29: =($Q$14*0.95)+($Q$16*0.9)+($Q$18*0.9*B29)+($Q$20*0.55) ->  | V29: 0.981 | AF29: =($Q$14*0.95)+($Q$16*0.9)+($Q$18*0.9*V29)+($Q$20*0.55) ->  | AP29: 1.022 | AZ29: =($Q$14*0.95)+($Q$16*0.9)+($Q$18*0.9*AP29)+($Q$20*0.55) -> 
B31: =B29+0.001 -> 0.941 | L31: =($Q$14*0.95)+($Q$16*0.9)+($Q$18*0.9*B31)+($Q$20*0.55) ->  | V31: =V29+0.001 -> 0.982 | AF31: =($Q$14*0.95)+($Q$16*0.9)+($Q$18*0.9*V31)+($Q$20*0.55) ->  | AP31: =AP29+0.001 -> 1.023 | AZ31: =($Q$14*0.95)+($Q$16*0.9)+($Q$18*0.9*AP31)+($Q$20*0.55) -> 
B33: =B31+0.001 -> 0.942 | L33: =($Q$14*0.95)+($Q$16*0.9)+($Q$18*0.9*B33)+($Q$20*0.55) ->  | V33: =V31+0.001 -> 0.983 | AF33: =($Q$14*0.95)+($Q$16*0.9)+($Q$18*0.9*V33)+($Q$20*0.55) ->  | AP33: =AP31+0.001 -> 1.024 | AZ33: =($Q$14*0.95)+($Q$16*0.9)+($Q$18*0.9*AP33)+($Q$20*0.55) -> 
B35: =B33+0.001 -> 0.943 | L35: =($Q$14*0.95)+($Q$16*0.9)+($Q$18*0.9*B35)+($Q$20*0.55) ->  | V35: =V33+0.001 -> 0.984 | AF35: =($Q$14*0.95)+($Q$16*0.9)+($Q$18*0.9*V35)+($Q$20*0.55) ->  | AP35: =AP33+0.001 -> 1.025 | AZ35: =($Q$14*0.95)+($Q$16*0.9)+($Q$18*0.9*AP35)+($Q$20*0.55) -> 
B37: =B35+0.001 -> 0.944 | L37: =($Q$14*0.95)+($Q$16*0.9)+($Q$18*0.9*B37)+($Q$20*0.55) ->  | V37: =V35+0.001 -> 0.985 | AF37: =($Q$14*0.95)+($Q$16*0.9)+($Q$18*0.9*V37)+($Q$20*0.55) ->  | AP37: =AP35+0.001 -> 1.026 | AZ37: =($Q$14*0.95)+($Q$16*0.9)+($Q$18*0.9*AP37)+($Q$20*0.55) -> 
B39: =B37+0.001 -> 0.945 | L39: =($Q$14*0.95)+($Q$16*0.9)+($Q$18*0.9*B39)+($Q$20*0.55) ->  | V39: =V37+0.001 -> 0.986 | AF39: =($Q$14*0.95)+($Q$16*0.9)+($Q$18*0.9*V39)+($Q$20*0.55) ->  | AP39: =AP37+0.001 -> 1.027 | AZ39: =($Q$14*0.95)+($Q$16*0.9)+($Q$18*0.9*AP39)+($Q$20*0.55) -> 
B41: =B39+0.001 -> 0.946 | L41: =($Q$14*0.95)+($Q$16*0.9)+($Q$18*0.9*B41)+($Q$20*0.55) ->  | V41: =V39+0.001 -> 0.987 | AF41: =($Q$14*0.95)+($Q$16*0.9)+($Q$18*0.9*V41)+($Q$20*0.55) ->  | AP41: =AP39+0.001 -> 1.028 | AZ41: =($Q$14*0.95)+($Q$16*0.9)+($Q$18*0.9*AP41)+($Q$20*0.55) -> 
B43: =B41+0.001 -> 0.947 | L43: =($Q$14*0.95)+($Q$16*0.9)+($Q$18*0.9*B43)+($Q$20*0.55) ->  | V43: =V41+0.001 -> 0.988 | AF43: =($Q$14*0.95)+($Q$16*0.9)+($Q$18*0.9*V43)+($Q$20*0.55) ->  | AP43: =AP41+0.001 -> 1.029 | AZ43: =($Q$14*0.95)+($Q$16*0.9)+($Q$18*0.9*AP43)+($Q$20*0.55) -> 
B45: =B43+0.001 -> 0.948 | L45: =($Q$14*0.95)+($Q$16*0.9)+($Q$18*0.9*B45)+($Q$20*0.55) ->  | V45: =V43+0.001 -> 0.989 | AF45: =($Q$14*0.95)+($Q$16*0.9)+($Q$18*0.9*V45)+($Q$20*0.55) ->  | AP45: =AP43+0.001 -> 1.03 | AZ45: =($Q$14*0.95)+($Q$16*0.9)+($Q$18*0.9*AP45)+($Q$20*0.55) -> 
B47: =B45+0.001 -> 0.949 | L47: =($Q$14*0.95)+($Q$16*0.9)+($Q$18*0.9*B47)+($Q$20*0.55) ->  | V47: =V45+0.001 -> 0.99 | AF47: =($Q$14*0.95)+($Q$16*0.9)+($Q$18*0.9*V47)+($Q$20*0.55) ->  | AP47: =AP45+0.001 -> 1.031 | AZ47: =($Q$14*0.95)+($Q$16*0.9)+($Q$18*0.9*AP47)+($Q$20*0.55) -> 
B49: =B47+0.001 -> 0.95 | L49: =($Q$14*0.95)+($Q$16*0.9)+($Q$18*0.9*B49)+($Q$20*0.55) ->  | V49: =V47+0.001 -> 0.991 | AF49: =($Q$14*0.95)+($Q$16*0.9)+($Q$18*0.9*V49)+($Q$20*0.55) ->  | AP49: =AP47+0.001 -> 1.032 | AZ49: =($Q$14*0.95)+($Q$16*0.9)+($Q$18*0.9*AP49)+($Q$20*0.55) -> 
B51: =B49+0.001 -> 0.951 | L51: =($Q$14*0.95)+($Q$16*0.9)+($Q$18*0.9*B51)+($Q$20*0.55) ->  | V51: =V49+0.001 -> 0.992 | AF51: =($Q$14*0.95)+($Q$16*0.9)+($Q$18*0.9*V51)+($Q$20*0.55) ->  | AP51: =AP49+0.001 -> 1.033 | AZ51: =($Q$14*0.95)+($Q$16*0.9)+($Q$18*0.9*AP51)+($Q$20*0.55) -> 
B53: =B51+0.001 -> 0.952 | L53: =($Q$14*0.95)+($Q$16*0.9)+($Q$18*0.9*B53)+($Q$20*0.55) ->  | V53: =V51+0.001 -> 0.993 | AF53: =($Q$14*0.95)+($Q$16*0.9)+($Q$18*0.9*V53)+($Q$20*0.55) ->  | AP53: =AP51+0.001 -> 1.034 | AZ53: =($Q$14*0.95)+($Q$16*0.9)+($Q$18*0.9*AP53)+($Q$20*0.55) -> 
B55: =B53+0.001 -> 0.953 | L55: =($Q$14*0.95)+($Q$16*0.9)+($Q$18*0.9*B55)+($Q$20*0.55) ->  | V55: =V53+0.001 -> 0.994 | AF55: =($Q$14*0.95)+($Q$16*0.9)+($Q$18*0.9*V55)+($Q$20*0.55) ->  | AP55: =AP53+0.001 -> 1.035 | AZ55: =($Q$14*0.95)+($Q$16*0.9)+($Q$18*0.9*AP55)+($Q$20*0.55) -> 
B57: =B55+0.001 -> 0.954 | L57: =($Q$14*0.95)+($Q$16*0.9)+($Q$18*0.9*B57)+($Q$20*0.55) ->  | V57: =V55+0.001 -> 0.995 | AF57: =($Q$14*0.95)+($Q$16*0.9)+($Q$18*0.9*V57)+($Q$20*0.55) ->  | AP57: =AP55+0.001 -> 1.036 | AZ57: =($Q$14*0.95)+($Q$16*0.9)+($Q$18*0.9*AP57)+($Q$20*0.55) -> 
B59: =B57+0.001 -> 0.955 | L59: =($Q$14*0.95)+($Q$16*0.9)+($Q$18*0.9*B59)+($Q$20*0.55) ->  | V59: =V57+0.001 -> 0.996 | AF59: =($Q$14*0.95)+($Q$16*0.9)+($Q$18*0.9*V59)+($Q$20*0.55) ->  | AP59: =AP57+0.001 -> 1.037 | AZ59: =($Q$14*0.95)+($Q$16*0.9)+($Q$18*0.9*AP59)+($Q$20*0.55) -> 
B61: =B59+0.001 -> 0.956 | L61: =($Q$14*0.95)+($Q$16*0.9)+($Q$18*0.9*B61)+($Q$20*0.55) ->  | V61: =V59+0.001 -> 0.997 | AF61: =($Q$14*0.95)+($Q$16*0.9)+($Q$18*0.9*V61)+($Q$20*0.55) ->  | AP61: =AP59+0.001 -> 1.038 | AZ61: =($Q$14*0.95)+($Q$16*0.9)+($Q$18*0.9*AP61)+($Q$20*0.55) -> 
B63: =B61+0.001 -> 0.957 | L63: =($Q$14*0.95)+($Q$16*0.9)+($Q$18*0.9*B63)+($Q$20*0.55) ->  | V63: =V61+0.001 -> 0.998 | AF63: =($Q$14*0.95)+($Q$16*0.9)+($Q$18*0.9*V63)+($Q$20*0.55) ->  | AP63: =AP61+0.001 -> 1.039 | AZ63: =($Q$14*0.95)+($Q$16*0.9)+($Q$18*0.9*AP63)+($Q$20*0.55) -> 
B65: =B63+0.001 -> 0.958 | L65: =($Q$14*0.95)+($Q$16*0.9)+($Q$18*0.9*B65)+($Q$20*0.55) ->  | V65: =V63+0.001 -> 0.999 | AF65: =($Q$14*0.95)+($Q$16*0.9)+($Q$18*0.9*V65)+($Q$20*0.55) ->  | AP65: =AP63+0.001 -> 1.04 | AZ65: =($Q$14*0.95)+($Q$16*0.9)+($Q$18*0.9*AP65)+($Q$20*0.55) -> 
B67: =B65+0.001 -> 0.959 | L67: =($Q$14*0.95)+($Q$16*0.9)+($Q$18*0.9*B67)+($Q$20*0.55) ->  | V67: =V65+0.001 -> 1 | AF67: =($Q$14*0.95)+($Q$16*0.9)+($Q$18*0.9*V67)+($Q$20*0.55) ->  | AP67: =AP65+0.001 -> 1.041 | AZ67: =($Q$14*0.95)+($Q$16*0.9)+($Q$18*0.9*AP67)+($Q$20*0.55) -> 
B69: =B67+0.001 -> 0.96 | L69: =($Q$14*0.95)+($Q$16*0.9)+($Q$18*0.9*B69)+($Q$20*0.55) ->  | V69: =V67+0.001 -> 1.001 | AF69: =($Q$14*0.95)+($Q$16*0.9)+($Q$18*0.9*V69)+($Q$20*0.55) ->  | AP69: =AP67+0.001 -> 1.042 | AZ69: =($Q$14*0.95)+($Q$16*0.9)+($Q$18*0.9*AP69)+($Q$20*0.55) -> 
B71: =B69+0.001 -> 0.961 | L71: =($Q$14*0.95)+($Q$16*0.9)+($Q$18*0.9*B71)+($Q$20*0.55) ->  | V71: =V69+0.001 -> 1.002 | AF71: =($Q$14*0.95)+($Q$16*0.9)+($Q$18*0.9*V71)+($Q$20*0.55) ->  | AP71: =AP69+0.001 -> 1.043 | AZ71: =($Q$14*0.95)+($Q$16*0.9)+($Q$18*0.9*AP71)+($Q$20*0.55) -> 
B73: =B71+0.001 -> 0.962 | L73: =($Q$14*0.95)+($Q$16*0.9)+($Q$18*0.9*B73)+($Q$20*0.55) ->  | V73: =V71+0.001 -> 1.003 | AF73: =($Q$14*0.95)+($Q$16*0.9)+($Q$18*0.9*V73)+($Q$20*0.55) ->  | AP73: =AP71+0.001 -> 1.044 | AZ73: =($Q$14*0.95)+($Q$16*0.9)+($Q$18*0.9*AP73)+($Q$20*0.55) -> 
B75: =B73+0.001 -> 0.963 | L75: =($Q$14*0.95)+($Q$16*0.9)+($Q$18*0.9*B75)+($Q$20*0.55) ->  | V75: =V73+0.001 -> 1.004 | AF75: =($Q$14*0.95)+($Q$16*0.9)+($Q$18*0.9*V75)+($Q$20*0.55) ->  | AP75: =AP73+0.001 -> 1.045 | AZ75: =($Q$14*0.95)+($Q$16*0.9)+($Q$18*0.9*AP75)+($Q$20*0.55) -> 
B77: =B75+0.001 -> 0.964 | L77: =($Q$14*0.95)+($Q$16*0.9)+($Q$18*0.9*B77)+($Q$20*0.55) ->  | V77: =V75+0.001 -> 1.005 | AF77: =($Q$14*0.95)+($Q$16*0.9)+($Q$18*0.9*V77)+($Q$20*0.55) ->  | AP77: =AP75+0.001 -> 1.046 | AZ77: =($Q$14*0.95)+($Q$16*0.9)+($Q$18*0.9*AP77)+($Q$20*0.55) -> 
B79: =B77+0.001 -> 0.965 | L79: =($Q$14*0.95)+($Q$16*0.9)+($Q$18*0.9*B79)+($Q$20*0.55) ->  | V79: =V77+0.001 -> 1.006 | AF79: =($Q$14*0.95)+($Q$16*0.9)+($Q$18*0.9*V79)+($Q$20*0.55) ->  | AP79: =AP77+0.001 -> 1.047 | AZ79: =($Q$14*0.95)+($Q$16*0.9)+($Q$18*0.9*AP79)+($Q$20*0.55) -> 
B81: =B79+0.001 -> 0.966 | L81: =($Q$14*0.95)+($Q$16*0.9)+($Q$18*0.9*B81)+($Q$20*0.55) ->  | V81: =V79+0.001 -> 1.007 | AF81: =($Q$14*0.95)+($Q$16*0.9)+($Q$18*0.9*V81)+($Q$20*0.55) ->  | AP81: =AP79+0.001 -> 1.048 | AZ81: =($Q$14*0.95)+($Q$16*0.9)+($Q$18*0.9*AP81)+($Q$20*0.55) -> 
B83: =B81+0.001 -> 0.967 | L83: =($Q$14*0.95)+($Q$16*0.9)+($Q$18*0.9*B83)+($Q$20*0.55) ->  | V83: =V81+0.001 -> 1.008 | AF83: =($Q$14*0.95)+($Q$16*0.9)+($Q$18*0.9*V83)+($Q$20*0.55) ->  | AP83: =AP81+0.001 -> 1.049 | AZ83: =($Q$14*0.95)+($Q$16*0.9)+($Q$18*0.9*AP83)+($Q$20*0.55) -> 
B85: =B83+0.001 -> 0.968 | L85: =($Q$14*0.95)+($Q$16*0.9)+($Q$18*0.9*B85)+($Q$20*0.55) ->  | V85: =V83+0.001 -> 1.009 | AF85: =($Q$14*0.95)+($Q$16*0.9)+($Q$18*0.9*V85)+($Q$20*0.55) ->  | AP85: =AP83+0.001 -> 1.05 | AZ85: =($Q$14*0.95)+($Q$16*0.9)+($Q$18*0.9*AP85)+($Q$20*0.55) -> 
B87: =B85+0.001 -> 0.969 | L87: =($Q$14*0.95)+($Q$16*0.9)+($Q$18*0.9*B87)+($Q$20*0.55) ->  | V87: =V85+0.001 -> 1.01 | AF87: =($Q$14*0.95)+($Q$16*0.9)+($Q$18*0.9*V87)+($Q$20*0.55) ->  | AP87: =AP85+0.001 -> 1.051 | AZ87: =($Q$14*0.95)+($Q$16*0.9)+($Q$18*0.9*AP87)+($Q$20*0.55) -> 
B89: =B87+0.001 -> 0.97 | L89: =($Q$14*0.95)+($Q$16*0.9)+($Q$18*0.9*B89)+($Q$20*0.55) ->  | V89: =V87+0.001 -> 1.011 | AF89: =($Q$14*0.95)+($Q$16*0.9)+($Q$18*0.9*V89)+($Q$20*0.55) ->  | AP89: =AP87+0.001 -> 1.052 | AZ89: =($Q$14*0.95)+($Q$16*0.9)+($Q$18*0.9*AP89)+($Q$20*0.55) -> 
B91: =B89+0.001 -> 0.971 | L91: =($Q$14*0.95)+($Q$16*0.9)+($Q$18*0.9*B91)+($Q$20*0.55) ->  | V91: =V89+0.001 -> 1.012 | AF91: =($Q$14*0.95)+($Q$16*0.9)+($Q$18*0.9*V91)+($Q$20*0.55) ->  | AP91: =AP89+0.001 -> 1.053 | AZ91: =($Q$14*0.95)+($Q$16*0.9)+($Q$18*0.9*AP91)+($Q$20*0.55) -> 
B93: =B91+0.001 -> 0.972 | L93: =($Q$14*0.95)+($Q$16*0.9)+($Q$18*0.9*B93)+($Q$20*0.55) ->  | V93: =V91+0.001 -> 1.013 | AF93: =($Q$14*0.95)+($Q$16*0.9)+($Q$18*0.9*V93)+($Q$20*0.55) ->  | AP93: =AP91+0.001 -> 1.054 | AZ93: =($Q$14*0.95)+($Q$16*0.9)+($Q$18*0.9*AP93)+($Q$20*0.55) -> 
B95: =B93+0.001 -> 0.973 | L95: =($Q$14*0.95)+($Q$16*0.9)+($Q$18*0.9*B95)+($Q$20*0.55) ->  | V95: =V93+0.001 -> 1.014 | AF95: =($Q$14*0.95)+($Q$16*0.9)+($Q$18*0.9*V95)+($Q$20*0.55) ->  | AP95: =AP93+0.001 -> 1.055 | AZ95: =($Q$14*0.95)+($Q$16*0.9)+($Q$18*0.9*AP95)+($Q$20*0.55) -> 
B97: =B95+0.001 -> 0.974 | L97: =($Q$14*0.95)+($Q$16*0.9)+($Q$18*0.9*B97)+($Q$20*0.55) ->  | V97: =V95+0.001 -> 1.015 | AF97: =($Q$14*0.95)+($Q$16*0.9)+($Q$18*0.9*V97)+($Q$20*0.55) ->  | AP97: =AP95+0.001 -> 1.056 | AZ97: =($Q$14*0.95)+($Q$16*0.9)+($Q$18*0.9*AP97)+($Q$20*0.55) -> 
B99: =B97+0.001 -> 0.975 | L99: =($Q$14*0.95)+($Q$16*0.9)+($Q$18*0.9*B99)+($Q$20*0.55) ->  | V99: =V97+0.001 -> 1.016 | AF99: =($Q$14*0.95)+($Q$16*0.9)+($Q$18*0.9*V99)+($Q$20*0.55) ->  | AP99: =AP97+0.001 -> 1.057 | AZ99: =($Q$14*0.95)+($Q$16*0.9)+($Q$18*0.9*AP99)+($Q$20*0.55) -> 
B101: =B99+0.001 -> 0.976 | L101: =($Q$14*0.95)+($Q$16*0.9)+($Q$18*0.9*B101)+($Q$20*0.55) ->  | V101: =V99+0.001 -> 1.017 | AF101: =($Q$14*0.95)+($Q$16*0.9)+($Q$18*0.9*V101)+($Q$20*0.55) ->  | AP101: =AP99+0.001 -> 1.058 | AZ101: =($Q$14*0.95)+($Q$16*0.9)+($Q$18*0.9*AP101)+($Q$20*0.55) -> 
B103: =B101+0.001 -> 0.977 | L103: =($Q$14*0.95)+($Q$16*0.9)+($Q$18*0.9*B103)+($Q$20*0.55) ->  | V103: =V101+0.001 -> 1.018 | AF103: =($Q$14*0.95)+($Q$16*0.9)+($Q$18*0.9*V103)+($Q$20*0.55) ->  | AP103: =AP101+0.001 -> 1.059 | AZ103: =($Q$14*0.95)+($Q$16*0.9)+($Q$18*0.9*AP103)+($Q$20*0.55) -> 
B105: =B103+0.001 -> 0.978 | L105: =($Q$14*0.95)+($Q$16*0.9)+($Q$18*0.9*B105)+($Q$20*0.55) ->  | V105: =V103+0.001 -> 1.019 | AF105: =($Q$14*0.95)+($Q$16*0.9)+($Q$18*0.9*V105)+($Q$20*0.55) ->  | AP105: =AP103+0.001 -> 1.06 | AZ105: =($Q$14*0.95)+($Q$16*0.9)+($Q$18*0.9*AP105)+($Q$20*0.55) -> 
B107: =B105+0.001 -> 0.979 | L107: =($Q$14*0.95)+($Q$16*0.9)+($Q$18*0.9*B107)+($Q$20*0.55) ->  | V107: =V105+0.001 -> 1.02 | AF107: =($Q$14*0.95)+($Q$16*0.9)+($Q$18*0.9*V107)+($Q$20*0.55) -> 
B109: =B107+0.001 -> 0.98 | L109: =($Q$14*0.95)+($Q$16*0.9)+($Q$18*0.9*B109)+($Q$20*0.55) ->  | V109: =V107+0.001 -> 1.021 | AF109: =($Q$14*0.95)+($Q$16*0.9)+($Q$18*0.9*V109)+($Q$20*0.55) -> 

Sheet 【旧】低入札個別計算表 (hidden)
B2: 京都府 最低制限価格一覧（α値）
AU5: 予定価格 | AZ5: 15000000
B8: 工事名
B11: 最低制限価格 ＝ （直接工事費×０．９５）+（共通仮設費計×０．９）+（現場管理費×０．８×α値 【０．９４０≦１．０００≦１．０６０】）+（一般管理費×０．５５）
B14: 直接工事費計 | Q14: 1234569 | AL14: 予定価格の９０％（上限値） | AX14: =AZ5*0.9 -> 13500000
B16: 共通仮設費計 | Q16: 123456 | AL16: 予定価格の７０％（下限値） | AX16: =AZ5*0.7 -> 10500000
B18: 現場管理費計 | Q18: 7096000 | AL18: 判定 | AX18: 合計値を採用する(1円未満切り捨て)
B20: 一般管理費計 | Q20: 2620956 | AL20: 最低制限価格【基本価格】
B22: 上記合計 | Q22: =SUM(Q14:AG21) -> 11074981 | AL22: =($Q$14*0.95)+($Q$16*0.9)+($Q$18*0.8)+($Q$20*0.55) -> 8402276.75
B25: 《参考》最 低 制 限 価 格 （税抜）
B27: α値 | L27: 金 額 | V27: α値 | AF27: 金 額 | AP27: α値 | AZ27: 金 額
B29: 0.94 | L29: =($Q$14*0.95)+($Q$16*0.9)+($Q$18*0.8*B29)+($Q$20*0.55) -> 8061668.75 | V29: 0.981 | AF29: =($Q$14*0.95)+($Q$16*0.9)+($Q$18*0.8*V29)+($Q$20*0.55) -> 8294417.55 | AP29: 1.022 | AZ29: =($Q$14*0.95)+($Q$16*0.9)+($Q$18*0.8*AP29)+($Q$20*0.55) -> 8527166.35
B31: =B29+0.001 -> 0.941 | L31: =($Q$14*0.95)+($Q$16*0.9)+($Q$18*0.8*B31)+($Q$20*0.55) -> 8067345.55 | V31: =V29+0.001 -> 0.982 | AF31: =($Q$14*0.95)+($Q$16*0.9)+($Q$18*0.8*V31)+($Q$20*0.55) -> 8300094.35 | AP31: =AP29+0.001 -> 1.023 | AZ31: =($Q$14*0.95)+($Q$16*0.9)+($Q$18*0.8*AP31)+($Q$20*0.55) -> 8532843.15
B33: =B31+0.001 -> 0.942 | L33: =($Q$14*0.95)+($Q$16*0.9)+($Q$18*0.8*B33)+($Q$20*0.55) -> 8073022.35 | V33: =V31+0.001 -> 0.983 | AF33: =($Q$14*0.95)+($Q$16*0.9)+($Q$18*0.8*V33)+($Q$20*0.55) -> 8305771.15 | AP33: =AP31+0.001 -> 1.024 | AZ33: =($Q$14*0.95)+($Q$16*0.9)+($Q$18*0.8*AP33)+($Q$20*0.55) -> 8538519.95
B35: =B33+0.001 -> 0.943 | L35: =($Q$14*0.95)+($Q$16*0.9)+($Q$18*0.8*B35)+($Q$20*0.55) -> 8078699.15 | V35: =V33+0.001 -> 0.984 | AF35: =($Q$14*0.95)+($Q$16*0.9)+($Q$18*0.8*V35)+($Q$20*0.55) -> 8311447.95 | AP35: =AP33+0.001 -> 1.025 | AZ35: =($Q$14*0.95)+($Q$16*0.9)+($Q$18*0.8*AP35)+($Q$20*0.55) -> 8544196.75
B37: =B35+0.001 -> 0.944 | L37: =($Q$14*0.95)+($Q$16*0.9)+($Q$18*0.8*B37)+($Q$20*0.55) -> 8084375.95 | V37: =V35+0.001 -> 0.985 | AF37: =($Q$14*0.95)+($Q$16*0.9)+($Q$18*0.8*V37)+($Q$20*0.55) -> 8317124.75 | AP37: =AP35+0.001 -> 1.026 | AZ37: =($Q$14*0.95)+($Q$16*0.9)+($Q$18*0.8*AP37)+($Q$20*0.55) -> 8549873.55
B39: =B37+0.001 -> 0.945 | L39: =($Q$14*0.95)+($Q$16*0.9)+($Q$18*0.8*B39)+($Q$20*0.55) -> 8090052.75 | V39: =V37+0.001 -> 0.986 | AF39: =($Q$14*0.95)+($Q$16*0.9)+($Q$18*0.8*V39)+($Q$20*0.55) -> 8322801.55 | AP39: =AP37+0.001 -> 1.027 | AZ39: =($Q$14*0.95)+($Q$16*0.9)+($Q$18*0.8*AP39)+($Q$20*0.55) -> 8555550.35
B41: =B39+0.001 -> 0.946 | L41: =($Q$14*0.95)+($Q$16*0.9)+($Q$18*0.8*B41)+($Q$20*0.55) -> 8095729.55 | V41: =V39+0.001 -> 0.987 | AF41: =($Q$14*0.95)+($Q$16*0.9)+($Q$18*0.8*V41)+($Q$20*0.55) -> 8328478.35 | AP41: =AP39+0.001 -> 1.028 | AZ41: =($Q$14*0.95)+($Q$16*0.9)+($Q$18*0.8*AP41)+($Q$20*0.55) -> 8561227.15
B43: =B41+0.001 -> 0.947 | L43: =($Q$14*0.95)+($Q$16*0.9)+($Q$18*0.8*B43)+($Q$20*0.55) -> 8101406.35 | V43: =V41+0.001 -> 0.988 | AF43: =($Q$14*0.95)+($Q$16*0.9)+($Q$18*0.8*V43)+($Q$20*0.55) -> 8334155.15 | AP43: =AP41+0.001 -> 1.029 | AZ43: =($Q$14*0.95)+($Q$16*0.9)+($Q$18*0.8*AP43)+($Q$20*0.55) -> 8566903.95
B45: =B43+0.001 -> 0.948 | L45: =($Q$14*0.95)+($Q$16*0.9)+($Q$18*0.8*B45)+($Q$20*0.55) -> 8107083.15 | V45: =V43+0.001 -> 0.989 | AF45: =($Q$14*0.95)+($Q$16*0.9)+($Q$18*0.8*V45)+($Q$20*0.55) -> 8339831.95 | AP45: =AP43+0.001 -> 1.03 | AZ45: =($Q$14*0.95)+($Q$16*0.9)+($Q$18*0.8*AP45)+($Q$20*0.55) -> 8572580.75
B47: =B45+0.001 -> 0.949 | L47: =($Q$14*0.95)+($Q$16*0.9)+($Q$18*0.8*B47)+($Q$20*0.55) -> 8112759.95 | V47: =V45+0.001 -> 0.99 | AF47: =($Q$14*0.95)+($Q$16*0.9)+($Q$18*0.8*V47)+($Q$20*0.55) -> 8345508.75 | AP47: =AP45+0.001 -> 1.031 | AZ47: =($Q$14*0.95)+($Q$16*0.9)+($Q$18*0.8*AP47)+($Q$20*0.55) -> 8578257.55
B49: =B47+0.001 -> 0.95 | L49: =($Q$14*0.95)+($Q$16*0.9)+($Q$18*0.8*B49)+($Q$20*0.55) -> 8118436.75 | V49: =V47+0.001 -> 0.991 | AF49: =($Q$14*0.95)+($Q$16*0.9)+($Q$18*0.8*V49)+($Q$20*0.55) -> 8351185.55 | AP49: =AP47+0.001 -> 1.032 | AZ49: =($Q$14*0.95)+($Q$16*0.9)+($Q$18*0.8*AP49)+($Q$20*0.55) -> 8583934.35
B51: =B49+0.001 -> 0.951 | L51: =($Q$14*0.95)+($Q$16*0.9)+($Q$18*0.8*B51)+($Q$20*0.55) -> 8124113.55 | V51: =V49+0.001 -> 0.992 | AF51: =($Q$14*0.95)+($Q$16*0.9)+($Q$18*0.8*V51)+($Q$20*0.55) -> 8356862.35 | AP51: =AP49+0.001 -> 1.033 | AZ51: =($Q$14*0.95)+($Q$16*0.9)+($Q$18*0.8*AP51)+($Q$20*0.55) -> 8589611.15
B53: =B51+0.001 -> 0.952 | L53: =($Q$14*0.95)+($Q$16*0.9)+($Q$18*0.8*B53)+($Q$20*0.55) -> 8129790.35 | V53: =V51+0.001 -> 0.993 | AF53: =($Q$14*0.95)+($Q$16*0.9)+($Q$18*0.8*V53)+($Q$20*0.55) -> 8362539.15 | AP53: =AP51+0.001 -> 1.034 | AZ53: =($Q$14*0.95)+($Q$16*0.9)+($Q$18*0.8*AP53)+($Q$20*0.55) -> 8595287.95
B55: =B53+0.001 -> 0.953 | L55: =($Q$14*0.95)+($Q$16*0.9)+($Q$18*0.8*B55)+($Q$20*0.55) -> 8135467.15 | V55: =V53+0.001 -> 0.994 | AF55: =($Q$14*0.95)+($Q$16*0.9)+($Q$18*0.8*V55)+($Q$20*0.55) -> 8368215.95 | AP55: =AP53+0.001 -> 1.035 | AZ55: =($Q$14*0.95)+($Q$16*0.9)+($Q$18*0.8*AP55)+($Q$20*0.55) -> 8600964.75
B57: =B55+0.001 -> 0.954 | L57: =($Q$14*0.95)+($Q$16*0.9)+($Q$18*0.8*B57)+($Q$20*0.55) -> 8141143.95 | V57: =V55+0.001 -> 0.995 | AF57: =($Q$14*0.95)+($Q$16*0.9)+($Q$18*0.8*V57)+($Q$20*0.55) -> 8373892.75 | AP57: =AP55+0.001 -> 1.036 | AZ57: =($Q$14*0.95)+($Q$16*0.9)+($Q$18*0.8*AP57)+($Q$20*0.55) -> 8606641.55
B59: =B57+0.001 -> 0.955 | L59: =($Q$14*0.95)+($Q$16*0.9)+($Q$18*0.8*B59)+($Q$20*0.55) -> 8146820.75 | V59: =V57+0.001 -> 0.996 | AF59: =($Q$14*0.95)+($Q$16*0.9)+($Q$18*0.8*V59)+($Q$20*0.55) -> 8379569.55 | AP59: =AP57+0.001 -> 1.037 | AZ59: =($Q$14*0.95)+($Q$16*0.9)+($Q$18*0.8*AP59)+($Q$20*0.55) -> 8612318.35
B61: =B59+0.001 -> 0.956 | L61: =($Q$14*0.95)+($Q$16*0.9)+($Q$18*0.8*B61)+($Q$20*0.55) -> 8152497.55 | V61: =V59+0.001 -> 0.997 | AF61: =($Q$14*0.95)+($Q$16*0.9)+($Q$18*0.8*V61)+($Q$20*0.55) -> 8385246.35 | AP61: =AP59+0.001 -> 1.038 | AZ61: =($Q$14*0.95)+($Q$16*0.9)+($Q$18*0.8*AP61)+($Q$20*0.55) -> 8617995.15
B63: =B61+0.001 -> 0.957 | L63: =($Q$14*0.95)+($Q$16*0.9)+($Q$18*0.8*B63)+($Q$20*0.55) -> 8158174.35 | V63: =V61+0.001 -> 0.998 | AF63: =($Q$14*0.95)+($Q$16*0.9)+($Q$18*0.8*V63)+($Q$20*0.55) -> 8390923.15 | AP63: =AP61+0.001 -> 1.039 | AZ63: =($Q$14*0.95)+($Q$16*0.9)+($Q$18*0.8*AP63)+($Q$20*0.55) -> 8623671.95
B65: =B63+0.001 -> 0.958 | L65: =($Q$14*0.95)+($Q$16*0.9)+($Q$18*0.8*B65)+($Q$20*0.55) -> 8163851.15 | V65: =V63+0.001 -> 0.999 | AF65: =($Q$14*0.95)+($Q$16*0.9)+($Q$18*0.8*V65)+($Q$20*0.55) -> 8396599.95 | AP65: =AP63+0.001 -> 1.04 | AZ65: =($Q$14*0.95)+($Q$16*0.9)+($Q$18*0.8*AP65)+($Q$20*0.55) -> 8629348.75
B67: =B65+0.001 -> 0.959 | L67: =($Q$14*0.95)+($Q$16*0.9)+($Q$18*0.8*B67)+($Q$20*0.55) -> 8169527.95 | V67: =V65+0.001 -> 1 | AF67: =($Q$14*0.95)+($Q$16*0.9)+($Q$18*0.8*V67)+($Q$20*0.55) -> 8402276.75 | AP67: =AP65+0.001 -> 1.041 | AZ67: =($Q$14*0.95)+($Q$16*0.9)+($Q$18*0.8*AP67)+($Q$20*0.55) -> 8635025.55
B69: =B67+0.001 -> 0.96 | L69: =($Q$14*0.95)+($Q$16*0.9)+($Q$18*0.8*B69)+($Q$20*0.55) -> 8175204.75 | V69: =V67+0.001 -> 1.001 | AF69: =($Q$14*0.95)+($Q$16*0.9)+($Q$18*0.8*V69)+($Q$20*0.55) -> 8407953.55 | AP69: =AP67+0.001 -> 1.042 | AZ69: =($Q$14*0.95)+($Q$16*0.9)+($Q$18*0.8*AP69)+($Q$20*0.55) -> 8640702.35
B71: =B69+0.001 -> 0.961 | L71: =($Q$14*0.95)+($Q$16*0.9)+($Q$18*0.8*B71)+($Q$20*0.55) -> 8180881.55 | V71: =V69+0.001 -> 1.002 | AF71: =($Q$14*0.95)+($Q$16*0.9)+($Q$18*0.8*V71)+($Q$20*0.55) -> 8413630.35 | AP71: =AP69+0.001 -> 1.043 | AZ71: =($Q$14*0.95)+($Q$16*0.9)+($Q$18*0.8*AP71)+($Q$20*0.55) -> 8646379.15
B73: =B71+0.001 -> 0.962 | L73: =($Q$14*0.95)+($Q$16*0.9)+($Q$18*0.8*B73)+($Q$20*0.55) -> 8186558.35 | V73: =V71+0.001 -> 1.003 | AF73: =($Q$14*0.95)+($Q$16*0.9)+($Q$18*0.8*V73)+($Q$20*0.55) -> 8419307.15 | AP73: =AP71+0.001 -> 1.044 | AZ73: =($Q$14*0.95)+($Q$16*0.9)+($Q$18*0.8*AP73)+($Q$20*0.55) -> 8652055.95
B75: =B73+0.001 -> 0.963 | L75: =($Q$14*0.95)+($Q$16*0.9)+($Q$18*0.8*B75)+($Q$20*0.55) -> 8192235.15 | V75: =V73+0.001 -> 1.004 | AF75: =($Q$14*0.95)+($Q$16*0.9)+($Q$18*0.8*V75)+($Q$20*0.55) -> 8424983.95 | AP75: =AP73+0.001 -> 1.045 | AZ75: =($Q$14*0.95)+($Q$16*0.9)+($Q$18*0.8*AP75)+($Q$20*0.55) -> 8657732.75
B77: =B75+0.001 -> 0.964 | L77: =($Q$14*0.95)+($Q$16*0.9)+($Q$18*0.8*B77)+($Q$20*0.55) -> 8197911.95 | V77: =V75+0.001 -> 1.005 | AF77: =($Q$14*0.95)+($Q$16*0.9)+($Q$18*0.8*V77)+($Q$20*0.55) -> 8430660.75 | AP77: =AP75+0.001 -> 1.046 | AZ77: =($Q$14*0.95)+($Q$16*0.9)+($Q$18*0.8*AP77)+($Q$20*0.55) -> 8663409.55
B79: =B77+0.001 -> 0.965 | L79: =($Q$14*0.95)+($Q$16*0.9)+($Q$18*0.8*B79)+($Q$20*0.55) -> 8203588.75 | V79: =V77+0.001 -> 1.006 | AF79: =($Q$14*0.95)+($Q$16*0.9)+($Q$18*0.8*V79)+($Q$20*0.55) -> 8436337.55 | AP79: =AP77+0.001 -> 1.047 | AZ79: =($Q$14*0.95)+($Q$16*0.9)+($Q$18*0.8*AP79)+($Q$20*0.55) -> 8669086.35
B81: =B79+0.001 -> 0.966 | L81: =($Q$14*0.95)+($Q$16*0.9)+($Q$18*0.8*B81)+($Q$20*0.55) -> 8209265.55 | V81: =V79+0.001 -> 1.007 | AF81: =($Q$14*0.95)+($Q$16*0.9)+($Q$18*0.8*V81)+($Q$20*0.55) -> 8442014.35 | AP81: =AP79+0.001 -> 1.048 | AZ81: =($Q$14*0.95)+($Q$16*0.9)+($Q$18*0.8*AP81)+($Q$20*0.55) -> 8674763.15
B83: =B81+0.001 -> 0.967 | L83: =($Q$14*0.95)+($Q$16*0.9)+($Q$18*0.8*B83)+($Q$20*0.55) -> 8214942.35 | V83: =V81+0.001 -> 1.008 | AF83: =($Q$14*0.95)+($Q$16*0.9)+($Q$18*0.8*V83)+($Q$20*0.55) -> 8447691.15 | AP83: =AP81+0.001 -> 1.049 | AZ83: =($Q$14*0.95)+($Q$16*0.9)+($Q$18*0.8*AP83)+($Q$20*0.55) -> 8680439.95
B85: =B83+0.001 -> 0.968 | L85: =($Q$14*0.95)+($Q$16*0.9)+($Q$18*0.8*B85)+($Q$20*0.55) -> 8220619.15 | V85: =V83+0.001 -> 1.009 | AF85: =($Q$14*0.95)+($Q$16*0.9)+($Q$18*0.8*V85)+($Q$20*0.55) -> 8453367.95 | AP85: =AP83+0.001 -> 1.05 | AZ85: =($Q$14*0.95)+($Q$16*0.9)+($Q$18*0.8*AP85)+($Q$20*0.55) -> 8686116.75
B87: =B85+0.001 -> 0.969 | L87: =($Q$14*0.95)+($Q$16*0.9)+($Q$18*0.8*B87)+($Q$20*0.55) -> 8226295.95 | V87: =V85+0.001 -> 1.01 | AF87: =($Q$14*0.95)+($Q$16*0.9)+($Q$18*0.8*V87)+($Q$20*0.55) -> 8459044.75 | AP87: =AP85+0.001 -> 1.051 | AZ87: =($Q$14*0.95)+($Q$16*0.9)+($Q$18*0.8*AP87)+($Q$20*0.55) -> 8691793.55
B89: =B87+0.001 -> 0.97 | L89: =($Q$14*0.95)+($Q$16*0.9)+($Q$18*0.8*B89)+($Q$20*0.55) -> 8231972.75 | V89: =V87+0.001 -> 1.011 | AF89: =($Q$14*0.95)+($Q$16*0.9)+($Q$18*0.8*V89)+($Q$20*0.55) -> 8464721.55 | AP89: =AP87+0.001 -> 1.052 | AZ89: =($Q$14*0.95)+($Q$16*0.9)+($Q$18*0.8*AP89)+($Q$20*0.55) -> 8697470.35
B91: =B89+0.001 -> 0.971 | L91: =($Q$14*0.95)+($Q$16*0.9)+($Q$18*0.8*B91)+($Q$20*0.55) -> 8237649.55 | V91: =V89+0.001 -> 1.012 | AF91: =($Q$14*0.95)+($Q$16*0.9)+($Q$18*0.8*V91)+($Q$20*0.55) -> 8470398.35 | AP91: =AP89+0.001 -> 1.053 | AZ91: =($Q$14*0.95)+($Q$16*0.9)+($Q$18*0.8*AP91)+($Q$20*0.55) -> 8703147.15
B93: =B91+0.001 -> 0.972 | L93: =($Q$14*0.95)+($Q$16*0.9)+($Q$18*0.8*B93)+($Q$20*0.55) -> 8243326.35 | V93: =V91+0.001 -> 1.013 | AF93: =($Q$14*0.95)+($Q$16*0.9)+($Q$18*0.8*V93)+($Q$20*0.55) -> 8476075.15 | AP93: =AP91+0.001 -> 1.054 | AZ93: =($Q$14*0.95)+($Q$16*0.9)+($Q$18*0.8*AP93)+($Q$20*0.55) -> 8708823.95
B95: =B93+0.001 -> 0.973 | L95: =($Q$14*0.95)+($Q$16*0.9)+($Q$18*0.8*B95)+($Q$20*0.55) -> 8249003.15 | V95: =V93+0.001 -> 1.014 | AF95: =($Q$14*0.95)+($Q$16*0.9)+($Q$18*0.8*V95)+($Q$20*0.55) -> 8481751.95 | AP95: =AP93+0.001 -> 1.055 | AZ95: =($Q$14*0.95)+($Q$16*0.9)+($Q$18*0.8*AP95)+($Q$20*0.55) -> 8714500.75
B97: =B95+0.001 -> 0.974 | L97: =($Q$14*0.95)+($Q$16*0.9)+($Q$18*0.8*B97)+($Q$20*0.55) -> 8254679.95 | V97: =V95+0.001 -> 1.015 | AF97: =($Q$14*0.95)+($Q$16*0.9)+($Q$18*0.8*V97)+($Q$20*0.55) -> 8487428.75 | AP97: =AP95+0.001 -> 1.056 | AZ97: =($Q$14*0.95)+($Q$16*0.9)+($Q$18*0.8*AP97)+($Q$20*0.55) -> 8720177.55
B99: =B97+0.001 -> 0.975 | L99: =($Q$14*0.95)+($Q$16*0.9)+($Q$18*0.8*B99)+($Q$20*0.55) -> 8260356.75 | V99: =V97+0.001 -> 1.016 | AF99: =($Q$14*0.95)+($Q$16*0.9)+($Q$18*0.8*V99)+($Q$20*0.55) -> 8493105.55 | AP99: =AP97+0.001 -> 1.057 | AZ99: =($Q$14*0.95)+($Q$16*0.9)+($Q$18*0.8*AP99)+($Q$20*0.55) -> 8725854.35
B101: =B99+0.001 -> 0.976 | L101: =($Q$14*0.95)+($Q$16*0.9)+($Q$18*0.8*B101)+($Q$20*0.55) -> 8266033.55 | V101: =V99+0.001 -> 1.017 | AF101: =($Q$14*0.95)+($Q$16*0.9)+($Q$18*0.8*V101)+($Q$20*0.55) -> 8498782.35 | AP101: =AP99+0.001 -> 1.058 | AZ101: =($Q$14*0.95)+($Q$16*0.9)+($Q$18*0.8*AP101)+($Q$20*0.55) -> 8731531.15
B103: =B101+0.001 -> 0.977 | L103: =($Q$14*0.95)+($Q$16*0.9)+($Q$18*0.8*B103)+($Q$20*0.55) -> 8271710.35 | V103: =V101+0.001 -> 1.018 | AF103: =($Q$14*0.95)+($Q$16*0.9)+($Q$18*0.8*V103)+($Q$20*0.55) -> 8504459.15 | AP103: =AP101+0.001 -> 1.059 | AZ103: =($Q$14*0.95)+($Q$16*0.9)+($Q$18*0.8*AP103)+($Q$20*0.55) -> 8737207.95
B105: =B103+0.001 -> 0.978 | L105: =($Q$14*0.95)+($Q$16*0.9)+($Q$18*0.8*B105)+($Q$20*0.55) -> 8277387.15 | V105: =V103+0.001 -> 1.019 | AF105: =($Q$14*0.95)+($Q$16*0.9)+($Q$18*0.8*V105)+($Q$20*0.55) -> 8510135.95 | AP105: =AP103+0.001 -> 1.06 | AZ105: =($Q$14*0.95)+($Q$16*0.9)+($Q$18*0.8*AP105)+($Q$20*0.55) -> 8742884.75
B107: =B105+0.001 -> 0.979 | L107: =($Q$14*0.95)+($Q$16*0.9)+($Q$18*0.8*B107)+($Q$20*0.55) -> 8283063.95 | V107: =V105+0.001 -> 1.02 | AF107: =($Q$14*0.95)+($Q$16*0.9)+($Q$18*0.8*V107)+($Q$20*0.55) -> 8515812.75
B109: =B107+0.001 -> 0.98 | L109: =($Q$14*0.95)+($Q$16*0.9)+($Q$18*0.8*B109)+($Q$20*0.55) -> 8288740.75 | V109: =V107+0.001 -> 1.021 | AF109: =($Q$14*0.95)+($Q$16*0.9)+($Q$18*0.8*V109)+($Q$20*0.55) -> 8521489.55

Sheet Sheet1 (hidden)
B2: 管内一円（鴨川他）府民公募型整備工事
B3: 本工事費１（九条跨線橋上流） | C3: 本工事費２（四条大橋上流） | D3: 本工事費３（出町橋上流） | E3: 施設整備
B4: 合冊 | C4: 合冊 | D4: 合冊 | E4: 標準
B5: 1 | C5: 1 | D5: 1 | E5: 2
B6: 6538807 | C6: 2479867 | D6: 1118904 | E6: 2838200
B7: 972185 | C7: 384185 | D7: 154000 | E7: 363000
B8: 3222000 | C8: 1214000 | D8: 530000 | E8: 1382000 | F8: 0
B9: 10732992 | C9: 4078052 | D9: 1802904 | E9: 4583200 | F9: 0 | G9: 0 | H9: 0 | I9: 0 | J9: 0 | K9: 0 | L9: 0 | M9: 0
B11: 140354 | C11: 147141 | D11: 86411
B14: 管内一円（田井大垣自転車道線他）府民公募型整備工事
B15: 本工事費1 | C15: 本工事費2 | D15: 本工事費3 | E15: 本工事費4 | F15: 本工事費5 | G15: 本工事費6 | H15: 本工事費7 | I15: 本工事費8 | J15: 本工事費9
B16: 合冊 | C16: 合冊 | D16: 合冊 | E16: 合冊 | F16: 合冊 | G16: 合冊 | H16: 合冊 | I16: 合冊 | J16: 合冊
B17: 1 | C17: 1 | D17: 1 | E17: 1 | F17: 1 | G17: 1 | H17: 1 | I17: 1 | J17: 1
B18: 11220689 | C18: 51715 | D18: 86400 | E18: 489000 | F18: 475200 | G18: 62700 | H18: 62700 | I18: 41545 | J18: 61700
B19: 1737000 | C19: 52600 | D19: 62600 | E19: 183600 | F19: 179600 | G19: 55600 | H19: 60000 | I19: 54000 | J19: 55600
B20: 5397000 | C20: 54000 | D20: 77000 | E20: 350000 | F20: 341000 | G20: 61000 | H20: 63000 | I20: 49000 | J20: 61000
B21: 18354689 | C21: 158315 | D21: 226000 | E21: 1022600 | F21: 995800 | G21: 179300 | H21: 185700 | I21: 144545 | J21: 178300 | K21: 0 | L21: 0 | M21: 0
B26: 13036989 | C26: 104315 | D26: 149000 | E26: 672000 | F26: 64800 | G26: 118300 | H26: 122700 | I26: 95545 | J26: 117300
B39: 18433989 | C39: 158315 | D39: 226000 | E39: 1022000 | F39: 405800 | G39: 179300 | H39: 185700 | I39: 144545 | J39: 768900 | K39: 0 | L39: 0 | M39: 0

Sheet 手動入力 (2) (hidden)
J1: =IF(J10=1,"","②"&J7&IF(K10=3,"","③"&K7&IF(L10=3,"","④"&L7&IF(M10=3,"","⑤"&M7&IF(N10=3,"","⑥"&N7&IF(O10=3,"","⑦"&O7&IF(P10=3,"","⑧"&P7&IF(Q10=3,"","⑨"&Q7&IF(R10=3,"","⑩"&R7&IF(S10=3,"","⑪"&S7&IF(T10=3,"","⑫"&T7))))))))))) -> ②本工事費２（四条大橋上流）
J2: =IF($H72=2,$J8,IF($H73=2,$K8,IF($H74=2,$L8,IF($H75=2,$M8,IF($H76=2,$N8,IF($H77=2,$O8,IF($H78=2,$P8,""))))))) -> T②本工事費２（四条大橋上流）
F4: 手動入力用 | J4: =最低制限価格算出結果!G45&"手動入力" -> 点在設計H284処分費入力手動入力 | T4: =最低制限価格算出結果!R3 -> verH291001
F5: 工事個所名 | H5: =IF(OR(最低制限価格算出結果!L4=I5,最低制限価格算出結果!L4="",I5=""),"","工事個所 を確認") -> 工事個所 を確認 | I5: 管内一円（鴨川他）府民公募型整備工事 | U5: =IFERROR( VLOOKUP(L49,一覧工事検索,6,0),"") -> 
I6: 1 | J6: 2 | K6: 3 | L6: 4 | M6: 5 | N6: 6 | O6: 7 | P6: 8 | Q6: 9 | R6: 10 | S6: 11 | T6: 12
F7: 工区名 | H7: 合算対象 工事費 | I7: 本工事費１（九条跨線橋上流） | J7: 本工事費２（四条大橋上流） | K7: 本工事費３（出町橋上流） | L7: 施設整備 | M7: 55 | N7: 66 | O7: 77 | P7: 88 | Q7: 99 | R7: 100 | S7: 110 | T7: 120
I8: ="T①"&I7 -> T①本工事費１（九条跨線橋上流） | J8: ="T②"&J7 -> T②本工事費２（四条大橋上流） | K8: ="T③"&K7 -> T③本工事費３（出町橋上流） | L8: ="T④"&'手動入力 (2)'!$L$7 -> T④施設整備 | M8: ="T⑤"&'手動入力 (2)'!$M$7 -> T⑤55 | N8: ="T⑥"&'手動入力 (2)'!$N$7 -> T⑥66 | O8: ="T⑦"&O7 -> T⑦77 | P8: ="T⑧"&P7 -> T⑧88 | Q8: ="T⑨"&Q7 -> T⑨99 | R8: ="T⑩"&R7 -> T⑩100 | S8: ="T⑪"&S7 -> T⑪110 | T8: ="T⑫"&T7 -> T⑫120
F9: 積算対象区分 | G9: =IF(最低制限価格算出結果!G45="合算点在計算","点在合冊区分等を 選択して下さい。","") ->  | I9: 標準 | J9: 標準 | K9: 標準 | L9: 標準 | M9: 標準 | N9: 標準 | O9: 標準 | P9: 標準 | Q9: 標準 | R9: 標準 | S9: 標準 | T9: 合冊
F10: 積算対象区分 | I10: 1 | J10: =IF(J9="合冊",I10,IF(J7="","",I10+1)) -> 2 | K10: =IF(K9="合冊",J10,IF(K7="","",J10+1)) -> 3 | L10: 4 | M10: =IF(M9="合冊",L10,IF(M9="-","",L10+1)) -> 5 | N10: =IF(N9="合冊",M10,IF(N9="-","",M10+1)) -> 6 | O10: =IF(O9="合冊",N10,IF(O9="-","",N10+1)) -> 7 | P10: =IF(P9="合冊",O10,IF(P9="-","",O10+1)) -> 8 | Q10: =IF(Q9="合冊",P10,IF(Q9="-","",P10+1)) -> 9 | R10: =IF(R9="合冊",Q10,IF(R9="-","",Q10+1)) -> 10 | S10: 11 | T10: 11
I11: =I71&I72&I73&I74&I75&I76&I77&I78&I79&I80&I81&I82 -> T①本工事費１（九条跨線橋上流） | J11: =J72&J73&J74&J75&J76&J77&J78&J79&J80&J81&J82 -> T②本工事費２（四条大橋上流） | K11: =K73&K74&K75&K76&K77&K78&K79&K80&K81&K82 -> T③本工事費３（出町橋上流） | L11: =L74&L75&L76&L77&L78&L79&L80&L81&L82 -> T④施設整備 | M11: =M75&M76&M77&M78&M79&M80&M81&M82 -> T⑤55 | N11: =N76&N77&N78&N79&N80&N81&N82 -> T⑥66 | O11: =O77&O78&O79&O80&O81&O82 -> T⑦77 | P11: =P78&P79&P80&P81&P82 -> T⑧88 | Q11: =Q79&Q80&Q81&Q82 -> T⑨99 | R11: =R76&R77&R78&R79&R80&R81&R82 -> T⑩100 | S11: =IF(S10=11,"⑪"&'手動入力 (2)'!$S$7,"")&IF(T10=11,$T8,"") -> ⑪110T⑫120 | T11: =IF(T10=12,$T8,"") -> 
F12: 直接工事費 | H12: =SUM(I12:T12) -> 13347996 | I12: 6538807 | J12: 2479867 | K12: 1118904 | L12: 2838200 | M12: 5555 | N12: 6666 | O12: 7777 | P12: 8888 | Q12: 9999 | R12: 101010 | S12: 111111 | T12: 121212 | U12: =VLOOKUP(L49,一覧工事検索,22,0) ->  | V12: =IFERROR( IF(H12-U12=0,"O.K","NG"),"") -> 
F13: 処分費等 直接工事費計上分 | H13: =SUM(I13:T13) -> 373906 | I13: 140354 | J13: 147141 | K13: 86411
F14: 処分費等 準備費計上分 | H14: =SUM(I14:T14) -> 0
F15: 桁等購入費 | H15: =SUM(I15:T15) -> 0
F16: スクラップ | H16: =SUM(I16:T16) -> 0
F19: 共通仮設費計 | H19: =SUM(I19:T19) -> 1873370 | I19: 972185 | J19: 384185 | K19: 154000 | L19: 363000 | U19: =VLOOKUP(L49,一覧工事検索,23,0) ->  | V19: =IFERROR( IF(H19-U19=0,"O.K","NG"),"") -> 
F20: 現場管理費 | H20: =SUM(I20:T20) -> 6348000 | I20: 3222000 | J20: 1214000 | K20: 530000 | L20: 1382000 | U20: =VLOOKUP(L49,一覧工事検索,24,0) ->  | V20: =IFERROR( IF(H20-U20=0,"O.K","NG"),"") -> 
F21: 工事原価 | H21: =SUM(I21:T21) -> 21569366 | I21: =I12+I19+I20 -> 10732992 | J21: 4078052 | K21: 1802904 | L21: 4583200 | M21: 5555 | N21: 6666 | O21: 7777 | P21: 8888 | Q21: 9999 | R21: 101010 | S21: 111111 | T21: 121212
F22: 現場管理費対象額 | G22: =IF(#REF!="合算点在計算","処分費等入力方式です。入力しないで下さい。","") ->  | H22: =SUM(I22:T22) -> 0
E35: =SUM(I35:Q35) -> 0 | F35: 一般管理費対象額 | G35: =IF(#REF!="合算点在計算","処分費等入力方式です。入力しないで下さい。","") ->  | H35: =IF(最低制限価格算出結果!$G$45="合算点在計算",仮想工事!H35,#REF!) -> 
F36: 一般管理費 | G36: =IF(#REF!="合算点在計算","処分費等入力方式です。入力しないで下さい。","") ->  | H36: =IF(最低制限価格算出結果!G45="合算点在計算",H42,IF(OR(最低制限価格算出結果!G45="点在設計",最低制限価格算出結果!G45="点在設計H284")," 点在経費計算です。入力しないでください。 ",SUM(I36:P36))) -> 0 | U36: =VLOOKUP(L49,一覧工事検索,25,0) ->  | V36: =IFERROR(IF(H36-U36=0,"O.K","NG"),"") -> 
F37: 契約保証 | G37: ケース1 | H37: 500万円 | I37: =I28+I35+I36 -> 0 | J37: 0 | K37: 0 | L37: 0 | M37: 0 | N37: 0 | O37: 0 | P37: 0 | Q37: 0 | R37: 0 | S37: 0 | T37: =SUMIF($I$10:$T$10,T10,$I$35:$T$35) -> 0
F38: =IF(AND(I36>0,I35>0),"一般管理費対象額が入力されています","契約保証金 注)500万円が基準") -> 契約保証金 注)500万円が基準 | H38: ケース | I38: ケース1 | J38: ケース1 | K38: ケース1 | L38: ケース1
H39: 免除金額 | I39: 500万円 | J39: 500万円 | K39: 500万円 | L39: 500万円
F40: 一般管理費率 | G40: =IF(H35=0,"",#REF!) ->  | H40: =ROUNDDOWN(H21+$H$35*G40+H41,-3)-ROUNDUP(H21+$H$35*G40+H41,0)+ROUND(H35*G40,0) ->  | I40: =IF(最低制限価格算出結果!$G$45="合算点在計算",0,最低制限価格算出結果!#REF!) ->  | J40: =IF(最低制限価格算出結果!$G$45="合算点在計算",0,最低制限価格算出結果!L29) -> 0 | K40: =IF(最低制限価格算出結果!$G$45="合算点在計算",0,最低制限価格算出結果!M29) -> 0 | L40: =IF(最低制限価格算出結果!$G$45="合算点在計算",0,最低制限価格算出結果!N29) -> 0 | M40: =IF(最低制限価格算出結果!$G$45="合算点在計算",0,最低制限価格算出結果!O29) -> 0 | N40: =IF(最低制限価格算出結果!$G$45="合算点在計算",0,最低制限価格算出結果!P29) -> 0 | O40: =IF(最低制限価格算出結果!$G$45="合算点在計算",0,最低制限価格算出結果!Q29) -> 0 | P40: =IF(最低制限価格算出結果!$G$45="合算点在計算",0,最低制限価格算出結果!R29) -> 0 | Q40: =IF(最低制限価格算出結果!$G$45="合算点在計算",0,最低制限価格算出結果!S29) -> 0 | R40: =IF(最低制限価格算出結果!$G$45="合算点在計算",0,最低制限価格算出結果!T29) -> 0 | S40: =IF(最低制限価格算出結果!$G$45="合算点在計算",0,最低制限価格算出結果!U29) -> 0 | T40: =IF(最低制限価格算出結果!$G$45="合算点在計算",0,最低制限価格算出結果!V29) -> 0
F41: 契約保証補正 | G41: =IF(AND(G37="ケース1",H37="500万円"),0.0004,IF(I41>0,0.0004,"")) -> 0.0004 | H41: =$H$35*G41 ->  | I41: =最低制限価格算出結果!K30 ->  | J41: =最低制限価格算出結果!L30 ->  | K41: =最低制限価格算出結果!M30 ->  | L41: =最低制限価格算出結果!N30 ->  | M41: =最低制限価格算出結果!O30 ->  | N41: =最低制限価格算出結果!P30 ->  | O41: =最低制限価格算出結果!Q30 ->  | P41: =最低制限価格算出結果!R30 ->  | Q41: =最低制限価格算出結果!S30 ->  | R41: =最低制限価格算出結果!T30 ->  | S41: =最低制限価格算出結果!U30 ->  | T41: =最低制限価格算出結果!V30 -> 
F42: 一般管理費計 | H42: =IF(最低制限価格算出結果!G45="合算点在計算",最低制限価格算出結果!J38,IF(最低制限価格算出結果!G45="点在設計H284",H40+H41,IF(SUM(I42:P42)=0,0,(SUM(I42:P42))))) ->  | I42: =I36+I40+I41 -> 
E43: 合算点在計算 | F43: ①積算工事価格 | H43: =IF(最低制限価格算出結果!G45="合算点在計算",最低制限価格算出結果!J39,IF(最低制限価格算出結果!G45="点在設計H284",H21+H42,SUM(I43:T43))) ->  | I43: =IF(#REF!="合算点在計算",0, 最低制限価格算出結果!K39) ->  | J43: =IF(#REF!="合算点在計算",0,最低制限価格算出結果!L39) ->  | K43: =IF(#REF!="合算点在計算",0,最低制限価格算出結果!M39) ->  | L43: =IF(#REF!="合算点在計算",0,最低制限価格算出結果!N39) ->  | M43: =IF(#REF!="合算点在計算",0,最低制限価格算出結果!O39) ->  | N43: =IF(#REF!="合算点在計算",0,最低制限価格算出結果!P39) ->  | O43: =IF(#REF!="合算点在計算",0,最低制限価格算出結果!Q39) ->  | P43: =IF(#REF!="合算点在計算",0,最低制限価格算出結果!R39) ->  | Q43: =IF(#REF!="合算点在計算",0,最低制限価格算出結果!S39) ->  | R43: =IF(#REF!="合算点在計算",0,最低制限価格算出結果!T39) ->  | S43: =IF(#REF!="合算点在計算",0,最低制限価格算出結果!U39) ->  | T43: =IF(#REF!="合算点在計算",0,最低制限価格算出結果!V39) -> 
F45: ②予定価格（公表） | H45: =IF(最低制限価格算出結果!L43=0,最低制限価格算出結果!Q44,最低制限価格算出結果!L43) -> 24870000
F46: ②-① | H46: =IFERROR(H43-H45,"") -> 
F47: 入札工事価格 | G47: ="α="&最低制限価格算出結果!O16 -> α=1.03 | H47: =最低制限価格算出結果!J40 -> 1188
P48: 仮想工事 | Q48: 積算対象工事 | R48: 合算対象工事
F49: ②予定価格（公表） | H49: =最低制限価格算出結果!L43 -> 24870000 | K49: 管理番号
F50: =IF(AND(O50="",H46=0),"","①-②") -> ①-② | J50: =IFERROR((IF(OR(O50="",H46=0),H46-O50,H46-O50)),0) -> 0 | K50: =IF(AND(O50="",H46=0),"","③-公表") -> ③-公表 | L50: =IFERROR(O51-H47,0) -> -1188
F51: 最低制限価格（公表）
F52: 落札金額
F53: 100ｍ超える超える
F54: 5ｋｍ以内
F55: 処分費等を考慮
F59: 登録工事要素 | J59: =I12&" "&I19&" "&I20&" "&I42 -> 
F61: 登録済み工事要素 | J61: α
F62: =IF(L49="","管理番号が入力されていません","") -> 管理番号が入力されていません | J62: =VLOOKUP(L49,一覧工事検索,20,0) ->  | K62: =VLOOKUP(L49,一覧工事検索,21,0) -> 
F63: 登録済み工事要素 | J63: =VLOOKUP($L$49,一覧工事検索,44,0) ->  | K63: =VLOOKUP($L$49,一覧工事検索,45,0) ->  | L63: =VLOOKUP($L$49,一覧工事検索,46,0) ->  | M63: =VLOOKUP($L$49,一覧工事検索,47,0) ->  | N63: =VLOOKUP($L$49,一覧工事検索,48,0) ->  | O63: =VLOOKUP($L$49,一覧工事検索,49,0) ->  | P63: =VLOOKUP($L$49,一覧工事検索,50,0) ->  | Q63: =VLOOKUP($L$49,一覧工事検索,51,0) ->  | R63: =VLOOKUP($L$49,一覧工事検索,52,0) ->  | S63: =VLOOKUP($L$49,一覧工事検索,53,0) ->  | T63: =VLOOKUP($L$49,一覧工事検索,53,0) ->  | U63: =VLOOKUP($L$49,一覧工事検索,53,0) -> 
J64: =IF(J63=0,"",IF(J59=J63,"O.K","NG")) ->  | K64: =IF(K63=0,"",IF(K59=K63,"O.K","NG")) -> 
F69: 工事名
H71: ='手動入力 (2)'!$I$10 -> 1 | I71: =IF($H71=1,$I8,"") -> T①本工事費１（九条跨線橋上流）
H72: ='手動入力 (2)'!$J$10 -> 2 | I72: =IF($H72=1,$J8,"") ->  | J72: =IF($H72=2,$J8,"") -> T②本工事費２（四条大橋上流）
H73: ='手動入力 (2)'!$K$10 -> 3 | I73: =IF($H73=1,$K8,"") ->  | J73: =IF($H73=2,$K8,"") ->  | K73: =IF($H73=3,$K8,"") -> T③本工事費３（出町橋上流）
H74: ='手動入力 (2)'!$L$10 -> 4 | I74: =IF($H74=1,$L8,"") ->  | J74: =IF($H74=2,$L8,"") ->  | K74: =IF($H74=3,$L8,"") ->  | L74: =IF($H74=4,$L8,"") -> T④施設整備
H75: ='手動入力 (2)'!$M$10 -> 5 | I75: =IF($H75=1,$M8,"") ->  | J75: =IF($H75=2,$M8,"") ->  | K75: =IF($H75=3,$M8,"") ->  | L75: =IF($H75=4,$M8,"") ->  | M75: =IF($H75=5,$M8,"") -> T⑤55
F76: ='手動入力 (2)'!N12 -> 6666 | H76: ='手動入力 (2)'!$N$10 -> 6 | I76: =IF($H76=1,$N8,"") ->  | J76: =IF($H76=2,$N8,"") ->  | K76: =IF($H76=3,$N8,"") ->  | L76: =IF($H76=4,$N8,"") ->  | M76: =IF($H76=5,$N8,"") ->  | N76: =IF($H76=6,$N8,"") -> T⑥66
F77: ='手動入力 (2)'!O12 -> 7777 | H77: ='手動入力 (2)'!$O$10 -> 7 | I77: =IF($H77=1,$O8,"") ->  | J77: =IF($H77=2,$O8,"") ->  | K77: =IF($H77=3,$O8,"") ->  | L77: =IF($H77=4,$O8,"") ->  | M77: =IF($H77=5,$O8,"") ->  | N77: =IF($H77=6,$O8,"") ->  | O77: =IF($H77=7,$O8,"") -> T⑦77
F78: ='手動入力 (2)'!P12 -> 8888 | H78: ='手動入力 (2)'!$P$10 -> 8 | I78: =IF($H78=1,$P8,"") ->  | J78: =IF($H78=2,$P8,"") ->  | K78: =IF($H78=3,$P8,"") ->  | L78: =IF($H78=4,$P8,"") ->  | M78: =IF($H78=5,$P8,"") ->  | N78: =IF($H78=6,$P8,"") ->  | O78: =IF($H78=7,$P8,"") ->  | P78: =IF($H78=8,$P8,"") -> T⑧88
F79: ='手動入力 (2)'!Q12 -> 9999 | H79: ='手動入力 (2)'!$Q$10 -> 9 | I79: =IF($H79=1,$Q8,"") ->  | J79: =IF($H79=2,$Q8,"") ->  | K79: =IF($H79=3,$Q8,"") ->  | L79: =IF($H79=4,$Q8,"") ->  | M79: =IF($H79=5,$Q8,"") ->  | N79: =IF($H79=6,$Q8,"") ->  | O79: =IF($H79=7,$Q8,"") ->  | P79: =IF($H79=8,$Q8,"") ->  | Q79: =IF($H79=9,$Q8,"") -> T⑨99
F80: ='手動入力 (2)'!R12 -> 101010 | H80: ='手動入力 (2)'!$R$10 -> 10 | I80: =IF($H80=1,$R8,"") ->  | J80: =IF($H80=2,$R8,"") ->  | K80: =IF($H80=3,$R8,"") ->  | L80: =IF($H80=4,$R8,"") ->  | M80: =IF($H80=5,$R8,"") ->  | N80: =IF($H80=6,$R8,"") ->  | O80: =IF($H80=7,$R8,"") ->  | P80: =IF($H80=8,$R8,"") ->  | Q80: =IF($H80=9,$R8,"") ->  | R80: =IF($H80=10,$R8,"") -> T⑩100
F81: ='手動入力 (2)'!S12 -> 111111 | H81: ='手動入力 (2)'!$S$10 -> 11 | I81: =IF($H81=1,$S8,"") ->  | J81: =IF($H81=2,$S8,"") ->  | K81: =IF($H81=3,$S8,"") ->  | L81: =IF($H81=4,$S8,"") ->  | M81: =IF($H81=5,$S8,"") ->  | N81: =IF($H81=6,$S8,"") ->  | O81: =IF($H81=7,$S8,"") ->  | P81: =IF($H81=8,$S8,"") ->  | Q81: =IF($H81=9,$S8,"") ->  | R81: =IF($H81=10,$S8,"") ->  | S81: =IF($H81=11,"⑪"&'手動入力 (2)'!$S$7,"") -> ⑪110
H82: ='手動入力 (2)'!$T$10 -> 11 | I82: =IF($H82=1,$T8,"") ->  | J82: =IF($H82=2,$T8,"") ->  | K82: =IF($H82=3,$T8,"") ->  | L82: =IF($H82=4,$T8,"") ->  | M82: =IF($H82=5,$T8,"") ->  | N82: =IF($H82=6,$T8,"") ->  | O82: =IF($H82=7,$T8,"") ->  | P82: =IF($H82=8,$T8,"") ->  | Q82: =IF($H82=9,$T8,"") ->  | R82: =IF($H82=10,$T8,"") ->  | S82: =IF($H82=11,$T8,"") -> T⑫120 | T82: =IF($H82=12,$T8,"") -> 
G84: =I12 -> 6538807
F85: 直接工事費
F86: ='手動入力 (2)'!I27 -> 0 | G86: ='手動入力 (2)'!$I$12 -> 6538807 | H86: ='手動入力 (2)'!$I$10 -> 1 | I86: =IF($H86=1,$G86,"") -> 6538807
F87: ='手動入力 (2)'!J27 -> 0 | G87: ='手動入力 (2)'!$J$12 -> 2479867 | H87: ='手動入力 (2)'!$J$10 -> 2 | J87: =IF($H87=2,$G87,"") -> 2479867
F88: ='手動入力 (2)'!K27 -> 0 | G88: ='手動入力 (2)'!$K$12 -> 1118904 | H88: ='手動入力 (2)'!$K$10 -> 3 | K88: =IF($H88=3,$G88,"") -> 1118904
F89: ='手動入力 (2)'!L27 -> 0 | G89: ='手動入力 (2)'!$L$12 -> 2838200 | H89: ='手動入力 (2)'!$L$10 -> 4 | K89: =IF($H89=3,$G89,"") ->  | L89: =IF($H89=4,$G89,"") -> 2838200
F90: ='手動入力 (2)'!M27 -> 0 | G90: ='手動入力 (2)'!$M$12 -> 5555 | H90: ='手動入力 (2)'!$M$10 -> 5 | K90: =IF($H90=3,$G90,"") ->  | L90: =IF($H90=4,$G90,"") ->  | M90: =IF($H90=5,$G90,"") -> 5555
F91: ='手動入力 (2)'!N27 -> 0 | G91: ='手動入力 (2)'!$N$12 -> 6666 | H91: ='手動入力 (2)'!$N$10 -> 6 | N91: =IF($H91=6,$G91,"") -> 6666
F92: ='手動入力 (2)'!O27 -> 0 | G92: ='手動入力 (2)'!$O$12 -> 7777 | H92: ='手動入力 (2)'!$O$10 -> 7 | O92: =IF($H92=7,$G92,"") -> 7777
F93: ='手動入力 (2)'!P27 -> 0 | G93: ='手動入力 (2)'!$P$12 -> 8888 | H93: ='手動入力 (2)'!$P$10 -> 8 | L93: =IF($H93=4,$G93,"") ->  | P93: =IF($H93=8,$G93,"") -> 8888
F94: ='手動入力 (2)'!Q27 -> 0 | G94: ='手動入力 (2)'!$Q$12 -> 9999 | H94: ='手動入力 (2)'!$Q$10 -> 9 | L94: =IF($H94=4,$G94,"") ->  | P94: =IF($H94=8,$G94,"") ->  | Q94: =IF($H94=9,$G94,"") -> 9999
F95: ='手動入力 (2)'!R27 -> 0 | G95: ='手動入力 (2)'!$R$12 -> 101010 | H95: ='手動入力 (2)'!$R$10 -> 10 | K95: =IF($H95=3,$G95,"") ->  | L95: =IF($H95=4,$G95,"") ->  | P95: =IF($H95=8,$G95,"") ->  | Q95: =IF($H95=9,$G95,"") ->  | R95: =IF($H95=10,$G95,"") -> 101010
F96: ='手動入力 (2)'!S27 -> 0 | G96: ='手動入力 (2)'!$S$12 -> 111111 | H96: ='手動入力 (2)'!$S$10 -> 11 | K96: =IF($H96=3,$G96,"") ->  | L96: =IF($H96=4,$G96,"") ->  | P96: =IF($H96=8,$G96,"") ->  | Q96: =IF($H96=9,$G96,"") ->  | S96: =IF($H96=11,"⑪"&'手動入力 (2)'!$S$7,"") -> ⑪110
G97: ='手動入力 (2)'!$T$12 -> 121212 | H97: ='手動入力 (2)'!$T$10 -> 11 | L97: =IF($H97=4,$G97,"") ->  | P97: =IF($H97=8,$G97,"") ->  | Q97: =IF($H97=9,$G97,"") ->  | R97: =IF($H97=10,$G97,"") ->  | S97: =IF($H97=11,$G97,"") -> 121212 | T97: =IF($H97=12,$G97,"") -> 

Sheet 工事入札情報 (hidden)
B1: 土木事務所 | C1: 総合評価 | D1: 開札年月日 | E1: 種別 | F1: 工事名 | G1: 工事場所 | H1: 工種 | I1: 施工地域・工事場所による補正 | J1: ①予定金額 | K1: ②設計金額 | L1: ②-① | M1: ③設計最低制限価格 直95+共90+現90+一般55 | N1: ④最低制限価格 | O1: ④-③ | P1: 現場管理費*α | Q1: α | R1: 直接工事費 | S1: 共通仮設費 | T1: 現場管理費 | U1: 一般管理費 | V1: 最低制限価格/設計価格 | W1: 最低制限価格/予定価格 | X1: 施工箇所点在 | Y1: 備考
J2: =VLOOKUP(J1,一覧工事検索,2,0) -> 
A3: 281212-001 | B3: 山城北 | D3: 2016-04-15 | E3: 舗装 指名 | F3: 管内一円（長尾八幡線）地域振興道路工事 | G3: 八幡市八幡一の坪地内 | H3: 舗装工事 | I3: 影響受ける | J3: 7440000 | K3: =SUM(R3:U3) -> 7443000 | L3: =K3-J3 -> 3000 | M3: =R3*0.95+S3*0.9+T3*0.9+U3*0.55 -> 6438691.15 | N3: 6507000 | O3: =N3-M3 -> 68308.85 | P3: =O3/T3+0.9 -> 0.9382468365 | Q3: =P3/0.9 -> 1.042496485 | R3: 3442191 | S3: 980185 | T3: 1786000 | U3: 1234624 | V3: =N3/K3 -> 0.8742442563 | W3: =N3/J3 -> 0.8745967742
A4: 281212-002 | B4: 道路公社 建設事務所 | D4: 2016-04-25 | E4: 土木 Ⅰ | F4: 鳥取豊岡宮津自動車道（野田川大宮道路）道路新設工事（補助）簡易中央分離帯他（その３）工事 | G4: 京丹後市大宮町三重～森本地内 | H4: 道路改良工事 | I4: 影響受けない | J4: 73330000 | K4: 73336000 | L4: 6000 | M4: 64833493.7 | N4: 64799000 | O4: -34493.7 | P4: 0.8976087556 | Q4: 0.9973430618 | R4: 44353370 | S4: 4881702 | T4: 14425000 | U4: 9675928 | V4: 0.8835905967 | W4: 0.8836628938
A5: 281212-003 | B5: 丹後 | D5: 2016-04-28 | E5: 土木 指名 | F5: 箱石湊宮葛野海岸 なぎさ緊急保全工事 | G5: 京丹後市久美浜町葛野他地内 | H5: 海岸工事 | I5: 影響受けない | J5: 3290000 | K5: 3299000 | L5: 9000 | M5: 2868042 | N5: 2878000 | O5: 9958 | P5: 0.9171394148 | Q5: 1.019043794 | R5: 1870980 | S5: 291000 | T5: 581000 | U5: 556020 | V5: 0.8723855714 | W5: 0.8747720365
A6: 281212-004 | B6: 丹後 | D6: 2016-04-28 | E6: 土木 指名 | F6: 浅茂川海岸 なぎさ緊急保全工事 | G6: 京丹後市網野町浅茂川地内 | H6: 海岸工事 | I6: 影響受けない | J6: 2220000 | K6: 2225000 | L6: 5000 | M6: 1935959.2 | N6: 1943000 | O6: 7040.8 | P6: 0.9179612245 | Q6: 1.019956916 | R6: 1290523 | S6: 168000 | T6: 392000 | U6: 374477 | V6: 0.873258427 | W6: 0.8752252252
A7: 281212-005 | B7: 丹後 | D7: 2016-04-28 | E7: 土木 指名 | F7: 久僧海岸 なぎさ緊急保全工事 | G7: 京丹後市丹後町久僧他地内 | H7: 海岸工事 | I7: 影響受けない | J7: 2850000 | K7: 2851000 | L7: 1000 | M7: 2476220 | N7: 2485000 | O7: 8780 | P7: 0.9174900398 | Q7: 1.019433378 | R7: 1569550 | S7: 299000 | T7: 502000 | U7: 480450 | V7: 0.8716239916 | W7: 0.8719298246
A8: 281212-006 | B8: 乙訓 | D8: 2016-05-11 | E8: 法面処理 | F8: 管内一円（伏見柳谷高槻線）臨時生活関連施設整備工事他 | G8: 長岡京市浄土谷地内 | H8: 道路改良工事 | I8: 影響受ける | J8: 30845000 | K8: 30847000 | L8: 2000 | M8: 26868597.45 | N8: 26868000 | O8: -597.45 | P8: 0.8999061793 | Q8: 0.9998957548 | R8: =9030440+4432143 -> 13462583 | S8: =5333270+1206485 -> 6539755 | T8: =4573000+1795000 -> 6368000 | U8: =3215290+1261372 -> 4476662 | V8: 0.871008526 | W8: 0.8710650024
A9: 281212-007 | B9: 中丹東 | D9: 2016-05-19 | E9: 土木 Ⅲ以上 | F9: 神崎海岸 なぎさ緊急保全工事他 | G9: 舞鶴市西神崎地内 | H9: 海岸工事 | I9: 影響受けない | J9: 11750000 | K9: 11755000 | L9: 5000 | M9: 10261929.75 | N9: 10300000 | O9: 38070.25 | P9: 0.9183118086 | Q9: 1.020346454 | R9: 6762717 | S9: 1039837 | T9: 2079000 | U9: 1873446 | V9: 0.8762228839 | W9: 0.8765957447
A10: 281212-008 | B10: 山城北 | D10: 2016-05-20 | E10: 電気 Ⅰ | F10: 八幡インタ－線地方道路交付金工事 | G10: 八幡市内里地内 | H10: 道路維持工事 | I10: 影響受ける | J10: 12280000 | K10: 12289000 | L10: 9000 | M10: 10683542.4 | N10: 10770000 | O10: 86457.6 | P10: 0.9271282083 | Q10: 1.030142454 | R10: 6115306 | S10: 1037200 | T10: 3187000 | U10: 1949494 | V10: 0.8763935227 | W10: 0.8770358306
A11: 281212-009 | B11: 南丹 | D11: 2016-05-23 | E11: 交通安全施設 指名 | F11: 国道４７７号他道路維持修繕工事 | G11: 南丹市園部町横田他地内 | H11: 道路維持工事 | I11: (市街地+影響受ける)/2 | J11: 8677000 | K11: 8677000 | L11: 0 | M11: 7472386 | N11: 7565000 | O11: 92614 | P11: 0.9365341223 | Q11: 1.040593469 | R11: 3504715 | S11: 1174000 | T11: 2535000 | U11: 1463285 | V11: 0.8718451078 | W11: 0.8718451078
A12: 281212-010 | B12: 乙訓 | D12: 2016-05-23 | E12: 電気 指名 | F12: 管内一円小修繕（電気）工事 | G12: 管内一円地内 | H12: 道路維持工事 | I12: 影響受けない | J12: 4165000 | K12: 4168000 | L12: 3000 | M12: 3586292.8 | N12: 3632000 | O12: 45707.2 | P12: 0.9366537289 | Q12: 1.040726365 | R12: 1619482 | S12: 599000 | T12: 1247000 | U12: 702518 | V12: 0.8714011516 | W12: 0.8720288115
A13: 281212-011 | B13: 乙訓 | D13: 2016-05-23 | E13: 交通安全施設 指名 | F13: 管内一円小修繕（安全施設）工事 | G13: 管内一円地内 | H13: 道路維持工事 | I13: 影響受けない | J13: 9263000 | K13: 9264000 | L13: 1000 | M13: 7970684.4 | N13: 8072000 | O13: 101315.6 | P13: 0.9365496392 | Q13: 1.04061071 | R13: 3597711 | S13: 1332000 | T13: 2772000 | U13: 1562289 | V13: 0.8713298791 | W13: 0.8714239447
A14: 281212-012 | B14: 道路公社 管理事務所 | D14: 2016-05-24 | E14: 塗装(土木) 指名 | F14: 京都縦貫自動車道京丹波ＰＡ駐車ます線工事 | G14: 京丹波町曽根（京丹波ＰＡ）地内 | H14: 道路維持工事 | I14: 影響受ける | J14: 7150000 | K14: 7155000 | L14: 5000 | M14: 6170248.4 | N14: 6095000 | O14: -75248.4 | P14: 0.8609909798 | Q14: 0.9566566442 | R14: 2951506 | S14: 1083560 | T14: 1929000 | U14: 1190934 | V14: 0.8518518519 | W14: 0.8524475524
A15: 281212-013 | B15: 中丹東 | C15: ● | D15: 2016-05-25 | E15: 土木 Ⅰ | F15: 舞鶴和知線 防災・安全交付金（緊防）（補正）工事 | G15: 舞鶴市字行永地内 | H15: 道路改良工事 | I15: 影響受ける | J15: 54490000 | K15: 54497000 | L15: 7000 | M15: 47948945.3 | N15: 48190000 | O15: 241054.7 | P15: 0.921738182 | Q15: 1.024153536 | R15: 30106746 | S15: 5862134 | T15: 11089000 | U15: 7439120 | V15: 0.8842688588 | W15: 0.8843824555
A16: 281212-014 | B16: 南丹 | D16: 2016-05-25 | E16: 土木 指名 | F16: 管内一円（亀岡園部線保津橋他）橋りょう維持修繕工事 | G16: 亀岡市保津町、河原林町～宇津根町地内 | H16: 道路維持工事 | I16: 影響受ける | J16: 32370000 | K16: 32370000 | L16: 0 | M16: 28418228.8 | N16: 28418000 | O16: -228.8 | P16: 0.8999645271 | Q16: 0.9999605857 | R16: =9645455+2087592 -> 11733047 | S16: =9630000+838600 -> 10468600 | T16: =4995000+1455000 -> 6450000 | U16: 3718353 | V16: 0.8779116466 | W16: 0.8779116466 | X16: ○
A17: 281212-015 | B17: 山城南 | D17: 2016-05-25 | E17: 土木 指名 | F17: 山田川他 河川環境整備業務委託 | G17: 木津川市吐師他 地内 | H17: 河川維持工事 | I17: 影響受けない | J17: 7770000 | K17: 7773000 | L17: 3000 | M17: 6771409.2 | N17: 6819000 | O17: 47590.8 | P17: 0.9271636986 | Q17: 1.030181887 | R17: 4314773 | S17: 449000 | T17: 1752000 | U17: 1257227 | V17: 0.8772674643 | W17: 0.8776061776
A18: 281212-016 | B18: 山城南 | D18: 2016-05-25 | E18: 土木 指名 | F18: 和束川他 河川環境整備業務委託、和束川他 集中豪雨対策（河川緊急補強）業務委託 | G18: 相楽郡和束町釜塚他 地内 | H18: 河川維持工事 | I18: 影響受けない | J18: 5650000 | K18: 5655000 | L18: 5000 | M18: 4907420.4 | N18: 4944000 | O18: 36579.6 | P18: 0.9276072453 | Q18: 1.030674717 | R18: 3035001 | S18: 341200 | T18: 1325000 | U18: 953799 | V18: 0.874270557 | W18: 0.8750442478
A19: 281212-017 | B19: 山城南 | D19: 2016-05-25 | E19: 土木 指名 | F19: 煤谷川他 河川環境整備業務委託 | G19: 相楽郡精華町菱田他 地内 | H19: 河川維持工事 | I19: 影響受けない | J19: 8190000 | K19: 8194000 | L19: 4000 | M19: 7199886 | N19: 7245000 | O19: 45114 | P19: 0.9274750305 | Q19: 1.030527812 | R19: 4771215 | S19: 600000 | T19: 1642000 | U19: 1180785 | V19: 0.8841835489 | W19: 0.8846153846
A20: 281212-018 | B20: 山城南 | D20: 2016-05-25 | E20: 土木 指名 | F20: 井関川他 河川環境整備業務委託、管内一円（井関川） 臨時生活関連施設整備業務委託 | G20: 木津川市木津他 地内 | H20: 河川維持工事 | I20: 影響受けない | J20: 6970000 | K20: 6979000 | L20: 9000 | M20: 6068018.8 | N20: 6112000 | O20: 43981.2 | P20: 0.9272329412 | Q20: 1.030258824 | R20: 3869422 | S20: 333000 | T20: 1615000 | U20: 1161578 | V20: 0.8757701676 | W20: 0.8769010043
A21: 281212-019 | B21: 丹後 | D21: 2016-05-26 | E21: 土木 指名 | F21: 国道１７８号 防災・安全交付金（緊防）（補正）工事 | G21: 宮津市大島地内 | H21: 道路改良工事 | I21: 影響受ける | J21: 6100000 | K21: 6103000 | L21: 3000 | M21: 5285623.2 | N21: 5308000 | O21: 22376.8 | P21: 0.9174955434 | Q21: 1.019439493 | R21: 3063683 | S21: 731000 | T21: 1279000 | U21: 1029317 | V21: 0.8697361953 | W21: 0.8701639344
A22: 281212-020 | B22: 丹後 | D22: 2016-05-26 | E22: 土木 指名 | F22: 管内一円 都市公園維持管理（公園分）業務委託 | G22: 宮津市文珠他地内 | H22: 公園工事 | I22: 影響受けない | J22: 9220000 | K22: 9227000 | L22: 7000 | M22: 8025721.6 | N22: 8066000 | O22: 40278.4 | P22: 0.9177203696 | Q22: 1.0196893 | R22: 4923679 | S22: 531000 | T22: 2273000 | U22: 1499321 | V22: 0.8741736209 | W22: 0.8748373102
A23: 281212-021 | B23: 道路公社 管理事務所 | D23: 2016-05-27 | E23: 土木 指名 | F23: 京都縦貫自動車道ＣＣＴＶ点検架台設置工事 | G23: 京丹波町才原他地内 | H23: 道路維持工事 | I23: 影響受けない | J23: 1420000 | K23: 1423000 | L23: 3000 | M23: 1268804.8 | N23: 1210000 | O23: -58804.8 | P23: 0.6764076046 | Q23: 0.7515640051 | R23: 862062 | S23: 140800 | T23: 263000 | U23: 157138 | V23: 0.8503162333 | W23: 0.8521126761
A24: 281212-022 | B24: 道路公社 管理事務所 | D24: 2016-05-27 | E24: 土木 指名 | F24: 京都縦貫自動車道第7電気室法面階段設置工事 | G24: 舞鶴市字大俣地内 | H24: 道路維持工事 | I24: 影響受けない | J24: 3260000 | K24: 3260000 | L24: 0 | M24: 2811486.4 | N24: 2770000 | O24: -41486.4 | P24: 0.8547585605 | Q24: 0.9497317339 | R24: 1396466 | S24: 397000 | T24: 917000 | U24: 549534 | V24: 0.8496932515 | W24: 0.8496932515
A25: 281212-023 | B25: 京都 | D25: 2016-05-27 | E25: 土木 Ⅲ | F25: 桂川（上） 臨時生活関連施設整備業務委託、桂川（上） 臨時生活関連施設整備業務委託 | G25: 京都市右京区京北栃本町～下町地内 | H25: 河川維持工事 | I25: 影響受けない | J25: 7600000 | K25: 7602000 | L25: 2000 | M25: 6627630 | N25: 6658000 | O25: 30370 | P25: 0.9177602339 | Q25: 1.019733593 | R25: 4311200 | S25: 353000 | T25: 1710000 | U25: 1227800 | V25: 0.8758221521 | W25: 0.8760526316
A26: 281212-024 | B26: 京都 | D26: 2016-05-27 | E26: 土木 Ⅲ | F26: 桂川（上） 広域河川改修（防災・安全）工事、桂川（上） 広域河川改修（防災・安全）工事 | G26: 京都市右京区京北大野町地内 | H26: 河川工事 | I26: 影響受けない | J26: 18510000 | K26: 18512000 | L26: 2000 | M26: 16209822 | N26: 16324000 | O26: 114178 | P26: 0.926973305 | Q26: 1.029970339 | R26: 10373555 | S26: 1135000 | T26: 4233000 | U26: 2770445 | V26: 0.8818063959 | W26: 0.8819016748
A27: 281212-025 | B27: 京都 | D27: 2016-05-27 | E27: 土木 Ⅲ | F27: 天神川 京の川づくり業務委託、天神川 京の川づくり業務委託、天神川 京の川づくり業務委託 | G27: 京都市南区吉祥院新田下ノ向町他地内 | H27: 河川維持工事 | I27: 市街地 | J27: 16560000 | K27: 16564000 | L27: 4000 | M27: 14502034.4 | N27: 14601000 | O27: 98965.6 | P27: 0.9267546905 | Q27: 1.029727434 | R27: 9438836 | S27: 919000 | T27: 3699000 | U27: 2507164 | V27: 0.8814899783 | W27: 0.8817028986
A28: 281212-026 | B28: 京都 | D28: 2016-05-27 | E28: 土木 Ⅲ | F28: 管内一円（有栖川） 府民公募型整備工事、管内一円（有栖川） 府民公募型整備工事 | G28: 京都市右京区梅津開キ町地内 | H28: 河川工事 | I28: 市街地 | J28: 14320000 | K28: 14328000 | L28: 8000 | M28: 12463553.2 | N28: 12559000 | O28: 95446.8 | P28: 0.9267883244 | Q28: 1.029764805 | R28: 7055758 | S28: 1468000 | T28: 3563000 | U28: 2241242 | V28: 0.8765354551 | W28: 0.8770251397
A29: 281212-027 | B29: 山城南 | D29: 2016-05-30 | E29: 土木 指名 | F29: 赤田川他 河川環境整備業務委託、管内一円 臨時生活関連施設整備業務委託 | G29: 木津川市加茂町 地内 | H29: 河川維持工事 | I29: 影響受けない | J29: 9230000 | K29: 9238000 | L29: 8000 | M29: 8041025.6 | N29: 8099000 | O29: 57974.4 | P29: 0.9270150979 | Q29: 1.030016775 | R29: 5043064 | S29: 548000 | T29: 2146000 | U29: 1500936 | V29: 0.8767049145 | W29: 0.8774647887
A30: 281212-028 | B30: 山城南 | D30: 2016-05-30 | E30: 土木 指名 | F30: 横川他 河川環境整備工事、管内一円 河川災害防除工事 | G30: 相楽郡笠置町有市他 地内 | H30: 河川維持工事 | I30: 影響受けない | J30: 5090000 | K30: 5098000 | L30: 8000 | M30: 4475903.95 | N30: 4505000 | O30: 29096.05 | P30: 0.9276841579 | Q30: 1.030760175 | R30: 2968848 | S30: 333185 | T30: 1051000 | U30: 744967 | V30: 0.8836798745 | W30: 0.8850687623
A31: 281212-029 | B31: 道路公社 建設事務所 | D31: 2016-06-02 | E31: 交通安全施設 | F31: 鳥取豊岡宮津自動車道（野田川大宮道路）道路新設工事（補助）安全施設（その２）工事 | G31: 宮津市字須津～与謝郡与謝野町字弓木地内 | H31: 道路改良工事 | I31: 影響受けない | J31: 49100000 | K31: 49104000 | L31: 4000 | M31: 43275624.4 | N31: 43070000 | O31: -205624.4 | P31: 0.87894487 | Q31: 0.9766054111 | R31: 29125261 | S31: 3429200 | T31: 9766000 | U31: 6783539 | V31: 0.8771179537 | W31: 0.8771894094
A32: 281212-030 | B32: 中丹東 | C32: ● | D32: 2016-06-03 | E32: 土木 Ⅰ | F32: 宮ノ谷川 通常砂防（防災安全）工事 | G32: 舞鶴市字丸田地内 | H32: 砂防・地すべり等工事 | I32: 影響受けない | J32: 66880000 | K32: 66881000 | L32: 1000 | M32: 59119746.1 | N32: 59500000 | O32: 380253.9 | P32: 0.9285690383 | Q32: 1.031743376 | R32: 40608134 | S32: 4095550 | T32: 13310000 | U32: 8867316 | V32: 0.889639808 | W32: 0.88965311
A33: 281212-031 | B33: 山城北 | C33: ● | D33: 2016-06-06 | E33: 土木 Ⅰ | F33: 八幡インタ－線地方道路交付金工事 | G33: 八幡市内里～美濃山地内 | H33: 道路改良工事 | I33: 影響受ける | J33: 67650000 | K33: 67653000 | L33: 3000 | M33: 59716859 | N33: 60088000 | O33: 371141 | P33: 0.9271083924 | Q33: 1.030120436 | R33: =39426417+241393 -> 39667810 | S33: =5234300+47800 -> 5282100 | T33: =13603000+88000 -> 13691000 | U33: =8954283+57807 -> 9012090 | V33: 0.888179386 | W33: 0.8882187731
A34: 281212-032 | B34: 丹後 | D34: 2016-06-09 | E34: 舗装 Ⅰ | F34: 国道１７８号 地域振興道路工事 | G34: 宮津市字由良地内 | H34: 舗装工事 | I34: 影響受ける | J34: 10580000 | K34: 10588000 | L34: 8000 | M34: 9164382.6 | N34: 9210000 | O34: 45617.4 | P34: 0.9178471831 | Q34: 1.019830203 | R34: 4624344 | S34: 1704700 | T34: 2556000 | U34: 1702956 | V34: 0.8698526634 | W34: 0.870510397
A35: 281212-033 | B35: 中丹東 | D35: 2016-06-09 | E35: 法面処理 | F35: 綾部美山線 防災・安全交付金（緊防）（補正）工事他 | G35: 綾部市睦寄町大岩地内 | H35: 道路改良工事 | I35: 影響受ける | J35: 73940000 | K35: 73945000 | L35: 5000 | M35: 65319529.8 | N35: 65515000 | O35: 195470.2 | P35: 0.913095076 | Q35: 1.014550084 | R35: 43636112 | S35: 5631100 | T35: 14927000 | U35: 9750788 | V35: 0.8859963486 | W35: 0.8860562618
A36: 281212-034 | B36: 中丹東 | C36: ● | D36: 2016-06-13 | E36: 土木 Ⅰ | F36: 池辺京田線 防災・安全交付金（緊防）（補正）工事 | G36: 舞鶴市寺田地内 | H36: 道路改良工事 | I36: 影響受ける | J36: 74060000 | K36: 74061000 | L36: 1000 | M36: 65346070 | N36: 65680000 | O36: 333930 | P36: 0.9223334671 | Q36: 1.024814963 | R36: 42147915 | S36: 7200440 | T36: 14952000 | U36: 9760645 | V36: 0.8868365266 | W36: 0.8868485012
A37: 281212-035 | B37: 山城南 | C37: ● | D37: 2016-06-14 | E37: 土木 Ⅰ | F37: 東中央線 地方道路交付金（街路）工事、東中央線 地方道路交付金（街路）工事 | G37: 木津川市鹿背山 地内 | H37: 道路改良工事 | I37: 影響受ける | J37: 55000000 | K37: 55003000 | L37: 3000 | M37: 48299546.4 | N37: 48712000 | O37: 412453.6 | P37: 0.9368657133 | Q37: 1.040961904 | R37: =21169765+7265931 -> 28435696 | S37: =6784480+1095000 -> 7879480 | T37: =8612000+2576000 -> 11188000 | U37: =5773755+1726069 -> 7499824 | V37: 0.8856244205 | W37: 0.8856727273
A38: 281212-036 | B38: 山城北 | C38: ○ | D38: 2016-06-16 | E38: 土木 Ⅲ | F38: 八幡木津線防災・安全交付金（交安）工事 | G38: 京田辺市大住地内 | H38: 道路改良工事 | I38: 影響受ける | J38: 9600000 | K38: 9608000 | L38: 8000 | M38: 8346757.15 | N38: 8410000 | O38: 63242.85 | P38: 0.9311694677 | Q38: 1.034632742 | R38: =4383402+512523 -> 4895925 | S38: =1052249+73000 -> 1125249 | T38: =1832000+197000 -> 2029000 | U38: =1406349+151477 -> 1557826 | V38: 0.8753122398 | W38: 0.8760416667
A39: 281212-037 | B39: 南丹 | D39: 2016-06-22 | E39: 土木 Ⅲ | F39: 丹波自然運動公園単費都市公園施設整備１工事、丹波自然運動公園単費都市公園施設整備１工事、管内一円臨時生活関連施設整備工事 | G39: 船井郡京丹波町曽根地内 | H39: 道路維持工事 | I39: 影響受ける | J39: 17300000 | K39: 17300000 | L39: 0 | M39: 15085763.45 | N39: 15246000 | O39: 160236.55 | P39: 0.9367178162 | Q39: 1.040797574 | R39: 8882244 | S39: 1401331 | T39: 4364000 | U39: 2652425 | V39: 0.8812716763 | W39: 0.8812716763
A40: 281212-038 | B40: 南丹 | D40: 2016-06-28 | E40: 土木 JV | F40: 一級河川桂川平成２７年発生土木災害復旧工事【査定番号５０１号】 | G40: 亀岡市馬路町三軒屋先地内 | H40: 河川工事 | I40: 影響受けない | J40: 91460000 | K40: 91462000 | L40: 2000 | M40: 81137117.9 | N40: 81746000 | O40: 608882.1 | P40: 0.936846118 | Q40: 1.040940131 | R40: 58005751 | S40: 5277050 | T40: 16525000 | U40: 11654199 | V40: 0.8937700903 | W40: 0.8937896348 | Y40: 府知事発注
A41: 281212-039 | B41: 南丹 | D41: 2016-06-29 | E41: 舗装 Ⅰ | F41: 管内一円（園部平屋線）府民公募型整備工事他 | G41: 南丹市園部町～日吉町地内 | H41: 舗装工事 | I41: 影響受ける | J41: 53920000 | K41: 53928000 | L41: 8000 | M41: 47485775.2 | N41: 47887000 | O41: 401224.8 | P41: 0.9367826183 | Q41: 1.040869576 | R41: =24683187+5922391 -> 30605578 | S41: =3902400+1141440 -> 5043840 | T41: =8747000+2161000 -> 10908000 | U41: =5910413+1460169 -> 7370582 | V41: 0.88798027 | W41: 0.8881120178
A42: 281212-040 | B42: 南丹 | D42: 2016-07-06 | E42: 舗装 Ⅰ | F42: 国道４７７号府民公募型整備工事 | G42: 亀岡市旭町三俣地内 | H42: 舗装工事 | I42: 影響受ける | J42: 22954000 | K42: 22954000 | L42: 0 | M42: 20051638.4 | N42: 20241000 | O42: 189361.6 | P42: 0.9368407782 | Q42: 1.040934198 | R42: 11892671 | S42: 2488200 | T42: 5140000 | U42: 3433129 | V42: 0.8818070924 | W42: 0.8818070924
A43: 281212-041 | B43: 南丹 | D43: 2016-07-11 | E43: 造園 指名 | F43: 亀岡園部線他道路維持修繕業務委託 | G43: 亀岡市古世町他地内 | H43: 道路維持工事 | I43: 影響受ける | J43: 3219000 | K43: 3219000 | L43: 0 | M43: 2771217.6 | N43: 2805000 | O43: 33782.4 | P43: 0.9368401309 | Q43: 1.040933479 | R43: 1281294 | S43: 478000 | T43: 917000 | U43: 542706 | V43: 0.87138863 | W43: 0.87138863
A44: 281212-042 | B44: 南丹 | D44: 2016-07-11 | E44: 造園 指名 | F44: 宮前千歳線他道路維持修繕業務委託 | G44: 亀岡市宮前町他地内 | H44: 道路維持工事 | I44: 影響受ける | J44: 4409000 | K44: 4409000 | L44: 0 | M44: 3794068 | N44: 3839000 | O44: 44932 | P44: 0.9363527508 | Q44: 1.040391945 | R44: 1724420 | S44: 705000 | T44: 1236000 | U44: 743580 | V44: 0.8707189839 | W44: 0.8707189839
A45: 281212-043 | B45: 南丹 | D45: 2016-07-11 | E45: 造園 指名 | F45: 国道３７２号他道路維持修繕業務委託 | G45: 亀岡市余部町他地内 | H45: 道路維持工事 | I45: 影響受ける | J45: 5787000 | K45: 5787000 | L45: 0 | M45: 4976237.6 | N45: 5034000 | O45: 57762.4 | P45: 0.9364431546 | Q45: 1.040492394 | R45: 2199019 | S45: 1025800 | T45: 1585000 | U45: 977181 | V45: 0.8698807672 | W45: 0.8698807672
A46: 281212-044 | B46: 南丹 | D46: 2016-07-11 | E46: 造園 指名 | F46: 園部平屋線他道路維持修繕業務委託 | G46: 南丹市園部町木崎町他地内 | H46: 道路維持工事 | I46: 影響受ける | J46: 2738000 | K46: 2738000 | L46: 0 | M46: 2353844 | N46: 2382000 | O46: 28156 | P46: 0.9360974359 | Q46: 1.040108262 | R46: 1021560 | S46: 475200 | T46: 780000 | U46: 461240 | V46: 0.8699780862 | W46: 0.8699780862
A47: 281212-045 | B47: 南丹 | D47: 2016-07-11 | E47: 造園 指名 | F47: 国道３７２号他道路維持修繕業務委託 | G47: 南丹市園部町埴生他地内 | H47: 道路維持工事 | I47: 影響受ける | J47: 2710000 | K47: 2710000 | L47: 0 | M47: 2331166 | N47: 2359000 | O47: 27834 | P47: 0.9360544041 | Q47: 1.040060449 | R47: 1038890 | S47: 442600 | T47: 772000 | U47: 456510 | V47: 0.8704797048 | W47: 0.8704797048
A48: 281212-046 | B48: 南丹 | D48: 2016-07-11 | E48: 造園 指名 | F48: 郷ノ口室河原線他道路維持修繕業務委託 | G48: 南丹市八木町山室他地内 | H48: 道路維持工事 | I48: 影響受ける | J48: 1030000 | K48: 1030000 | L48: 0 | M48: 885900 | N48: 896000 | O48: 10100 | P48: 0.9344709898 | Q48: 1.0383011 | R48: 390400 | S48: 173400 | T48: 293000 | U48: 173200 | V48: 0.8699029126 | W48: 0.8699029126
A49: 281212-047 | B49: 南丹 | D49: 2016-07-11 | E49: 造園 指名 | F49: 園部平屋線道路維持修繕業務委託 | G49: 南丹市日吉町殿田他地内 | H49: 道路維持工事 | I49: 影響受ける | J49: 2199000 | K49: 2199000 | L49: 0 | M49: 1890581.6 | N49: 1913000 | O49: 22418.4 | P49: 0.9358121406 | Q49: 1.039791267 | R49: 823804 | S49: 378600 | T49: 626000 | U49: 370596 | V49: 0.8699408822 | W49: 0.8699408822
A50: 281212-048 | B50: 南丹 | D50: 2016-07-11 | E50: 造園 指名 | F50: 国道１７３号他道路維持修繕業務委託 | G50: 船井郡京丹波町和田他地内 | H50: 道路維持工事 | I50: 影響受ける | J50: 825000 | K50: 825000 | L50: 0 | M50: 707868 | N50: 716000 | O50: 8132 | P50: 0.9346042553 | Q50: 1.038449173 | R50: 275670 | S50: 176000 | T50: 235000 | U50: 138330 | V50: 0.8678787879 | W50: 0.8678787879
